{"text_format":"1","workbook":"xlsx","n_sheets":11,"sheets":["Dt","General","Resumen","Estado_del_arte","Objetivos","Cronograma","Productos","Integrantes","Presupuesto","Impactos","Bibliografía"],"not_rendered":{"charts":0,"images":1,"macros":1,"external_links":0,"defined_names":50,"comments":5,"pivot_tables":0},"unopened":[],"bounds":{"document_bytes":16777216,"sheet_cells":100000,"rows_first":2000,"rows_last":500,"rows_between":2000,"halvings":0,"cell_chars":16384,"cell_head_chars":4096},"cells_cut":0,"cells_raw":0,"read":"whole","date_system":"1900"}

{"sheet":"Dt","index":0,"n_rows":2004,"n_cols":648,"rows_kept":2004,"cut":false,"hidden":true,"merged":[]}
[null,"No eliminar Hoja … :)))",null,null,null,null,null,null,null,null,null,null,null,null,null,null,null,null,null,null,null,null,null,null,null,null,"No","Campo ","1_Opcion","2_Opcion",null,"Avaya1719",null,null,null,null,null,null,null,null,null,null,"http://scienti.colciencias.gov.co:8080/gruplac/jsp/visualiza/visualizagr.jsp?nro="]
[null,null,null,null,null,null,null,null,null,null,null,null,null,null,null,null,null,null,null,null,null,null,null,null,null,null,1,"Sedes","Calle 100",null,null,null,null,null,null,null,null,null,null,null,null,null,null,null,null,"BB",null,{"$f":"MIN(BD3:BD293)","v":4},{"$f":"MAX(BD3:BD293)","v":293}]
[null,null,null,null," ",null,null,null,null,null,null,null,null,null,null,null,null,null,null,null,null,null,null,null,null,null,2,"Sedes","Campus Cajica",null,null,null,null,null,null,null,"Hoja",null,null,"Hoja","FAC","Grupo","COD","Clas","Link","Lineas","Fila Grupo","Min","Max","FAC",null,null,"COD","Linea","Cel","Fila","E:Gp",null,"Código de Grupo",null,null,null,null,"Hora","Agente","Agente"]
[null,null,null,null,null,null,null,null,null,null,null,null,null,null,null,null,null,null,null,null,null,null,null,null,null,null,3,"Sedes","Medicina",null,null,null,null,null,null,null,3,1,{"$f":"COUNTIF($AN$4:$AN$806,AL4)","v":1},1,"CIAS","Fitoplasmas y Virus","COL0028687","C","http://scienti.colciencias.gov.co:8085/gruplac/jsp/visualiza/visualizagr.jsp?nro=00000000008436",{"$f":"$AT$2&AV4&\":\"&$AT$2&AW4","v":"BB10:BB11"},{"$f":"ROW()","v":4},{"$f":"MINA(IF(AQ4=$BA$4:$BA$401,$BD$4:$BD$401))","v":10},{"$f":"MAXA(IF(AQ4=$BA$4:$BA$401,$BD$4:$BD$401))","v":11},{"$f":"AO4","v":"CIAS"},null,null,"COL0049659","Medios de comunicación, educación y salud",{"$f":"COUNTIF(BA$4:BA4,BA4)","v":1},{"$f":"ROW()","v":4},{"$f":"COUNTIF($AQ$3:$AQ$83,BA4)","v":1},null,"COL0015722",{"$f":"COUNTIF($AQ$4:$AQ$75,BG4)","v":1},null,null,null,"19:54:00","a","a",{"$f":"DMIN(BL3:BM12,\"hora\",BN3:BN4)","v":0.4548611111111111},"|"]
[null,null,null,null,null,null,null,null,null,null,null,null,null,null,null,null,null,null,null,null,null,null,null,null,null,null,4,"Sedes","Otros",null,null,null,null,null,null,null,4,2,1,2,"CIAS","Grupo de investigación en Biodiversidad y ecología de abejas silvestres","COL0031959","B","http://scienti.colciencias.gov.co:8085/gruplac/jsp/visualiza/visualizagr.jsp?nro=00000000001366",{"$f":"$AT$2&AV5&\":\"&$AT$2&AW5","v":"BB12:BB16"},{"$f":"ROW()","v":5},{"$f":"MINA(IF(AQ5=$BA$4:$BA$401,$BD$4:$BD$401))","v":12},{"$f":"MAXA(IF(AQ5=$BA$4:$BA$401,$BD$4:$BD$401))","v":16},{"$f":"AO5","v":"CIAS"},null,null,"COL0049659","Salud Pública y Nutrición, Prevención de la Enfermedad y Promoción de la Salud",{"$f":"COUNTIF(BA$4:BA5,BA5)","v":2},{"$f":"ROW()","v":5},1,null,"COL0026486",1,null,null,null,"09:54:00","b","B"]
[null,null,null,null,null,null,null,null,null,null,null,null,null,null,null,null,null,null,null,null,null,null,null,null,null,null,1,"Facultad","Ciencias Básicas","CIAS",null,null,null,null,null,null,12,3,1,3,"CIAS","MATRIX","COL0039321","C","http://scienti.colciencias.gov.co:8085/gruplac/jsp/visualiza/visualizagr.jsp?nro=00000000002208","BB38:BB42",{"$f":"ROW()","v":6},{"$f":"MINA(IF(AQ6=$BA$4:$BA$401,$BD$4:$BD$401))","v":38},{"$f":"MAXA(IF(AQ6=$BA$4:$BA$401,$BD$4:$BD$401))","v":42},"CIAS",null,null,"COL0062704","Procesos Organizacionales (Prospectiva de las Organizaciones), Programáticos y Políticos para la Promoción del Desarrollo.",{"$f":"COUNTIF(BA$4:BA6,BA6)","v":1},{"$f":"ROW()","v":6},1,null,"COL0027367",1,null,null,null,"17:54:00","c","c"]
[null,null,null,null,null,null,null,null,null,null,null,null,null,null,null,null,null,null,null,null,null,null,null,null,null,null,2,"Facultad","Ciencias Económicas","ECO",null,null,null,null,null,null,18,4,1,4,"CIAS","Desarrollo e integración de estrategias alternativas para la protección de cultivos de importancia económica, con énfasis en control biológico.","COL0032278","A","http://scienti.colciencias.gov.co:8085/gruplac/jsp/visualiza/visualizagr.jsp?nro=00000000001399","BB64:BB65",{"$f":"ROW()","v":7},{"$f":"MINA(IF(AQ7=$BA$4:$BA$401,$BD$4:$BD$401))","v":64},{"$f":"MAXA(IF(AQ7=$BA$4:$BA$401,$BD$4:$BD$401))","v":65},"CIAS",null,null,"COL0062704","Prospectiva de las Organizaciones",{"$f":"COUNTIF(BA$4:BA7,BA7)","v":2},{"$f":"ROW()","v":7},1,null,"COL0018448",1,null,null,null,"10:55:00","a"]
[null,null,null,null,null,null,null,null,null,null,null,null,null,null,null,null,null,null,null,null,null,null,null,null,null,null,3,"Facultad","Derecho","DER",null,null,null,null,null,null,26,5,1,5,"CIAS","Grupo de Micología y Fitopatologia ","COL0013719","A1","http://scienti.colciencias.gov.co:8085/gruplac/jsp/visualiza/visualizagr.jsp?nro=00000000001127","BB107:BB111",{"$f":"ROW()","v":8},{"$f":"MINA(IF(AQ8=$BA$4:$BA$401,$BD$4:$BD$401))","v":107},{"$f":"MAXA(IF(AQ8=$BA$4:$BA$401,$BD$4:$BD$401))","v":111},"CIAS",null,null,"COL0062704","Responsabilidad Ambiental",{"$f":"COUNTIF(BA$4:BA8,BA8)","v":3},{"$f":"ROW()","v":8},1,null,"COL0028767",1,null,null,null,"11:45:00","a"]
[null,null,null,null,null,null,null,null,null,null,null,null,null,null,null,null,null,null,null,null,null,null,null,null,null,null,4,"Facultad","Educación y Humanidades","HUM",null,null,null,null,null,null,28,6,1,6,"CIAS","Fitopatologia molecular","COL0086179","C","http://scienti.colciencias.gov.co:8085/gruplac/jsp/visualiza/visualizagr.jsp?nro=00000000007907","BB118:BB120",{"$f":"ROW()","v":9},{"$f":"MINA(IF(AQ9=$BA$4:$BA$401,$BD$4:$BD$401))","v":118},{"$f":"MAXA(IF(AQ9=$BA$4:$BA$401,$BD$4:$BD$401))","v":120},"CIAS",null,null,"COL0062704","Responsabilidad Social Empresarial",{"$f":"COUNTIF(BA$4:BA9,BA9)","v":4},{"$f":"ROW()","v":9},1,null,"COL0028918",1,null,null,null,"15:12:00","b"]
[null,null,null,null,null,null,null,null,null,null,null,null,null,null,null,null,null,null,null,null,null,null,null,null,null,null,5,"Facultad","Estudios a Distancia","DIS",null,null,null,null,null,null,30,7,1,7,"CIAS","Estadística, Control y Optimización","COL0136423","B","http://scienti.colciencias.gov.co:8085/gruplac/jsp/visualiza/visualizagr.jsp?nro=00000000013845","BB125:BB129",{"$f":"ROW()","v":10},{"$f":"MINA(IF(AQ10=$BA$4:$BA$401,$BD$4:$BD$401))","v":125},{"$f":"MAXA(IF(AQ10=$BA$4:$BA$401,$BD$4:$BD$401))","v":129},"CIAS",null,null,"COL0028687","Fitoplasmas",{"$f":"COUNTIF(BA$4:BA10,BA10)","v":1},{"$f":"ROW()","v":10},1,null,"COL0031824",1,null,null,null,"23:12:00","b"]
[null,null,null,null,null,null,null,null,null,null,null,null,null,null,null,null,null,null,null,null,null,null,null,null,null,null,6,"Facultad","Ingeniería","ING",null,null,null,null,null,null,32,8,1,8,"CIAS","Grupo de Ecotoxicología, Evolución, Medio ambiente y conservación (E = mc2)","COL0038084","C","http://scienti.colciencias.gov.co:8085/gruplac/jsp/visualiza/visualizagr.jsp?nro=00000000002068","BB134:BB138",{"$f":"ROW()","v":11},{"$f":"MINA(IF(AQ11=$BA$4:$BA$401,$BD$4:$BD$401))","v":134},{"$f":"MAXA(IF(AQ11=$BA$4:$BA$401,$BD$4:$BD$401))","v":138},"CIAS",null,null,"COL0028687","Virus",{"$f":"COUNTIF(BA$4:BA11,BA11)","v":2},{"$f":"ROW()","v":11},1,null,"COL0031959",1,null,null,null,"06:20:00","c"]
[null,null,null,null,null,null,null,null,null,null,null,null,null,null,null,null,null,null,null,null,null,null,null,null,null,null,7,"Facultad","Medicina y Ciencias de la Salud","MED",null,null,null,null,null,null,41,9,1,9,"CIAS","Grupo de Investigación en Hidrobiología Aplicada (HIDROBIA)","COL0048492","C","http://scienti.colciencias.gov.co:8085/gruplac/jsp/visualiza/visualizagr.jsp?nro=00000000005664","BB167:BB170",{"$f":"ROW()","v":12},{"$f":"MINA(IF(AQ12=$BA$4:$BA$401,$BD$4:$BD$401))","v":167},{"$f":"MAXA(IF(AQ12=$BA$4:$BA$401,$BD$4:$BD$401))","v":170},"CIAS",null,null,"COL0031959","Análisis de redes de interacción planta-polinizador a partir de técnicas palinológicas",{"$f":"COUNTIF(BA$4:BA12,BA12)","v":1},{"$f":"ROW()","v":12},1,null,"COL0032278",1,null,null,null,"12:30:00","a"]
[null,null,null,null,null,null,null,null,null,null,null,null,null,null,null,null,null,null,null,null,null,null,null,null,null,null,8,"Facultad","Relaciones Internacionales, Estrategia y Seguridad","EES",null,null,null,null,null,null,42,10,1,10,"CIAS","Agrobiología de especies vegetales promisorias de clima frío","COL0077814","C","http://scienti.colciencias.gov.co:8085/gruplac/jsp/visualiza/visualizagr.jsp?nro=00000000006560","BB171:BB171",{"$f":"ROW()","v":13},{"$f":"MINA(IF(AQ13=$BA$4:$BA$401,$BD$4:$BD$401))","v":171},{"$f":"MAXA(IF(AQ13=$BA$4:$BA$401,$BD$4:$BD$401))","v":171},"CIAS",null,null,"COL0031959","Cría de especies del género Bombus para su utilización como polinizadores en cultivos de la sabana Cundi-boyacense.",{"$f":"COUNTIF(BA$4:BA13,BA13)","v":2},{"$f":"ROW()","v":13},1,null,"COL0033239",1]
[null,null,null,null,null,null,null,null,null,null,null,null,null,null,null,null,null,null,null,null,null,null,null,null,null,null,1,"Programa","CIAS","Biología Aplicada",2,null,null,null,null,null,43,11,1,11,"CIAS","Grupo Integrado de Investigaciones en Química y Biología (InQuiBio)","COL0077707","A1","http://scienti.colciencias.gov.co:8085/gruplac/jsp/visualiza/visualizagr.jsp?nro=00000000008358","BB172:BB180",{"$f":"ROW()","v":14},{"$f":"MINA(IF(AQ14=$BA$4:$BA$401,$BD$4:$BD$401))","v":172},{"$f":"MAXA(IF(AQ14=$BA$4:$BA$401,$BD$4:$BD$401))","v":180},"CIAS",null,null,"COL0031959","Diversidad, biología y taxonomia de polinizadores colombianos",{"$f":"COUNTIF(BA$4:BA14,BA14)","v":3},{"$f":"ROW()","v":14},1,null,"COL0036025",1]
[null,null,null,null,null,null,null,null,null,null,null,null,null,null,null,null,null,null,null,null,null,null,null,null,null,null,2,"Programa","CIAS","Tecnología en Horticultura",3,null,null,null,null,null,44,12,1,12,"CIAS","Grupo de investigación en química ambiental y tecnologías limpias - QUATELI","COL0110436","C","http://scienti.colciencias.gov.co:8085/gruplac/jsp/visualiza/visualizagr.jsp?nro=00000000011141","BB181:BB185",{"$f":"ROW()","v":15},{"$f":"MINA(IF(AQ15=$BA$4:$BA$401,$BD$4:$BD$401))","v":181},{"$f":"MAXA(IF(AQ15=$BA$4:$BA$401,$BD$4:$BD$401))","v":185},"CIAS",null,null,"COL0031959","Ecología de la polinización: estudios del uso sostenible de especies de abejas silvestres como polinizadores de hortalizas y frutales",{"$f":"COUNTIF(BA$4:BA15,BA15)","v":4},{"$f":"ROW()","v":15},1,null,"COL0038084",1]
[null,null,null,null,null,null,null,null,null,null,null,null,null,null,null,null,null,null,null,null,null,null,null,null,null,null,3,"Programa","CIAS","Maestría en Biología Aplicada",33,null,null,null,null,null,56,13,1,13,"CIAS","ECMU (Evaluacion en Competencias y Matemáticas Universitarias)","COL0110329","C","http://scienti.colciencias.gov.co:8085/gruplac/jsp/visualiza/visualizagr.jsp?nro=00000000011130","BB240:BB242",{"$f":"ROW()","v":16},{"$f":"MINA(IF(AQ16=$BA$4:$BA$401,$BD$4:$BD$401))","v":240},{"$f":"MAXA(IF(AQ16=$BA$4:$BA$401,$BD$4:$BD$401))","v":242},"CIAS",null,null,"COL0031959","Modelos biológicos y ecológicos de insectos benéficos",{"$f":"COUNTIF(BA$4:BA16,BA16)","v":5},{"$f":"ROW()","v":16},1,null,"COL0039321",1]
[null,null,null,null,null,null,null,null,null,null,null,null,null,null,null,null,null,null,null,null,null,null,null,null,null,null,3,"Programa","CIAS","Departamento de Matemáticas",34,null,null,null,null,null,58,14,1,14,"CIAS","Grupo de Docencia e Investigación en Física","COL0138796","C","http://scienti.colciencias.gov.co:8085/gruplac/jsp/visualiza/visualizagr.jsp?nro=00000000014082","BB248:BB252",{"$f":"ROW()","v":17},{"$f":"MINA(IF(AQ17=$BA$4:$BA$401,$BD$4:$BD$401))","v":248},{"$f":"MAXA(IF(AQ17=$BA$4:$BA$401,$BD$4:$BD$401))","v":252},"CIAS",null,null,"COL0044859","Multimedia Educativa",{"$f":"COUNTIF(BA$4:BA17,BA17)","v":1},{"$f":"ROW()","v":17},1,null,"COL0045848",1]
[null,null,null,null,null,null,null,null,null,null,null,null,null,null,null,null,null,null,null,null,null,null,null,null,null,null,3,"Programa","CIAS","Departamento de Física",35,null,null,null,null,null,71,71,1,71,"CIAS","DIVERSITAS","COL0178619","NR","http://scienti.colciencias.gov.co:8085/gruplac/jsp/visualiza/visualizagr.jsp?nro=00000000018063",{"$f":"$AT$2&AV18&\":\"&$AT$2&AW18","v":"BB296:BB301"},{"$f":"ROW()","v":18},{"$f":"MINA(IF(AQ18=$BA$4:$BA$401,$BD$4:$BD$401))","v":296},{"$f":"MAXA(IF(AQ18=$BA$4:$BA$401,$BD$4:$BD$401))","v":301},{"$f":"AO18","v":"CIAS"},null,null,"COL0044859","Procesamiento digital de imágenes y Visión por computador",{"$f":"COUNTIF(BA$4:BA18,BA18)","v":2},{"$f":"ROW()","v":18},1,null,"COL0047566",1]
[null,null,null,null,null,null,null,null,null,null,null,null,null,null,null,null,null,null,null,null,null,null,null,null,null,null,3,"Programa","CIAS","Departamento de Química",36,null,null,null,null,null,72,72,1,72,"CIAS","Nanofab","COL0179618","NR","http://scienti.colciencias.gov.co:8085/gruplac/jsp/visualiza/visualizagr.jsp?nro=00000000018163",{"$f":"$AT$2&AV19&\":\"&$AT$2&AW19","v":"BB302:BB305"},{"$f":"ROW()","v":19},{"$f":"MINA(IF(AQ19=$BA$4:$BA$401,$BD$4:$BD$401))","v":302},{"$f":"MAXA(IF(AQ19=$BA$4:$BA$401,$BD$4:$BD$401))","v":305},{"$f":"AO19","v":"CIAS"},null,null,"COL0044859","Sistemas Multimedia",{"$f":"COUNTIF(BA$4:BA19,BA19)","v":3},{"$f":"ROW()","v":19},1,null,"COL0047762",1]
[null,null,null,null,null,null,null,null,null,null,null,null,null,null,null,null,null,null,null,null,null,null,null,null,null,null,3,"Programa","CIAS","Doctorado en Ciencias Aplicadas",33,null,null,null,null,null,11,15,1,15,"DER","Grupo de derecho público ","COL0028918","B","http://scienti.colciencias.gov.co:8085/gruplac/jsp/visualiza/visualizagr.jsp?nro=00000000001079","BB33:BB37",{"$f":"ROW()","v":20},{"$f":"MINA(IF(AQ20=$BA$4:$BA$401,$BD$4:$BD$401))","v":33},{"$f":"MAXA(IF(AQ20=$BA$4:$BA$401,$BD$4:$BD$401))","v":37},{"$f":"AO20","v":"DER"},null,null,"COL0044859","Visualización y Computación Gráfica",{"$f":"COUNTIF(BA$4:BA20,BA20)","v":4},{"$f":"ROW()","v":20},1,null,"COL0049659",1]
[null,null,null,null,null,null,null,null,null,null,null,null,null,null,null,null,null,null,null,null,null,null,null,null,null,null,4,"Programa","DER","Derecho",16,null,null,null,null,null,47,16,1,16,"DER","Grupo de Derecho Privado","COL0128047","R","http://scienti.colciencias.gov.co:8085/gruplac/jsp/visualiza/visualizagr.jsp?nro=00000000012964","BB198:BB199",{"$f":"ROW()","v":21},{"$f":"MINA(IF(AQ21=$BA$4:$BA$401,$BD$4:$BD$401))","v":198},{"$f":"MAXA(IF(AQ21=$BA$4:$BA$401,$BD$4:$BD$401))","v":199},"DER",null,null,"COL0047762","Desarrollo de modelos de ingeniería de tejido humano",{"$f":"COUNTIF(BA$4:BA21,BA21)","v":1},{"$f":"ROW()","v":21},1,null,"COL0049999",1]
[null,null,null,null,null,null,null,null,null,null,null,null,null,null,null,null,null,null,null,null,null,null,null,null,null,null,5,"Programa","DER","Maestría en Derecho Procesal Penal",47,null,null,null,null,null,68,17,1,17,"DER","Red de estudios sociojurídicos comparados y políticas públicas","COL0142449","NR","http://scienti.colciencias.gov.co:8085/gruplac/jsp/visualiza/visualizagr.jsp?nro=00000000014449","BB273:BB278",{"$f":"ROW()","v":22},{"$f":"MINA(IF(AQ22=$BA$4:$BA$401,$BD$4:$BD$401))","v":273},{"$f":"MAXA(IF(AQ22=$BA$4:$BA$401,$BD$4:$BD$401))","v":278},"DER",null,null,"COL0047762","Metabolismo oseo - bone metabolism",{"$f":"COUNTIF(BA$4:BA22,BA22)","v":2},{"$f":"ROW()","v":22},1,null,"COL0050294",1]
[null,null,null,null,null,null,null,null,null,null,null,null,null,null,null,null,null,null,null,null,null,null,null,null,null,null,6,"Programa","DER","Maestría en Derecho Administrativo",48,null,null,null,null,null,2,18,1,18,"DIS","PROPPIO: Procesos organizacionales, programaticos y políticos para la promoción del desarrollo","COL0062704","R","http://scienti.colciencias.gov.co:8085/gruplac/jsp/visualiza/visualizagr.jsp?nro=00000000006477","BB6:BB9",{"$f":"ROW()","v":23},{"$f":"MINA(IF(AQ23=$BA$4:$BA$401,$BD$4:$BD$401))","v":6},{"$f":"MAXA(IF(AQ23=$BA$4:$BA$401,$BD$4:$BD$401))","v":9},"DIS",null,null,"COL0126015","Inmunodermatologia",{"$f":"COUNTIF(BA$4:BA23,BA23)","v":1},{"$f":"ROW()","v":23},1,null,"COL0052163",1]
[null,null,null,null,null,null,null,null,null,null,null,null,null,null,null,null,null,null,null,null,null,null,null,null,null,null,7,"Programa","DER","Maestría en Instituciones Jurídicas de la Fuerza Pública",49,null,null,null,null,null,8,19,1,19,"DIS","INCONDIS","COL0127649","NR","http://scienti.colciencias.gov.co:8085/gruplac/jsp/visualiza/visualizagr.jsp?nro=00000000012918","BB25:BB25",{"$f":"ROW()","v":24},{"$f":"MINA(IF(AQ24=$BA$4:$BA$401,$BD$4:$BD$401))","v":25},{"$f":"MAXA(IF(AQ24=$BA$4:$BA$401,$BD$4:$BD$401))","v":25},"DIS",null,null,"COL0126015","Psoriasis",{"$f":"COUNTIF(BA$4:BA24,BA24)","v":2},{"$f":"ROW()","v":24},1,null,"COL0052181",1]
[null,null,null,null,null,null,null,null,null,null,null,null,null,null,null,null,null,null,null,null,null,null,null,null,null,null,8,"Programa","DER","Especialización en Derecho Administrativo",50,null,null,null,null,null,20,20,1,20,"DIS","\"PYDES\" Pedagogía y didáctica en la educación superior","COL0018448","A","http://scienti.colciencias.gov.co:8085/gruplac/jsp/visualiza/visualizagr.jsp?nro=00000000000929","BB69:BB72",{"$f":"ROW()","v":25},{"$f":"MINA(IF(AQ25=$BA$4:$BA$401,$BD$4:$BD$401))","v":69},{"$f":"MAXA(IF(AQ25=$BA$4:$BA$401,$BD$4:$BD$401))","v":72},"DIS",null,null,"COL0127649","Línea en contabilidad integral",{"$f":"COUNTIF(BA$4:BA25,BA25)","v":1},{"$f":"ROW()","v":25},1,null,"COL0065804",1]
[null,null,null,null,null,null,null,null,null,null,null,null,null,null,null,null,null,null,null,null,null,null,null,null,null,null,9,"Programa","DER","Especialización en Procedimiento Penal, Constitucional y Justicia Militar",51,null,null,null,null,null,22,21,1,21,"DIS","Medios, Mediaciones y Procesos en Educación a Distancia","COL0067504","C","http://scienti.colciencias.gov.co:8085/gruplac/jsp/visualiza/visualizagr.jsp?nro=00000000004308","BB79:BB84",{"$f":"ROW()","v":26},{"$f":"MINA(IF(AQ26=$BA$4:$BA$401,$BD$4:$BD$401))","v":79},{"$f":"MAXA(IF(AQ26=$BA$4:$BA$401,$BD$4:$BD$401))","v":84},"DIS",null,null,"COL0015722","Bioética, biopolítica y biojurídica",{"$f":"COUNTIF(BA$4:BA26,BA26)","v":1},{"$f":"ROW()","v":26},1,null,"COL0066229",1]
[null,null,null,null,null,null,null,null,null,null,null,null,null,null,null,null,null,null,null,null,null,null,null,null,null,null,10,"Programa","DER","Especialización en Derecho Sancionatorio",52,null,null,null,null,null,39,22,1,22,"DIS","PIREO \"Procesos de Integración, Regionalización y Estructuras Organizacionales\"","COL0066229","C","http://scienti.colciencias.gov.co:8085/gruplac/jsp/visualiza/visualizagr.jsp?nro=00000000004242","BB162:BB164",{"$f":"ROW()","v":27},{"$f":"MINA(IF(AQ27=$BA$4:$BA$401,$BD$4:$BD$401))","v":162},{"$f":"MAXA(IF(AQ27=$BA$4:$BA$401,$BD$4:$BD$401))","v":164},"DIS",null,null,"COL0015722","Liderazgo",{"$f":"COUNTIF(BA$4:BA27,BA27)","v":2},{"$f":"ROW()","v":27},1,null,"COL0066669",1]
[null,null,null,null,null,null,null,null,null,null,null,null,null,null,null,null,null,null,null,null,null,null,null,null,null,null,11,"Programa","DER","Especialización en Derechos Humanos y Sistemas de Protección",53,null,null,null,null,null,61,23,1,23,"DIS","Modelos de simulación ICDIST","COL0069296","C","http://scienti.colciencias.gov.co:8085/gruplac/jsp/visualiza/visualizagr.jsp?nro=00000000004423","BB259:BB259",{"$f":"ROW()","v":28},{"$f":"MINA(IF(AQ28=$BA$4:$BA$401,$BD$4:$BD$401))","v":259},{"$f":"MAXA(IF(AQ28=$BA$4:$BA$401,$BD$4:$BD$401))","v":259},"DIS",null,null,"COL0005439","Modelación numérica",{"$f":"COUNTIF(BA$4:BA28,BA28)","v":1},{"$f":"ROW()","v":28},1,null,"COL0066768",1]
[null,null,null,null,null,null,null,null,null,null,null,null,null,null,null,null,null,null,null,null,null,null,null,null,null,null,12,"Programa","DIS","Administración de Empresas",17,null,null,null,null,null,67,24,1,24,"DIS","INAMPE","COL0142331","NR","http://scienti.colciencias.gov.co:8085/gruplac/jsp/visualiza/visualizagr.jsp?nro=00000000014438","BB270:BB272",{"$f":"ROW()","v":29},{"$f":"MINA(IF(AQ29=$BA$4:$BA$401,$BD$4:$BD$401))","v":270},{"$f":"MAXA(IF(AQ29=$BA$4:$BA$401,$BD$4:$BD$401))","v":272},"DIS",null,null,"COL0005439","Ordenación del territorio",{"$f":"COUNTIF(BA$4:BA29,BA29)","v":2},{"$f":"ROW()","v":29},1,null,"COL0067504",1]
[null,null,null,null,null,null,null,null,null,null,null,null,null,null,null,null,null,null,null,null,null,null,null,null,null,null,12,"Programa","DIS","Administración de seguridad y Salud Ocupacional ","X",null,null,null,null,null,13,25,1,25,"ECO","Grupo de Estudios en Ciencias Económicas - CIE","COL0050294","C","http://scienti.colciencias.gov.co:8085/gruplac/jsp/visualiza/visualizagr.jsp?nro=00000000003322","BB43:BB45",{"$f":"ROW()","v":30},{"$f":"MINA(IF(AQ30=$BA$4:$BA$401,$BD$4:$BD$401))","v":43},{"$f":"MAXA(IF(AQ30=$BA$4:$BA$401,$BD$4:$BD$401))","v":45},"ECO",null,null,"COL0005439","Pavimentos",{"$f":"COUNTIF(BA$4:BA30,BA30)","v":3},{"$f":"ROW()","v":30},1,null,"COL0068762",1]
[null,null,null,null,null,null,null,null,null,null,null,null,null,null,null,null,null,null,null,null,null,null,null,null,null,null,13,"Programa","DIS","Contaduría Pública",18,null,null,null,null,null,17,26,1,26,"ECO","Grupo de Estudios Macroeconómicos","COL0027367","C","http://scienti.colciencias.gov.co:8085/gruplac/jsp/visualiza/visualizagr.jsp?nro=00000000000855","BB61:BB63",{"$f":"ROW()","v":31},{"$f":"MINA(IF(AQ31=$BA$4:$BA$401,$BD$4:$BD$401))","v":61},{"$f":"MAXA(IF(AQ31=$BA$4:$BA$401,$BD$4:$BD$401))","v":63},"ECO",null,null,"COL0005439","Suelos",{"$f":"COUNTIF(BA$4:BA31,BA31)","v":4},{"$f":"ROW()","v":31},1,null,"COL0069296",1]
[null,null,null,null,null,null,null,null,null,null,null,null,null,null,null,null,null,null,null,null,null,null,null,null,null,null,14,"Programa","DIS","Ingeniería Civil",19,null,null,null,null,null,40,27,1,27,"ECO","Grupo de estudios contemporáneos en contabilidad, gestión y organizaciones - GECCGO","COL0028767","B","http://scienti.colciencias.gov.co:8085/gruplac/jsp/visualiza/visualizagr.jsp?nro=00000000001069","BB165:BB166",{"$f":"ROW()","v":32},{"$f":"MINA(IF(AQ32=$BA$4:$BA$401,$BD$4:$BD$401))","v":165},{"$f":"MAXA(IF(AQ32=$BA$4:$BA$401,$BD$4:$BD$401))","v":166},"ECO",null,null,"COL0005439","Transportes",{"$f":"COUNTIF(BA$4:BA32,BA32)","v":5},{"$f":"ROW()","v":32},1,null,"COL0048492",1]
[null,null,null,null,null,null,null,null,null,null,null,null,null,null,null,null,null,null,null,null,null,null,null,null,null,null,15,"Programa","DIS","Ingeniería Industrial",20,null,null,null,null,null,64,28,1,28,"ECO","GECS (Grupo de Investigación en Contabilidad y Sociedad)","COL0117722","R","http://scienti.colciencias.gov.co:8085/gruplac/jsp/visualiza/visualizagr.jsp?nro=00000000011887","BB264:BB265",{"$f":"ROW()","v":33},{"$f":"MINA(IF(AQ33=$BA$4:$BA$401,$BD$4:$BD$401))","v":264},{"$f":"MAXA(IF(AQ33=$BA$4:$BA$401,$BD$4:$BD$401))","v":265},"ECO",null,null,"COL0028918","Constitución, derecho público y estado",{"$f":"COUNTIF(BA$4:BA33,BA33)","v":1},{"$f":"ROW()","v":33},1,null,"COL0050982",1]
[null,null,null,null,null,null,null,null,null,null,null,null,null,null,null,null,null,null,null,null,null,null,null,null,null,null,16,"Programa","DIS","Ingeniería Informática",21,null,null,null,null,null,21,29,1,29,"EES","Estudios Internacionales y Políticos","COL0066768","C","http://scienti.colciencias.gov.co:8085/gruplac/jsp/visualiza/visualizagr.jsp?nro=00000000004270","BB73:BB78",{"$f":"ROW()","v":34},{"$f":"MINA(IF(AQ34=$BA$4:$BA$401,$BD$4:$BD$401))","v":73},{"$f":"MAXA(IF(AQ34=$BA$4:$BA$401,$BD$4:$BD$401))","v":78},"EES",null,null,"COL0028918","Derecho historia y filosofía",{"$f":"COUNTIF(BA$4:BA34,BA34)","v":2},{"$f":"ROW()","v":34},1,null,"COL0062704",1]
[null,null,null,null,null,null,null,null,null,null,null,null,null,null,null,null,null,null,null,null,null,null,null,null,null,null,16,"Programa","DIS","Relaciones Internacionales y Estudios Políticos","X",null,null,null,null,null,53,30,1,30,"EES","Sociedad, Estrategia y Seguridad","COL0066669","C","http://scienti.colciencias.gov.co:8085/gruplac/jsp/visualiza/visualizagr.jsp?nro=00000000004263","BB221:BB224",{"$f":"ROW()","v":35},{"$f":"MINA(IF(AQ35=$BA$4:$BA$401,$BD$4:$BD$401))","v":221},{"$f":"MAXA(IF(AQ35=$BA$4:$BA$401,$BD$4:$BD$401))","v":224},"EES",null,null,"COL0028918","Derecho internacional, derechos humanos, derecho internacional humanitario",{"$f":"COUNTIF(BA$4:BA35,BA35)","v":3},{"$f":"ROW()","v":35},1,null,"COL0077814",1]
[null,null,null,null,null,null,null,null,null,null,null,null,null,null,null,null,null,null,null,null,null,null,null,null,null,null,17,"Programa","DIS","Especialización en Alta Gerencia",54,null,null,null,null,null,9,31,1,31,"HUM","LIDERAZGO","COL0015722","A","http://scienti.colciencias.gov.co:8085/gruplac/jsp/visualiza/visualizagr.jsp?nro=00000000000744","BB26:BB27",{"$f":"ROW()","v":36},{"$f":"MINA(IF(AQ36=$BA$4:$BA$401,$BD$4:$BD$401))","v":26},{"$f":"MAXA(IF(AQ36=$BA$4:$BA$401,$BD$4:$BD$401))","v":27},"HUM",null,null,"COL0028918","Derecho penal y justicia militar",{"$f":"COUNTIF(BA$4:BA36,BA36)","v":4},{"$f":"ROW()","v":36},1,null,"COL0067371",{"$f":"COUNTIF($AQ$4:$AQ$75,BG36)","v":1}]
[null,null,null,null,null,null,null,null,null,null,null,null,null,null,null,null,null,null,null,null,null,null,null,null,null,null,18,"Programa","ECO","Administración de Empresas","X",null,null,null,null,null,23,32,1,32,"HUM","HUMANITAS","COL0101099","B","http://scienti.colciencias.gov.co:8085/gruplac/jsp/visualiza/visualizagr.jsp?nro=00000000010165","BB85:BB88",{"$f":"ROW()","v":37},{"$f":"MINA(IF(AQ37=$BA$4:$BA$401,$BD$4:$BD$401))","v":85},{"$f":"MAXA(IF(AQ37=$BA$4:$BA$401,$BD$4:$BD$401))","v":88},"HUM",null,null,"COL0028918","Derecho, educación y sociedad",{"$f":"COUNTIF(BA$4:BA37,BA37)","v":5},{"$f":"ROW()","v":37},1,null,"COL0086179",1]
[null,null,null,null,null,null,null,null,null,null,null,null,null,null,null,null,null,null,null,null,null,null,null,null,null,null,18,"Programa","ECO","Contaduría Pública","X",null,null,null,null,null,38,33,1,33,"HUM","Cultura y Desarrollo Humano","COL0002896","R","http://scienti.colciencias.gov.co:8085/gruplac/jsp/visualiza/visualizagr.jsp?nro=00000000000740","BB159:BB161",{"$f":"ROW()","v":38},{"$f":"MINA(IF(AQ38=$BA$4:$BA$401,$BD$4:$BD$401))","v":159},{"$f":"MAXA(IF(AQ38=$BA$4:$BA$401,$BD$4:$BD$401))","v":161},"HUM",null,null,"COL0039321","Análisis de matrices",{"$f":"COUNTIF(BA$4:BA38,BA38)","v":1},{"$f":"ROW()","v":38},1,null,"COL0077707",1]
[null,null,null,null,null,null,null,null,null,null,null,null,null,null,null,null,null,null,null,null,null,null,null,null,null,null,18,"Programa","ECO","Economía","X",null,null,null,null,null,50,34,1,34,"HUM","BioethicsGroup","COL0031824","A","http://scienti.colciencias.gov.co:8085/gruplac/jsp/visualiza/visualizagr.jsp?nro=00000000001353","BB209:BB212",{"$f":"ROW()","v":39},{"$f":"MINA(IF(AQ39=$BA$4:$BA$401,$BD$4:$BD$401))","v":209},{"$f":"MAXA(IF(AQ39=$BA$4:$BA$401,$BD$4:$BD$401))","v":212},"HUM",null,null,"COL0039321","Filosofía de la ciencia: filosofía de la física",{"$f":"COUNTIF(BA$4:BA39,BA39)","v":2},{"$f":"ROW()","v":39},1,null,"COL0028687",1]
[null,null,null,null,null,null,null,null,null,null,null,null,null,null,null,null,null,null,null,null,null,null,null,null,null,null,18,"Programa","ECO","Maestría en Gestión de Organizaciones ",24,null,null,null,null,null,5,35,1,35,"ING","Grupo de Investigación en Multimedia -GIM-","COL0044859","C","http://scienti.colciencias.gov.co:8085/gruplac/jsp/visualiza/visualizagr.jsp?nro=00000000002706","BB17:BB20",{"$f":"ROW()","v":40},{"$f":"MINA(IF(AQ40=$BA$4:$BA$401,$BD$4:$BD$401))","v":17},{"$f":"MAXA(IF(AQ40=$BA$4:$BA$401,$BD$4:$BD$401))","v":20},"ING",null,null,"COL0039321","Leyes de conservación hiperbólica",{"$f":"COUNTIF(BA$4:BA40,BA40)","v":3},{"$f":"ROW()","v":40},1,null,"COL0096032",1]
[null,null,null,null,null,null,null,null,null,null,null,null,null,null,null,null,null,null,null,null,null,null,null,null,null,null,19,"Programa","ECO","Especialización en Alta Gerencia",25,null,null,null,null,null,10,36,1,36,"ING","GEOTECNIA","COL0005439","C","http://scienti.colciencias.gov.co:8085/gruplac/jsp/visualiza/visualizagr.jsp?nro=00000000000739","BB28:BB32",{"$f":"ROW()","v":41},{"$f":"MINA(IF(AQ41=$BA$4:$BA$401,$BD$4:$BD$401))","v":28},{"$f":"MAXA(IF(AQ41=$BA$4:$BA$401,$BD$4:$BD$401))","v":32},"ING",null,null,"COL0039321","Matemáticas aplicadas",{"$f":"COUNTIF(BA$4:BA41,BA41)","v":4},{"$f":"ROW()","v":41},1,null,"COL0107771",1]
[null,null,null,null,null,null,null,null,null,null,null,null,null,null,null,null,null,null,null,null,null,null,null,null,null,null,20,"Programa","ECO","Especialización en Administración Aeronáutica y Aeroespacial",26,null,null,null,null,null,14,37,1,37,"ING","TIGUM: Grupo de Investigacion en Telemedicina Universidad Militar","COL0052181","C","http://scienti.colciencias.gov.co:8085/gruplac/jsp/visualiza/visualizagr.jsp?nro=00000000003508","BB46:BB50",{"$f":"ROW()","v":42},{"$f":"MINA(IF(AQ42=$BA$4:$BA$401,$BD$4:$BD$401))","v":46},{"$f":"MAXA(IF(AQ42=$BA$4:$BA$401,$BD$4:$BD$401))","v":50},"ING",null,null,"COL0039321","Solución numérica de ecuaciones diferenciales parciales",{"$f":"COUNTIF(BA$4:BA42,BA42)","v":5},{"$f":"ROW()","v":42},1,null,"COL0110329",1]
[null,null,null,null,null,null,null,null,null,null,null,null,null,null,null,null,null,null,null,null,null,null,null,null,null,null,21,"Programa","ECO","Especialización en Control Interno",27,null,null,null,null,null,16,38,1,38,"ING","VOLTA - GMCDP","COL0065804","A1","http://scienti.colciencias.gov.co:8085/gruplac/jsp/visualiza/visualizagr.jsp?nro=00000000004193","BB56:BB60",{"$f":"ROW()","v":43},{"$f":"MINA(IF(AQ43=$BA$4:$BA$401,$BD$4:$BD$401))","v":56},{"$f":"MAXA(IF(AQ43=$BA$4:$BA$401,$BD$4:$BD$401))","v":60},"ING",null,null,"COL0050294","Economía de la defensa y del conflicto",{"$f":"COUNTIF(BA$4:BA43,BA43)","v":1},{"$f":"ROW()","v":43},1,null,"COL0110436\n",0]
[null,null,null,null,null,null,null,null,null,null,null,null,null,null,null,null,null,null,null,null,null,null,null,null,null,null,22,"Programa","ECO","Especialización en Gestión de Desarrollo Administrativo",28,null,null,null,null,null,27,39,1,39,"ING","PRODUCCION, INNOVACION Y TECNOLOGIA","COL0049999","C","http://scienti.colciencias.gov.co:8085/gruplac/jsp/visualiza/visualizagr.jsp?nro=00000000003290","BB112:BB117",{"$f":"ROW()","v":44},{"$f":"MINA(IF(AQ44=$BA$4:$BA$401,$BD$4:$BD$401))","v":112},{"$f":"MAXA(IF(AQ44=$BA$4:$BA$401,$BD$4:$BD$401))","v":117},"ING",null,null,"COL0050294","Gestión Ambiental",{"$f":"COUNTIF(BA$4:BA44,BA44)","v":2},{"$f":"ROW()","v":44},1,null,"COL0114201",0]
[null,null,null,null,null,null,null,null,null,null,null,null,null,null,null,null,null,null,null,null,null,null,null,null,null,null,23,"Programa","ECO","Especialización en Gerencia en Comercio Internacional",29,null,null,null,null,null,29,40,1,40,"ING","GIDAM","COL0116636","C","http://scienti.colciencias.gov.co:8085/gruplac/jsp/visualiza/visualizagr.jsp?nro=00000000011773","BB121:BB124",{"$f":"ROW()","v":45},{"$f":"MINA(IF(AQ45=$BA$4:$BA$401,$BD$4:$BD$401))","v":121},{"$f":"MAXA(IF(AQ45=$BA$4:$BA$401,$BD$4:$BD$401))","v":124},"ING",null,null,"COL0050294","Política Económica",{"$f":"COUNTIF(BA$4:BA45,BA45)","v":3},{"$f":"ROW()","v":45},1,null,"COL0116439",1]
[null,null,null,null,null,null,null,null,null,null,null,null,null,null,null,null,null,null,null,null,null,null,null,null,null,null,24,"Programa","ECO","Especialización en Finanzas y Administración Pública",30,null,null,null,null,null,31,41,1,41,"ING","DAVINCI","COL0036025","A","http://scienti.colciencias.gov.co:8085/gruplac/jsp/visualiza/visualizagr.jsp?nro=00000000001843","BB130:BB133",{"$f":"ROW()","v":46},{"$f":"MINA(IF(AQ46=$BA$4:$BA$401,$BD$4:$BD$401))","v":130},{"$f":"MAXA(IF(AQ46=$BA$4:$BA$401,$BD$4:$BD$401))","v":133},"ING",null,null,"COL0052181","Big Data Analytics",{"$f":"COUNTIF(BA$4:BA46,BA46)","v":1},{"$f":"ROW()","v":46},1,null,"COL0116538",1]
[null,null,null,null,null,null,null,null,null,null,null,null,null,null,null,null,null,null,null,null,null,null,null,null,null,null,25,"Programa","ECO","Especialización en Mercadeo de Servicios",31,null,null,null,null,null,33,42,1,42,"ING","Estructuras y sísmica","COL0016999","C","http://scienti.colciencias.gov.co:8085/gruplac/jsp/visualiza/visualizagr.jsp?nro=00000000000737","BB139:BB143",{"$f":"ROW()","v":47},{"$f":"MINA(IF(AQ47=$BA$4:$BA$401,$BD$4:$BD$401))","v":139},{"$f":"MAXA(IF(AQ47=$BA$4:$BA$401,$BD$4:$BD$401))","v":143},"ING",null,null,"COL0052181","Gestión hospitalaria",{"$f":"COUNTIF(BA$4:BA47,BA47)","v":2},{"$f":"ROW()","v":47},1,null,"COL0116636",1]
[null,null,null,null,null,null,null,null,null,null,null,null,null,null,null,null,null,null,null,null,null,null,null,null,null,null,26,"Programa","ECO","Especialización en Revisoría Fiscal y Auditoría Internacional",32,null,null,null,null,null,34,43,1,43,"ING","INGENIERÍA, GEOMÁTICA Y EDUCACIÓN (IGE)","COL0047566","C","http://scienti.colciencias.gov.co:8085/gruplac/jsp/visualiza/visualizagr.jsp?nro=00000000003044","BB144:BB149",{"$f":"ROW()","v":48},{"$f":"MINA(IF(AQ48=$BA$4:$BA$401,$BD$4:$BD$401))","v":144},{"$f":"MAXA(IF(AQ48=$BA$4:$BA$401,$BD$4:$BD$401))","v":149},"ING",null,null,"COL0052181","Procesamiento de seńales, datos, imagen y video",{"$f":"COUNTIF(BA$4:BA48,BA48)","v":3},{"$f":"ROW()","v":48},1,null,"COL0117052",1]
[null,null,null,null,null,null,null,null,null,null,null,null,null,null,null,null,null,null,null,null,null,null,null,null,null,null,27,"Programa","EES","Relaciones Internacionales y Estudios Políticos",12,null,null,null,null,null,37,44,1,44,"ING","ACCEDER","COL0036749","C","http://scienti.colciencias.gov.co:8085/gruplac/jsp/visualiza/visualizagr.jsp?nro=00000000012996","BB157:BB158",{"$f":"ROW()","v":49},{"$f":"MINA(IF(AQ49=$BA$4:$BA$401,$BD$4:$BD$401))","v":157},{"$f":"MAXA(IF(AQ49=$BA$4:$BA$401,$BD$4:$BD$401))","v":158},"ING",null,null,"COL0052181","Tele-cardiología y prevención",{"$f":"COUNTIF(BA$4:BA49,BA49)","v":4},{"$f":"ROW()","v":49},1,null,"COL0117722",1]
[null,null,null,null,null,null,null,null,null,null,null,null,null,null,null,null,null,null,null,null,null,null,null,null,null,null,28,"Programa","EES","Administración de la Seguridad y Salud Ocupacional",13,null,null,null,null,null,49,45,1,45,"ING","Tratamiento de agua","COL0026486","C","http://scienti.colciencias.gov.co:8085/gruplac/jsp/visualiza/visualizagr.jsp?nro=00000000000767","BB206:BB208",{"$f":"ROW()","v":50},{"$f":"MINA(IF(AQ50=$BA$4:$BA$401,$BD$4:$BD$401))","v":206},{"$f":"MAXA(IF(AQ50=$BA$4:$BA$401,$BD$4:$BD$401))","v":208},"ING",null,null,"COL0052181","Telemetría (IoT-Routing)",{"$f":"COUNTIF(BA$4:BA50,BA50)","v":5},{"$f":"ROW()","v":50},1,null,"COL0125107",0]
[null,null,null,null,null,null,null,null,null,null,null,null,null,null,null,null,null,null,null,null,null,null,null,null,null,null,29,"Programa","EES","Relaciones Internacionales y Estudios Políticos",22,null,null,null,null,null,52,46,1,46,"ING","GISSIC: Grupo de Investigacion en Seguridad y Sistemas de Comunicaciones","COL0052163","A","http://scienti.colciencias.gov.co:8085/gruplac/jsp/visualiza/visualizagr.jsp?nro=00000000003506","BB216:BB220",{"$f":"ROW()","v":51},{"$f":"MINA(IF(AQ51=$BA$4:$BA$401,$BD$4:$BD$401))","v":216},{"$f":"MAXA(IF(AQ51=$BA$4:$BA$401,$BD$4:$BD$401))","v":220},"ING",null,null,"COL0107771","Calidad de Vida de las enfermedades respiratorias en la nińez",{"$f":"COUNTIF(BA$4:BA51,BA51)","v":1},{"$f":"ROW()","v":51},1,null,"COL0125134",1]
[null,null,null,null,null,null,null,null,null,null,null,null,null,null,null,null,null,null,null,null,null,null,null,null,null,null,30,"Programa","EES","Administración de la Seguridad y Salud Ocupacional",23,null,null,null,null,null,54,47,1,47,"ING","GAV","COL0068762","A","http://scienti.colciencias.gov.co:8085/gruplac/jsp/visualiza/visualizagr.jsp?nro=00000000004391","BB225:BB230",{"$f":"ROW()","v":52},{"$f":"MINA(IF(AQ52=$BA$4:$BA$401,$BD$4:$BD$401))","v":225},{"$f":"MAXA(IF(AQ52=$BA$4:$BA$401,$BD$4:$BD$401))","v":230},"ING",null,null,"COL0107771","Enfermedad bronquial obstructiva recurrente en nińos (Asma, sibilancias inducidas por virus, sibilancias recurrentes, sibilancias persistentes de múltiples desencadenantes)",{"$f":"COUNTIF(BA$4:BA52,BA52)","v":2},{"$f":"ROW()","v":52},1,null,"COL0126015",1]
[null,null,null,null,null,null,null,null,null,null,null,null,null,null,null,null,null,null,null,null,null,null,null,null,null,null,31,"Programa","EES","Maestría en Relaciones y Negocios Internacionales",44,null,null,null,null,null,57,48,1,48,"ING","Energia alternativa, Centro Multidisciplinario de Investigación","COL0117052","C","http://scienti.colciencias.gov.co:8085/gruplac/jsp/visualiza/visualizagr.jsp?nro=00000000011817","BB243:BB247",{"$f":"ROW()","v":53},{"$f":"MINA(IF(AQ53=$BA$4:$BA$401,$BD$4:$BD$401))","v":243},{"$f":"MAXA(IF(AQ53=$BA$4:$BA$401,$BD$4:$BD$401))","v":247},"ING",null,null,"COL0107771","Enfermedad pulmonar obstructiva crónica del Recién Nacido",{"$f":"COUNTIF(BA$4:BA53,BA53)","v":3},{"$f":"ROW()","v":53},1,null,"COL0126777",1]
[null,null,null,null,null,null,null,null,null,null,null,null,null,null,null,null,null,null,null,null,null,null,null,null,null,null,32,"Programa","EES","Especialización en Administración de la Seguridad",45,null,null,null,null,null,60,49,1,49,"ING","GI-iTEC - Grupo de Investigación e innovación Tecnológica en Electrónica y Comunicaciones","COL0143731","C","http://scienti.colciencias.gov.co:8085/gruplac/jsp/visualiza/visualizagr.jsp?nro=00000000014576","BB256:BB258",{"$f":"ROW()","v":54},{"$f":"MINA(IF(AQ54=$BA$4:$BA$401,$BD$4:$BD$401))","v":256},{"$f":"MAXA(IF(AQ54=$BA$4:$BA$401,$BD$4:$BD$401))","v":258},"ING",null,null,"COL0107771","Enfermedades infecciosas de la infancia (Rinosinusitis, Croup, Bronquiolitis, Neumonía, Tuberculosis, Infección por VIH con afectación pulmonar)",{"$f":"COUNTIF(BA$4:BA54,BA54)","v":4},{"$f":"ROW()","v":54},1,null,"COL0127649",1]
[null,null,null,null,null,null,null,null,null,null,null,null,null,null,null,null,null,null,null,null,null,null,null,null,null,null,33,"Programa","EES","Especialización en Alta Gerencia de la Seguridad y Defensa",46,null,null,null,null,null,66,50,1,50,"ING","LA TRAMOYA","COL0126777","C","http://scienti.colciencias.gov.co:8085/gruplac/jsp/visualiza/visualizagr.jsp?nro=00000000012813","BB266:BB269",{"$f":"ROW()","v":55},{"$f":"MINA(IF(AQ55=$BA$4:$BA$401,$BD$4:$BD$401))","v":266},{"$f":"MAXA(IF(AQ55=$BA$4:$BA$401,$BD$4:$BD$401))","v":269},"ING",null,null,"COL0107771","Fármaco economía de las enfermedades respiratorias en la infancia",{"$f":"COUNTIF(BA$4:BA55,BA55)","v":5},{"$f":"ROW()","v":55},1,null,"COL0128047",1]
[null,null,null,null,null,null,null,null,null,null,null,null,null,null,null,null,null,null,null,null,null,null,null,null,null,null,34,"Programa","HUM","Especialización en Docencia Universitaria",55,null,null,null,null,null,70,51,1,51,"ING","GREST","COL0151789","C","http://scienti.colciencias.gov.co:8085/gruplac/jsp/visualiza/visualizagr.jsp?nro=00000000015386","BB282:BB288",{"$f":"ROW()","v":56},{"$f":"MINA(IF(AQ56=$BA$4:$BA$401,$BD$4:$BD$401))","v":282},{"$f":"MAXA(IF(AQ56=$BA$4:$BA$401,$BD$4:$BD$401))","v":288},"ING",null,null,"COL0065804","Biomecánica",{"$f":"COUNTIF(BA$4:BA56,BA56)","v":1},{"$f":"ROW()","v":56},1,null,"COL0036749",1]
[null,null,null,null,null,null,null,null,null,null,null,null,null,null,null,null,null,null,null,null,null,null,null,null,null,null,35,"Programa","HUM","Maestría en Educación",55,null,null,null,null,null,1,52,1,52,"MED","CATCH","COL0049659","C","http://scienti.colciencias.gov.co:8085/gruplac/jsp/visualiza/visualizagr.jsp?nro=00000000003253","BB4:BB5",{"$f":"ROW()","v":57},{"$f":"MINA(IF(AQ57=$BA$4:$BA$401,$BD$4:$BD$401))","v":4},{"$f":"MAXA(IF(AQ57=$BA$4:$BA$401,$BD$4:$BD$401))","v":5},"MED",null,null,"COL0065804","Desarrollos mecatrónicos",{"$f":"COUNTIF(BA$4:BA57,BA57)","v":2},{"$f":"ROW()","v":57},1,null,"COL0129689",1]
[null,null,null,null,null,null,null,null,null,null,null,null,null,null,null,null,null,null,null,null,null,null,null,null,null,null,36,"Programa","ING","Ingeniería Ambiental",4,null,null,null,null,null,6,53,1,53,"MED","BONE","COL0047762","C","http://scienti.colciencias.gov.co:8085/gruplac/jsp/visualiza/visualizagr.jsp?nro=00000000003064","BB21:BB22",{"$f":"ROW()","v":58},{"$f":"MINA(IF(AQ58=$BA$4:$BA$401,$BD$4:$BD$401))","v":21},{"$f":"MAXA(IF(AQ58=$BA$4:$BA$401,$BD$4:$BD$401))","v":22},"MED",null,null,"COL0065804","Energías Renovables",{"$f":"COUNTIF(BA$4:BA58,BA58)","v":3},{"$f":"ROW()","v":58},1,null,"COL0138796",1]
[null,null,null,null,null,null,null,null,null,null,null,null,null,null,null,null,null,null,null,null,null,null,null,null,null,null,37,"Programa","ING","Ingeniería Biomédica",5,null,null,null,null,null,7,54,1,54,"MED","Grupo de Psoriasis e Inmunodermatologia","COL0126015","C","http://scienti.colciencias.gov.co:8085/gruplac/jsp/visualiza/visualizagr.jsp?nro=00000000012737","BB23:BB24",{"$f":"ROW()","v":59},{"$f":"MINA(IF(AQ59=$BA$4:$BA$401,$BD$4:$BD$401))","v":23},{"$f":"MAXA(IF(AQ59=$BA$4:$BA$401,$BD$4:$BD$401))","v":24},"MED",null,null,"COL0065804","Gerencia Proyectos Ingeniería",{"$f":"COUNTIF(BA$4:BA59,BA59)","v":4},{"$f":"ROW()","v":59},1,null,"COL0142331",1]
[null,null,null,null,null,null,null,null,null,null,null,null,null,null,null,null,null,null,null,null,null,null,null,null,null,null,38,"Programa","ING","Ingeniería Civil",6,null,null,null,null,null,15,55,1,55,"MED","Grupo para el estudio de enfermedades respiratorias en nińos. Respira","COL0107771","C","http://scienti.colciencias.gov.co:8085/gruplac/jsp/visualiza/visualizagr.jsp?nro=00000000010842","BB51:BB55",{"$f":"ROW()","v":60},{"$f":"MINA(IF(AQ60=$BA$4:$BA$401,$BD$4:$BD$401))","v":51},{"$f":"MAXA(IF(AQ60=$BA$4:$BA$401,$BD$4:$BD$401))","v":55},"MED",null,null,"COL0065804","Materiales y Procesos de Manufactura",{"$f":"COUNTIF(BA$4:BA60,BA60)","v":5},{"$f":"ROW()","v":60},1,null,"COL0142449",1]
[null,null,null,null,null,null,null,null,null,null,null,null,null,null,null,null,null,null,null,null,null,null,null,null,null,null,39,"Programa","ING","Ingeniería Industrial",7,null,null,null,null,null,19,56,1,56,"MED","Salud y Comportamiento","COL0033239","NR","http://scienti.colciencias.gov.co:8085/gruplac/jsp/visualiza/visualizagr.jsp?nro=00000000001536","BB66:BB68",{"$f":"ROW()","v":61},{"$f":"MINA(IF(AQ61=$BA$4:$BA$401,$BD$4:$BD$401))","v":66},{"$f":"MAXA(IF(AQ61=$BA$4:$BA$401,$BD$4:$BD$401))","v":68},"MED",null,null,"COL0027367","Aprendizaje en Economía",{"$f":"COUNTIF(BA$4:BA61,BA61)","v":1},{"$f":"ROW()","v":61},1,null,"COL0016999",1]
[null,null,null,null,null,null,null,null,null,null,null,null,null,null,null,null,null,null,null,null,null,null,null,null,null,null,40,"Programa","ING","Ingeniería en Mecatrónica",8,null,null,null,null,null,24,57,1,57,"MED","GRUPO NEUROCIENCIAS HMC","COL0138698","B","http://scienti.colciencias.gov.co:8085/gruplac/jsp/visualiza/visualizagr.jsp?nro=00000000014072","BB89:BB101",{"$f":"ROW()","v":62},{"$f":"MINA(IF(AQ62=$BA$4:$BA$401,$BD$4:$BD$401))","v":89},{"$f":"MAXA(IF(AQ62=$BA$4:$BA$401,$BD$4:$BD$401))","v":101},"MED",null,null,"COL0027367","Demografía y Economía Laboral",{"$f":"COUNTIF(BA$4:BA62,BA62)","v":2},{"$f":"ROW()","v":62},1,null,"COL0005439",1]
[null,null,null,null,null,null,null,null,null,null,null,null,null,null,null,null,null,null,null,null,null,null,null,null,null,null,41,"Programa","ING","Ingeniería en Multimedia",9,null,null,null,null,null,25,58,1,58,"MED","Grupo de Investigacion en Dermatologia HMC","COL0116439","C","http://scienti.colciencias.gov.co:8085/gruplac/jsp/visualiza/visualizagr.jsp?nro=00000000011753","BB102:BB106",{"$f":"ROW()","v":63},{"$f":"MINA(IF(AQ63=$BA$4:$BA$401,$BD$4:$BD$401))","v":102},{"$f":"MAXA(IF(AQ63=$BA$4:$BA$401,$BD$4:$BD$401))","v":106},"MED",null,null,"COL0027367","Polětica Monetaria y Desarrollo Financiero",{"$f":"COUNTIF(BA$4:BA63,BA63)","v":3},{"$f":"ROW()","v":63},1,null,"COL0002896",1]
[null,null,null,null,null,null,null,null,null,null,null,null,null,null,null,null,null,null,null,null,null,null,null,null,null,null,42,"Programa","ING","Ingenieria en Telecomunicaciones",10,null,null,null,null,null,35,59,1,59,"MED","Células Stem Adultas","COL0050982","C","http://scienti.colciencias.gov.co:8085/gruplac/jsp/visualiza/visualizagr.jsp?nro=00000000005735","BB150:BB153",{"$f":"ROW()","v":64},{"$f":"MINA(IF(AQ64=$BA$4:$BA$401,$BD$4:$BD$401))","v":150},{"$f":"MAXA(IF(AQ64=$BA$4:$BA$401,$BD$4:$BD$401))","v":153},"MED",null,null,"COL0032278","Biología y Ecología de plagas y enemigos naturales de cultivos de importancia económica",{"$f":"COUNTIF(BA$4:BA64,BA64)","v":1},{"$f":"ROW()","v":64},1,null,"COL0013719",1]
[null,null,null,null,null,null,null,null,null,null,null,null,null,null,null,null,null,null,null,null,null,null,null,null,null,null,43,"Programa","ING","Tecnología en Electrónica y Comunicaciones",11,null,null,null,null,null,36,60,1,60,"MED","Grupo de Salud Oral y Cirugia Maxilofacial","COL0129689","C","http://scienti.colciencias.gov.co:8085/gruplac/jsp/visualiza/visualizagr.jsp?nro=00000000013172","BB154:BB156",{"$f":"ROW()","v":65},{"$f":"MINA(IF(AQ65=$BA$4:$BA$401,$BD$4:$BD$401))","v":154},{"$f":"MAXA(IF(AQ65=$BA$4:$BA$401,$BD$4:$BD$401))","v":156},"MED",null,null,"COL0032278","Generación de recomendaciones para el manejo integrado de plagas, mediante el diseńo de modelos de simulación de agroecosistemas",{"$f":"COUNTIF(BA$4:BA65,BA65)","v":2},{"$f":"ROW()","v":65},1,null,"COL0101099",1]
[null,null,null,null,null,null,null,null,null,null,null,null,null,null,null,null,null,null,null,null,null,null,null,null,null,null,44,"Programa","ING","Maestría en Ingeniería Mecatrónica",34,null,null,null,null,null,45,61,1,61,"MED","Kokhlias.","COL0125134","C","http://scienti.colciencias.gov.co:8085/gruplac/jsp/visualiza/visualizagr.jsp?nro=00000000012649","BB186:BB192",{"$f":"ROW()","v":66},{"$f":"MINA(IF(AQ66=$BA$4:$BA$401,$BD$4:$BD$401))","v":186},{"$f":"MAXA(IF(AQ66=$BA$4:$BA$401,$BD$4:$BD$401))","v":192},"MED",null,null,"COL0033239","Prevención de la enfermedad y promoción de la salud",{"$f":"COUNTIF(BA$4:BA66,BA66)","v":1},{"$f":"ROW()","v":66},1,null,"COL0044859",1]
[null,null,null,null,null,null,null,null,null,null,null,null,null,null,null,null,null,null,null,null,null,null,null,null,null,null,45,"Programa","ING","Maestría en Ingeniería Civil",35,null,null,null,null,null,46,62,1,62,"MED","Grupo de Rehabilitacion HOMIC-UMNG","COL0120281","NR","http://scienti.colciencias.gov.co:8085/gruplac/jsp/visualiza/visualizagr.jsp?nro=00000000012152","BB193:BB197",{"$f":"ROW()","v":67},{"$f":"MINA(IF(AQ67=$BA$4:$BA$401,$BD$4:$BD$401))","v":193},{"$f":"MAXA(IF(AQ67=$BA$4:$BA$401,$BD$4:$BD$401))","v":197},"MED",null,null,"COL0033239","Salud Mental y Calidad de Vida",{"$f":"COUNTIF(BA$4:BA67,BA67)","v":2},{"$f":"ROW()","v":67},1,null,"COL0149359",1]
[null,null,null,null,null,null,null,null,null,null,null,null,null,null,null,null,null,null,null,null,null,null,null,null,null,null,46,"Programa","ING","Maestría en Logística Integral",36,null,null,null,null,null,48,63,{"$f":"COUNTIF($AN$4:$AN$806,AL68)","v":1},63,"MED","Grupo de Investigacion en Urologia HMC","COL0116538","C","http://scienti.colciencias.gov.co:8085/gruplac/jsp/visualiza/visualizagr.jsp?nro=00000000011763","BB200:BB205",{"$f":"ROW()","v":68},{"$f":"MINA(IF(AQ68=$BA$4:$BA$401,$BD$4:$BD$401))","v":200},{"$f":"MAXA(IF(AQ68=$BA$4:$BA$401,$BD$4:$BD$401))","v":205},"MED",null,null,"COL0033239","Salud Sexual y Reproductiva",{"$f":"COUNTIF(BA$4:BA68,BA68)","v":3},{"$f":"ROW()","v":68},{"$f":"COUNTIF($AQ$3:$AQ$83,BA68)","v":1},null,"COL0143731",{"$f":"COUNTIF($AQ$4:$AQ$75,BG68)","v":1}]
[null,null,null,null,null,null,null,null,null,null,null,null,null,null,null,null,null,null,null,null,null,null,null,null,null,null,47,"Programa","ING","Maestría en Gerencia de Proyectos",37,null,null,null,null,null,51,64,1,64,"MED","Epidemiología molecular de enfermedades endocrinas","COL0045848","NR","http://scienti.colciencias.gov.co:8085/gruplac/jsp/visualiza/visualizagr.jsp?nro=00000000002874","BB213:BB215",{"$f":"ROW()","v":69},{"$f":"MINA(IF(AQ69=$BA$4:$BA$401,$BD$4:$BD$401))","v":213},{"$f":"MAXA(IF(AQ69=$BA$4:$BA$401,$BD$4:$BD$401))","v":215},"MED",null,null,"COL0018448","Ambiente Virtuales de Aprendizaje",{"$f":"COUNTIF(BA$4:BA69,BA69)","v":1},{"$f":"ROW()","v":69},1,null,"\tCOL0151789",0]
[null,null,null,null,null,null,null,null,null,null,null,null,null,null,null,null,null,null,null,null,null,null,null,null,null,null,48,"Programa","ING","Especialización en Geomática",38,null,null,null,null,null,55,65,1,65,"MED","Insight","COL0067371","C","http://scienti.colciencias.gov.co:8085/gruplac/jsp/visualiza/visualizagr.jsp?nro=00000000006698","BB231:BB239",{"$f":"ROW()","v":70},{"$f":"MINA(IF(AQ70=$BA$4:$BA$401,$BD$4:$BD$401))","v":231},{"$f":"MAXA(IF(AQ70=$BA$4:$BA$401,$BD$4:$BD$401))","v":239},"MED",null,null,"COL0018448","Formación pedagógica para el posconflicto en Colombia",{"$f":"COUNTIF(BA$4:BA70,BA70)","v":2},{"$f":"ROW()","v":70},1,null,"COL0152472",1]
[null,null,null,null,null,null,null,null,null,null,null,null,null,null,null,null,null,null,null,null,null,null,null,null,null,null,49,"Programa","ING","Especialización en Gerencia de la Calidad",39,null,null,null,null,null,59,66,1,66,"MED","EDUMECIS","COL0152463","R","http://scienti.colciencias.gov.co:8085/gruplac/jsp/visualiza/visualizagr.jsp?nro=00000000015421","BB253:BB255",{"$f":"ROW()","v":71},{"$f":"MINA(IF(AQ71=$BA$4:$BA$401,$BD$4:$BD$401))","v":253},{"$f":"MAXA(IF(AQ71=$BA$4:$BA$401,$BD$4:$BD$401))","v":255},"MED",null,null,"COL0018448","Formación pedagógica para el posconflicto en Colombia",{"$f":"COUNTIF(BA$4:BA71,BA71)","v":3},{"$f":"ROW()","v":71},1,null,"COL0152319",1]
[null,null,null,null,null,null,null,null,null,null,null,null,null,null,null,null,null,null,null,null,null,null,null,null,null,null,50,"Programa","ING","Especialización en Gerencia en Logística Integral",40,null,null,null,null,null,62,67,1,67,"MED","BioGenEtica & BioDerecho","COL0096032","C","http://scienti.colciencias.gov.co:8085/gruplac/jsp/visualiza/visualizagr.jsp?nro=00000000009651","BB260:BB263",{"$f":"ROW()","v":72},{"$f":"MINA(IF(AQ72=$BA$4:$BA$401,$BD$4:$BD$401))","v":260},{"$f":"MAXA(IF(AQ72=$BA$4:$BA$401,$BD$4:$BD$401))","v":263},"MED",null,null,"COL0018448","Gestión del conocimiento y calidad de la educación superior",{"$f":"COUNTIF(BA$4:BA72,BA72)","v":4},{"$f":"ROW()","v":72},1,null,"COL0152463",1]
[null,null,null,null,null,null,null,null,null,null,null,null,null,null,null,null,null,null,null,null,null,null,null,null,null,null,51,"Programa","ING","Especialización en Gerencia Integral de Proyectos",41,null,null,null,null,null,69,70,1,68,"MED","GAFRED","COL0149359","R","http://scienti.colciencias.gov.co:8085/gruplac/jsp/visualiza/visualizagr.jsp?nro=00000000015141","BB279:BB281",{"$f":"ROW()","v":73},{"$f":"MINA(IF(AQ73=$BA$4:$BA$401,$BD$4:$BD$401))","v":279},{"$f":"MAXA(IF(AQ73=$BA$4:$BA$401,$BD$4:$BD$401))","v":281},"MED",null,null,"COL0066768","Derecho de las relaciones internacionales",{"$f":"COUNTIF(BA$4:BA73,BA73)","v":1},{"$f":"ROW()","v":73},1,null,"COL0138698",1]
[null,null,null,null,null,null,null,null,null,null,null,null,null,null,null,null,null,null,null,null,null,null,null,null,null,null,52,"Programa","ING","Especialización en Ingeniería de Pavimentos",42,null,null,null,null,null,71,71,1,69,"MED","Grupo de inmunología Clínica Aplicada (GICA)","COL0152472","C","http://scienti.colciencias.gov.co:8085/gruplac/jsp/visualiza/visualizagr.jsp?nro=00000000015414","BB289:BB290",{"$f":"ROW()","v":74},{"$f":"MINA(IF(AQ74=$BA$4:$BA$401,$BD$4:$BD$401))","v":289},{"$f":"MAXA(IF(AQ74=$BA$4:$BA$401,$BD$4:$BD$401))","v":290},"MED",null,null,"COL0066768","Economía y negocios internacionales",{"$f":"COUNTIF(BA$4:BA74,BA74)","v":2},{"$f":"ROW()","v":74},1,null,"COL0120281",1]
[null,null,null,null,null,null,null,null,null,null,null,null,null,null,null,null,null,null,null,null,null,null,null,null,null,null,53,"Programa","ING","Especialización en Planeación Ambiental y Manejo Integral de los Recursos Naturales",43,null,null,null,null,null,70,70,1,70,"MED","Epidemiología y Salud Colectiva ","COL0152319","C","http://scienti.colciencias.gov.co:8085/gruplac/jsp/visualiza/visualizagr.jsp?nro=00000000015438","BB291:BB295",{"$f":"ROW()","v":75},{"$f":"MINA(IF(AQ75=$BA$4:$BA$401,$BD$4:$BD$401))","v":291},{"$f":"MAXA(IF(AQ75=$BA$4:$BA$401,$BD$4:$BD$401))","v":295},"MED",null,null,"COL0066768","Estudios políticos",{"$f":"COUNTIF(BA$4:BA75,BA75)","v":3},{"$f":"ROW()","v":75},1,null,"COL0136423",1]
[null,null,null,null,null,null,null,null,null,null,null,null,null,null,null,null,null,null,null,null,null,null,null,null,null,null,53,"Programa","ING","Doctorado en Ciencias Aplicadas",43,null,null,null,null,null,73,73,1,73,"MED","Grupo de investigaciones sobre agentes radiológicos, biológicos y químicos","COL0191078","NR","http://scienti.colciencias.gov.co:8085/gruplac/jsp/visualiza/visualizagr.jsp?nro=00000000019309","BB306:BB308",{"$f":"ROW()","v":76},{"$f":"MINA(IF(AQ76=$BA$4:$BA$401,$BD$4:$BD$401))","v":306},{"$f":"MAXA(IF(AQ76=$BA$4:$BA$401,$BD$4:$BD$401))","v":308},"MED",null,null,"COL0066768","Estudios regionales",{"$f":"COUNTIF(BA$4:BA76,BA76)","v":4},{"$f":"ROW()","v":76},1]
[null,null,null,null,null,null,null,null,null,null,null,null,null,null,null,null,null,null,null,null,null,null,null,null,null,null,54,"Programa","MED","Medicina",14,null,null,null,null,null,null,null,null,null,null,null,null,null,null,null,null,null,null,null,null,null,"COL0066768","Historia internacional",{"$f":"COUNTIF(BA$4:BA77,BA77)","v":5},{"$f":"ROW()","v":77},1]
[null,null,null,null,null,null,null,null,null,null,null,null,null,null,null,null,null,null,null,null,null,null,null,null,null,null,55,"Programa","MED","Tecnología en Atención Prehospitalaria",15,null,null,null,null,null,null,null,null,null,null,null,null,null,null,null,null,null,null,null,null,null,"COL0066768","Relaciones internacionales",{"$f":"COUNTIF(BA$4:BA78,BA78)","v":6},{"$f":"ROW()","v":78},1]
[null,null,null,null,null,null,null,null,null,null,null,null,null,null,null,null,null,null,null,null,null,null,null,null,null,null,1,"Tipo Proyecto","INO","Innovación",{"$f":"AC79","v":"INO"},null,null,null,null,null,null,null,null,null,null,null,null,null,null,null,null,null,null,null,null,null,"COL0067504","Gestión Tecnológica",{"$f":"COUNTIF(BA$4:BA79,BA79)","v":1},{"$f":"ROW()","v":79},1]
[null,null,null,null,null,null,null,null,null,null,null,null,null,null,null,null,null,null,null,null,null,null,null,null,null,null,2,"Tipo Proyecto","EMP0","Emprendimiento Fase 0","EMP0",null,null,null,null,null,null,null,null,null,null,null,null,null,null,null,null,null,null,null,null,null,"COL0067504","Gestión del conocimiento",{"$f":"COUNTIF(BA$4:BA80,BA80)","v":2},{"$f":"ROW()","v":80},1]
[null,null,null,null,null,null,null,null,null,null,null,null,null,null,null,null,null,null,null,null,null,null,null,null,null,null,3,"Tipo Proyecto","EMP1","Emprendimiento Fase 1","EMP1",null,null,null,null,null,null,null,null,null,null,null,null,null,null,null,null,null,null,null,null,null,"COL0067504","Los Estilos de enseńanza y Aprendizaje",{"$f":"COUNTIF(BA$4:BA81,BA81)","v":3},{"$f":"ROW()","v":81},1]
[null,null,null,null,null,null,null,null,null,null,null,null,null,null,null,null,null,null,null,null,null,null,null,null,null,null,null,null,null,0,null,null,null,null,null,null,null,null,null,null,null,null,null,null,null,null,null,null,null,null,null,null,"COL0067504","Mercadeo Cuántico",{"$f":"COUNTIF(BA$4:BA82,BA82)","v":4},{"$f":"ROW()","v":82},1]
[null,null,null,null,null,null,null,null,null,null,null,null,null,null,null,null,null,null,null,null,null,null,null,null,null,null,1,"Función","Innovador Principal","Investigador Principal o lider del proyecto","IP",null,null,null,null,null,null,null,null,null,null,null,null,null,null,null,null,null,null,null,null,null,"COL0067504","Mineria Web",{"$f":"COUNTIF(BA$4:BA83,BA83)","v":5},{"$f":"ROW()","v":83},1]
[null,null,null,null,null,null,null,null,null,null,null,null,null,null,null,null,null,null,null,null,null,null,null,null,null,null,2,"Función","Coinnovador","Investigador que apoya al lider del proyecto","CO",null,null,null,null,null,null,null,null,null,null,null,null,null,null,null,null,null,null,null,null,null,"COL0067504","Salud Pública, Bioética e Ingeniería",{"$f":"COUNTIF(BA$4:BA84,BA84)","v":6},{"$f":"ROW()","v":84},1]
[null,null,null,null,null,null,null,null,null,null,null,null,null,null,null,null,null,null,null,null,null,null,null,null,null,null,3,"Función","Asistente OPS","Asistente de Investigacion contratado OPS","OPS",null,null,null,null,null,null,null,null,null,null,null,null,null,null,null,null,null,null,null,null,null,"COL0101099","Educación y Sociedad",{"$f":"COUNTIF(BA$4:BA85,BA85)","v":1},{"$f":"ROW()","v":85},1]
[null,null,null,null,null,null,null,null,null,null,null,null,null,null,null,null,null,null,null,null,null,null,null,null,null,null,4,"Función","Egresado","Estudiante egresado de la UMNG","AR",null,null,null,null,null,null,null,null,null,null,null,null,null,null,null,null,null,null,null,null,null,"COL0101099","Filosofía política y responsabilidad social",{"$f":"COUNTIF(BA$4:BA86,BA86)","v":2},{"$f":"ROW()","v":86},1]
[null,null,null,null,null,null,null,null,null,null,null,null,null,null,null,null,null,null,null,null,null,null,null,null,null,null,5,"Función","Estudiante","Estudiante apoya el proyecto","EST",null,null,null,null,null,null,null,null,null,null,null,null,null,null,null,null,null,null,null,null,null,"COL0101099","Humanidades, cultura y universidad",{"$f":"COUNTIF(BA$4:BA87,BA87)","v":3},{"$f":"ROW()","v":87},1]
[null,null,null,null,null,null,null,null,null,null,null,null,null,null,null,null,null,null,null,null,null,null,null,null,null,null,1,"Vinculo","Doc. Carrera TC","Docente de Carrera Tiempo Completo","DTC",null,null,null,null,null,null,null,null,null,null,null,null,null,null,null,null,null,null,null,null,null,"COL0101099","Liderazgo y gestión en educación.",{"$f":"COUNTIF(BA$4:BA88,BA88)","v":4},{"$f":"ROW()","v":88},1]
[null,null,null,null,null,null,null,null,null,null,null,null,null,null,null,null,null,null,null,null,null,null,null,null,null,null,2,"Vinculo","Doc. Carrera MT","Docente de Carrera Medio Tiempo","DMT",null,null,null,null,null,null,null,null,null,null,null,null,null,null,null,null,null,null,null,null,null,"COL0138698","Bioetica",{"$f":"COUNTIF(BA$4:BA89,BA89)","v":1},{"$f":"ROW()","v":89},1]
[null,null,null,null,null,null,null,null,null,null,null,null,null,null,null,null,null,null,null,null,null,null,null,null,null,null,3,"Vinculo","Doc. Ocasional","Docente de Ocasional","OCA",null,null,null,null,null,null,null,null,null,null,null,null,null,null,null,null,null,null,null,null,null,"COL0138698","Cerebrovascular",{"$f":"COUNTIF(BA$4:BA90,BA90)","v":2},{"$f":"ROW()","v":90},1]
[null,null,null,null,null,null,null,null,null,null,null,null,null,null,null,null,null,null,null,null,null,null,null,null,null,null,4,"Vinculo","OPS - Prestación Servicios","Asistente de Investigacion contratado OPS","OPS",null,null,null,null,null,null,null,null,null,null,null,null,null,null,null,null,null,null,null,null,null,"COL0138698","Demencias",{"$f":"COUNTIF(BA$4:BA91,BA91)","v":3},{"$f":"ROW()","v":91},1]
[null,null,null,null,null,null,null,null,null,null,null,null,null,null,null,null,null,null,null,null,null,null,null,null,null,null,5,"Vinculo","Estudiante","Estudiante activo de pregrado o postgrado","EST",null,null,null,null,null,null,null,null,null,null,null,null,null,null,null,null,null,null,null,null,null,"COL0138698","Distonias",{"$f":"COUNTIF(BA$4:BA92,BA92)","v":4},{"$f":"ROW()","v":92},1]
[null,null,null,null,null,null,null,null,null,null,null,null,null,null,null,null,null,null,null,null,null,null,null,null,null,null,6,"Vinculo","Externo a la UMNG","Docentes Investigadores externos sin vinculo lavoral al U.","EXT",null,null,null,null,null,null,null,null,null,null,null,null,null,null,null,null,null,null,null,null,null,"COL0138698","Enfermedades huerfanas",{"$f":"COUNTIF(BA$4:BA93,BA93)","v":5},{"$f":"ROW()","v":93},1]
[null,null,null,null,null,null,null,null,null,null,null,null,null,null,null,null,null,null,null,null,null,null,null,null,null,null,1,"NBC",11,"Programas y certificaciones básicas",11,null,null,null,null,null,null,null,null,null,null,null,null,null,null,null,null,null,null,null,null,null,"COL0138698","Epilepsia",{"$f":"COUNTIF(BA$4:BA94,BA94)","v":6},{"$f":"ROW()","v":94},1]
[null,null,null,null,null,null,null,null,null,null,null,null,null,null,null,null,null,null,null,null,null,null,null,null,null,null,2,"NBC",21,"Alfabetización y aritmética elemental",21,null,null,null,null,null,null,null,null,null,null,null,null,null,null,null,null,null,null,null,null,null,"COL0138698","Esclerosis múltiple",{"$f":"COUNTIF(BA$4:BA95,BA95)","v":7},{"$f":"ROW()","v":95},1]
[null,null,null,null,null,null,null,null,null,null,null,null,null,null,null,null,null,null,null,null,null,null,null,null,null,null,3,"NBC",31,"Competencias personales y desarrollo",31,null,null,null,null,null,null,null,null,null,null,null,null,null,null,null,null,null,null,null,null,null,"COL0138698","Movimientos anormales",{"$f":"COUNTIF(BA$4:BA96,BA96)","v":8},{"$f":"ROW()","v":96},1]
[null,null,null,null,null,null,null,null,null,null,null,null,null,null,null,null,null,null,null,null,null,null,null,null,null,null,4,"NBC",111,"Ciencias de la educación",111,null,null,null,null,null,null,null,null,null,null,null,null,null,null,null,null,null,null,null,null,null,"COL0138698","Parálisis cerebral",{"$f":"COUNTIF(BA$4:BA97,BA97)","v":9},{"$f":"ROW()","v":97},1]
[null,null,null,null,null,null,null,null,null,null,null,null,null,null,null,null,null,null,null,null,null,null,null,null,null,null,5,"NBC",112,"Formación para docentes de educación pre-primaría",112,null,null,null,null,null,null,null,null,null,null,null,null,null,null,null,null,null,null,null,null,null,"COL0138698","Retardo mental",{"$f":"COUNTIF(BA$4:BA98,BA98)","v":10},{"$f":"ROW()","v":98},1]
[null,null,null,null,null,null,null,null,null,null,null,null,null,null,null,null,null,null,null,null,null,null,null,null,null,null,6,"NBC",113,"Formación para docentes sin asignatura de especialización",113,null,null,null,null,null,null,null,null,null,null,null,null,null,null,null,null,null,null,null,null,null,"COL0138698","Salud mental",{"$f":"COUNTIF(BA$4:BA99,BA99)","v":11},{"$f":"ROW()","v":99},1]
[null,null,null,null,null,null,null,null,null,null,null,null,null,null,null,null,null,null,null,null,null,null,null,null,null,null,7,"NBC",114,"Formación para docentes con asignatura de especialización",114,null,null,null,null,null,null,null,null,null,null,null,null,null,null,null,null,null,null,null,null,null,"COL0138698","Sueño",{"$f":"COUNTIF(BA$4:BA100,BA100)","v":12},{"$f":"ROW()","v":100},1]
[null,null,null,null,null,null,null,null,null,null,null,null,null,null,null,null,null,null,null,null,null,null,null,null,null,null,8,"NBC",211,"Técnicas audiovisuales y producción para medios de comunicación",211,null,null,null,null,null,63,68,{"$f":"COUNTIF($AN$4:$AN$76,AL101)","v":1},"63n","MED","Grupo de Investigación en Farmacología, Toxicología y Terapéutica-UMNG","COL0114201","NA","http://scienti.colciencias.gov.co:8085/gruplac/jsp/visualiza/visualizagr.jsp?nro=00000000011524",{"$f":"$AT$2&AV101&\":\"&$AT$2&AW101","v":"BB0:BB0"},{"$f":"ROW()","v":101},{"$f":"MINA(IF(AQ101=$BA$4:$BA$401,$BD$4:$BD$401))","v":0},{"$f":"MAXA(IF(AQ101=$BA$4:$BA$401,$BD$4:$BD$401))","v":0},"MED",null,null,"COL0138698","Trastornos del neurodesarrollo",{"$f":"COUNTIF(BA$4:BA101,BA101)","v":13},{"$f":"ROW()","v":101},1]
[null,null,null,null,null,null,null,null,null,null,null,null,null,null,null,null,null,null,null,null,null,null,null,null,null,null,9,"NBC",212,"Diseño industrial, de modas e interiores",212,null,null,null,null,null,65,69,{"$f":"COUNTIF($AN$4:$AN$76,AL102)","v":1},"65n","MED","MEDICINA REGENERATIVA HMC UMNG","COL0125107","NA","http://scienti.colciencias.gov.co:8085/gruplac/jsp/visualiza/visualizagr.jsp?nro=00000000012646",{"$f":"$AT$2&AV102&\":\"&$AT$2&AW102","v":"BB0:BB0"},{"$f":"ROW()","v":102},{"$f":"MINA(IF(AQ102=$BA$4:$BA$401,$BD$4:$BD$401))","v":0},{"$f":"MAXA(IF(AQ102=$BA$4:$BA$401,$BD$4:$BD$401))","v":0},"MED",null,null,"COL0116439","Cirugía Dermatologica",{"$f":"COUNTIF(BA$4:BA102,BA102)","v":1},{"$f":"ROW()","v":102},1]
[null,null,null,null,null,null,null,null,null,null,null,null,null,null,null,null,null,null,null,null,null,null,null,null,null,null,10,"NBC",213,"Bellas artes",213,null,null,null,null,null,null,null,null,null,null,null,null,null,null,null,null,null,null,null,null,null,"COL0116439","Dermatologia Pediatrica",{"$f":"COUNTIF(BA$4:BA103,BA103)","v":2},{"$f":"ROW()","v":103},1]
[null,null,null,null,null,null,null,null,null,null,null,null,null,null,null,null,null,null,null,null,null,null,null,null,null,null,11,"NBC",214,"Artesanías",214,null,null,null,null,null,null,null,null,null,null,null,null,null,null,null,null,null,null,null,null,null,"COL0116439","Fotobiologia y Fototerapia",{"$f":"COUNTIF(BA$4:BA104,BA104)","v":3},{"$f":"ROW()","v":104},1]
[null,null,null,null,null,null,null,null,null,null,null,null,null,null,null,null,null,null,null,null,null,null,null,null,null,null,12,"NBC",215,"Música y artes escénicas",215,null,null,null,null,null,null,null,null,null,null,null,null,null,null,null,null,null,null,null,null,null,"COL0116439","Leishmaniasis",{"$f":"COUNTIF(BA$4:BA105,BA105)","v":4},{"$f":"ROW()","v":105},1]
[null,null,null,null,null,null,null,null,null,null,null,null,null,null,null,null,null,null,null,null,null,null,null,null,null,null,13,"NBC",221,"Religión y Teología",221,null,null,null,null,null,null,null,null,null,null,null,null,null,null,null,null,null,null,null,null,null,"COL0116439","Psoriasis",{"$f":"COUNTIF(BA$4:BA106,BA106)","v":5},{"$f":"ROW()","v":106},1]
[null,null,null,null,null,null,null,null,null,null,null,null,null,null,null,null,null,null,null,null,null,null,null,null,null,null,14,"NBC",222,"Historia y arqueología",222,null,null,null,null,null,null,null,null,null,null,null,null,null,null,null,null,null,null,null,null,null,"COL0013719","Biología y Epidemiología de hongos patógenos humanos.",{"$f":"COUNTIF(BA$4:BA107,BA107)","v":1},{"$f":"ROW()","v":107},1]
[null,null,null,null,null,null,null,null,null,null,null,null,null,null,null,null,null,null,null,null,null,null,null,null,null,null,15,"NBC",223,"Filosofía y ética",223,null,null,null,null,null,null,null,null,null,null,null,null,null,null,null,null,null,null,null,null,null,"COL0013719","Diversidad, Ecología y Bioprospección",{"$f":"COUNTIF(BA$4:BA108,BA108)","v":2},{"$f":"ROW()","v":108},1]
[null,null,null,null,null,null,null,null,null,null,null,null,null,null,null,null,null,null,null,null,null,null,null,null,null,null,16,"NBC",231,"Adquisición del lenguaje",231,null,null,null,null,null,null,null,null,null,null,null,null,null,null,null,null,null,null,null,null,null,"COL0013719","Fitopatología",{"$f":"COUNTIF(BA$4:BA109,BA109)","v":3},{"$f":"ROW()","v":109},1]
[null,null,null,null,null,null,null,null,null,null,null,null,null,null,null,null,null,null,null,null,null,null,null,null,null,null,17,"NBC",232,"Literatura y lingüística",232,null,null,null,null,null,null,null,null,null,null,null,null,null,null,null,null,null,null,null,null,null,"COL0013719","Genómica y bioinformática",{"$f":"COUNTIF(BA$4:BA110,BA110)","v":4},{"$f":"ROW()","v":110},1]
[null,null,null,null,null,null,null,null,null,null,null,null,null,null,null,null,null,null,null,null,null,null,null,null,null,null,18,"NBC",311,"Economía",311,null,null,null,null,null,null,null,null,null,null,null,null,null,null,null,null,null,null,null,null,null,"COL0013719","Susceptibilidad a Antifungícos",{"$f":"COUNTIF(BA$4:BA111,BA111)","v":5},{"$f":"ROW()","v":111},1]
[null,null,null,null,null,null,null,null,null,null,null,null,null,null,null,null,null,null,null,null,null,null,null,null,null,null,19,"NBC",312,"Ciencias políticas y educación cívica",312,null,null,null,null,null,null,null,null,null,null,null,null,null,null,null,null,null,null,null,null,null,"COL0049999","Calidad y Gestión en la Educación",{"$f":"COUNTIF(BA$4:BA112,BA112)","v":1},{"$f":"ROW()","v":112},1]
[null,null,null,null,null,null,null,null,null,null,null,null,null,null,null,null,null,null,null,null,null,null,null,null,null,null,20,"NBC",313,"Psicología",313,null,null,null,null,null,null,null,null,null,null,null,null,null,null,null,null,null,null,null,null,null,"COL0049999","Gestión y Proyectos",{"$f":"COUNTIF(BA$4:BA113,BA113)","v":2},{"$f":"ROW()","v":113},1]
[null,null,null,null,null,null,null,null,null,null,null,null,null,null,null,null,null,null,null,null,null,null,null,null,null,null,21,"NBC",314,"Sociología y estudios culturales",314,null,null,null,null,null,null,null,null,null,null,null,null,null,null,null,null,null,null,null,null,null,"COL0049999","Innovación",{"$f":"COUNTIF(BA$4:BA114,BA114)","v":3},{"$f":"ROW()","v":114},1]
[null,null,null,null,null,null,null,null,null,null,null,null,null,null,null,null,null,null,null,null,null,null,null,null,null,null,22,"NBC",321,"Periodismo y reportajes",321,null,null,null,null,null,null,null,null,null,null,null,null,null,null,null,null,null,null,null,null,null,"COL0049999","Productividad",{"$f":"COUNTIF(BA$4:BA115,BA115)","v":4},{"$f":"ROW()","v":115},1]
[null,null,null,null,null,null,null,null,null,null,null,null,null,null,null,null,null,null,null,null,null,null,null,null,null,null,23,"NBC",322,"Bibliotecología, información y archivología",322,null,null,null,null,null,null,null,null,null,null,null,null,null,null,null,null,null,null,null,null,null,"COL0049999","Sostenibilidad y Medio Ambiente",{"$f":"COUNTIF(BA$4:BA116,BA116)","v":5},{"$f":"ROW()","v":116},1]
[null,null,null,null,null,null,null,null,null,null,null,null,null,null,null,null,null,null,null,null,null,null,null,null,null,null,24,"NBC",411,"Contabilidad e impuestos",411,null,null,null,null,null,null,null,null,null,null,null,null,null,null,null,null,null,null,null,null,null,"COL0049999","Tecnología",{"$f":"COUNTIF(BA$4:BA117,BA117)","v":6},{"$f":"ROW()","v":117},1]
[null,null,null,null,null,null,null,null,null,null,null,null,null,null,null,null,null,null,null,null,null,null,null,null,null,null,25,"NBC",412,"Gestión financiera, administración bancaria y seguros",412,null,null,null,null,null,null,null,null,null,null,null,null,null,null,null,null,null,null,null,null,null,"COL0086179","Búsqueda de marcadores genéticos y estudio de genes ligados a la resistencia a Fusarium en clavel.",{"$f":"COUNTIF(BA$4:BA118,BA118)","v":1},{"$f":"ROW()","v":118},1]
[null,null,null,null,null,null,null,null,null,null,null,null,null,null,null,null,null,null,null,null,null,null,null,null,null,null,26,"NBC",413,"Gestión y administración",413,null,null,null,null,null,null,null,null,null,null,null,null,null,null,null,null,null,null,null,null,null,"COL0086179","Estudio de la biología del mildeo velloso de la Rosa comercial.",{"$f":"COUNTIF(BA$4:BA119,BA119)","v":2},{"$f":"ROW()","v":119},1]
[null,null,null,null,null,null,null,null,null,null,null,null,null,null,null,null,null,null,null,null,null,null,null,null,null,null,27,"NBC",414,"Mercadotecnia y publicidad",414,null,null,null,null,null,null,null,null,null,null,null,null,null,null,null,null,null,null,null,null,null,"COL0086179","Producción de nuevas variedades de clavel resistentes a parasitos vasculares.",{"$f":"COUNTIF(BA$4:BA120,BA120)","v":3},{"$f":"ROW()","v":120},1]
[null,null,null,null,null,null,null,null,null,null,null,null,null,null,null,null,null,null,null,null,null,null,null,null,null,null,28,"NBC",415,"Secretariado y trabajo de oficina",415,null,null,null,null,null,null,null,null,null,null,null,null,null,null,null,null,null,null,null,null,null,"COL0116636","Desarrollo de software y hardware embebido",{"$f":"COUNTIF(BA$4:BA121,BA121)","v":1},{"$f":"ROW()","v":121},1]
[null,null,null,null,null,null,null,null,null,null,null,null,null,null,null,null,null,null,null,null,null,null,null,null,null,null,29,"NBC",416,"Ventas al por mayor y al por menor",416,null,null,null,null,null,null,null,null,null,null,null,null,null,null,null,null,null,null,null,null,null,"COL0116636","Procesamiento digital de seńales e imágenes",{"$f":"COUNTIF(BA$4:BA122,BA122)","v":2},{"$f":"ROW()","v":122},1]
[null,null,null,null,null,null,null,null,null,null,null,null,null,null,null,null,null,null,null,null,null,null,null,null,null,null,30,"NBC",417,"Competencias laborales",417,null,null,null,null,null,null,null,null,null,null,null,null,null,null,null,null,null,null,null,null,null,"COL0116636","Producción sostenible",{"$f":"COUNTIF(BA$4:BA123,BA123)","v":3},{"$f":"ROW()","v":123},1]
[null,null,null,null,null,null,null,null,null,null,null,null,null,null,null,null,null,null,null,null,null,null,null,null,null,null,31,"NBC",421,"Derecho",421,null,null,null,null,null,null,null,null,null,null,null,null,null,null,null,null,null,null,null,null,null,"COL0116636","Robótica",{"$f":"COUNTIF(BA$4:BA124,BA124)","v":4},{"$f":"ROW()","v":124},1]
[null,null,null,null,null,null,null,null,null,null,null,null,null,null,null,null,null,null,null,null,null,null,null,null,null,null,32,"NBC",511,"Biología",511,null,null,null,null,null,null,null,null,null,null,null,null,null,null,null,null,null,null,null,null,null,"COL0136423","Control óptimo estocástico",{"$f":"COUNTIF(BA$4:BA125,BA125)","v":1},{"$f":"ROW()","v":125},1]
[null,null,null,null,null,null,null,null,null,null,null,null,null,null,null,null,null,null,null,null,null,null,null,null,null,null,33,"NBC",512,"Bioquímica",512,null,null,null,null,null,null,null,null,null,null,null,null,null,null,null,null,null,null,null,null,null,"COL0136423","Estadística Multivariada paramétrica y no paramétrica.",{"$f":"COUNTIF(BA$4:BA126,BA126)","v":2},{"$f":"ROW()","v":126},1]
[null,null,null,null,null,null,null,null,null,null,null,null,null,null,null,null,null,null,null,null,null,null,null,null,null,null,34,"NBC",521,"Ciencias del medio ambiente",521,null,null,null,null,null,null,null,null,null,null,null,null,null,null,null,null,null,null,null,null,null,"COL0136423","Métodos estadísticos basados en grafos",{"$f":"COUNTIF(BA$4:BA127,BA127)","v":3},{"$f":"ROW()","v":127},1]
[null,null,null,null,null,null,null,null,null,null,null,null,null,null,null,null,null,null,null,null,null,null,null,null,null,null,35,"NBC",522,"Medio ambiente natural y vida silvestre",522,null,null,null,null,null,null,null,null,null,null,null,null,null,null,null,null,null,null,null,null,null,"COL0136423","Optimizacion Semidefinida",{"$f":"COUNTIF(BA$4:BA128,BA128)","v":4},{"$f":"ROW()","v":128},1]
[null,null,null,null,null,null,null,null,null,null,null,null,null,null,null,null,null,null,null,null,null,null,null,null,null,null,36,"NBC",531,"Química",531,null,null,null,null,null,null,null,null,null,null,null,null,null,null,null,null,null,null,null,null,null,"COL0136423","Optimización Numérica. Máquinas de Vectores de Soportes.",{"$f":"COUNTIF(BA$4:BA129,BA129)","v":5},{"$f":"ROW()","v":129},1]
[null,null,null,null,null,null,null,null,null,null,null,null,null,null,null,null,null,null,null,null,null,null,null,null,null,null,37,"NBC",532,"Ciencias de la tierra",532,null,null,null,null,null,null,null,null,null,null,null,null,null,null,null,null,null,null,null,null,null,"COL0036025","Biomecatronica",{"$f":"COUNTIF(BA$4:BA130,BA130)","v":1},{"$f":"ROW()","v":130},1]
[null,null,null,null,null,null,null,null,null,null,null,null,null,null,null,null,null,null,null,null,null,null,null,null,null,null,38,"NBC",533,"Física",533,null,null,null,null,null,null,null,null,null,null,null,null,null,null,null,null,null,null,null,null,null,"COL0036025","Optimización y Control de sistemas dinámicos",{"$f":"COUNTIF(BA$4:BA131,BA131)","v":2},{"$f":"ROW()","v":131},1]
[null,null,null,null,null,null,null,null,null,null,null,null,null,null,null,null,null,null,null,null,null,null,null,null,null,null,39,"NBC",541,"Matemáticas",541,null,null,null,null,null,null,null,null,null,null,null,null,null,null,null,null,null,null,null,null,null,"COL0036025","Robótica híbrida",{"$f":"COUNTIF(BA$4:BA132,BA132)","v":3},{"$f":"ROW()","v":132},{"$f":"COUNTIF($AQ$3:$AQ$83,BA132)","v":1}]
[null,null,null,null,null,null,null,null,null,null,null,null,null,null,null,null,null,null,null,null,null,null,null,null,null,null,40,"NBC",542,"Estadística",542,null,null,null,null,null,null,null,null,null,null,null,null,null,null,null,null,null,null,null,null,null,"COL0036025","Simulacion y Realidad Virtual",{"$f":"COUNTIF(BA$4:BA133,BA133)","v":4},{"$f":"ROW()","v":133},1]
[null,null,null,null,null,null,null,null,null,null,null,null,null,null,null,null,null,null,null,null,null,null,null,null,null,null,41,"NBC",611,"Uso de computadores",611,null,null,null,null,null,null,null,null,null,null,null,null,null,null,null,null,null,null,null,null,null,"COL0038084","Acuaponía, recirculación e hidroponí",{"$f":"COUNTIF(BA$4:BA134,BA134)","v":1},{"$f":"ROW()","v":134},1]
[null,null,null,null,null,null,null,null,null,null,null,null,null,null,null,null,null,null,null,null,null,null,null,null,null,null,42,"NBC",612,"Diseño y administración de redes y bases de datos",612,null,null,null,null,null,null,null,null,null,null,null,null,null,null,null,null,null,null,null,null,null,"COL0038084","Biología evolutiva de animales",{"$f":"COUNTIF(BA$4:BA135,BA135)","v":2},{"$f":"ROW()","v":135},1]
[null,null,null,null,null,null,null,null,null,null,null,null,null,null,null,null,null,null,null,null,null,null,null,null,null,null,43,"NBC",613,"Desarrollo y análisis de software y aplicaciones",613,null,null,null,null,null,null,null,null,null,null,null,null,null,null,null,null,null,null,null,null,null,"COL0038084","Ecotoxicología",{"$f":"COUNTIF(BA$4:BA136,BA136)","v":3},{"$f":"ROW()","v":136},1]
[null,null,null,null,null,null,null,null,null,null,null,null,null,null,null,null,null,null,null,null,null,null,null,null,null,null,44,"NBC",711,"Ingeniería y procesos químicos",711,null,null,null,null,null,null,null,null,null,null,null,null,null,null,null,null,null,null,null,null,null,"COL0038084","Energías alternas y recursos ambientales",{"$f":"COUNTIF(BA$4:BA137,BA137)","v":4},{"$f":"ROW()","v":137},1]
[null,null,null,null,null,null,null,null,null,null,null,null,null,null,null,null,null,null,null,null,null,null,null,null,null,null,45,"NBC",712,"Tecnología de protección del medio ambiente",712,null,null,null,null,null,null,null,null,null,null,null,null,null,null,null,null,null,null,null,null,null,"COL0038084","modelamiento de especies bajo escenario de calentamiento global",{"$f":"COUNTIF(BA$4:BA138,BA138)","v":5},{"$f":"ROW()","v":138},1]
[null,null,null,null,null,null,null,null,null,null,null,null,null,null,null,null,null,null,null,null,null,null,null,null,null,null,46,"NBC",713,"Electricidad y energía",713,null,null,null,null,null,null,null,null,null,null,null,null,null,null,null,null,null,null,null,null,null,"COL0016999","Elementos de concreto y de mampostería",{"$f":"COUNTIF(BA$4:BA139,BA139)","v":1},{"$f":"ROW()","v":139},1]
[null,null,null,null,null,null,null,null,null,null,null,null,null,null,null,null,null,null,null,null,null,null,null,null,null,null,47,"NBC",714,"Electrónica y automatización",714,null,null,null,null,null,null,null,null,null,null,null,null,null,null,null,null,null,null,null,null,null,"COL0016999","Instrumentación estructural y sensórica",{"$f":"COUNTIF(BA$4:BA140,BA140)","v":2},{"$f":"ROW()","v":140},1]
[null,null,null,null,null,null,null,null,null,null,null,null,null,null,null,null,null,null,null,null,null,null,null,null,null,null,48,"NBC",715,"Mecánica y profesiones afines a la metalistería",715,null,null,null,null,null,null,null,null,null,null,null,null,null,null,null,null,null,null,null,null,null,"COL0016999","Materiales alternativos para construcción",{"$f":"COUNTIF(BA$4:BA141,BA141)","v":3},{"$f":"ROW()","v":141},1]
[null,null,null,null,null,null,null,null,null,null,null,null,null,null,null,null,null,null,null,null,null,null,null,null,null,null,49,"NBC",716,"Vehículos, barcos y aeronaves motorizadas",716,null,null,null,null,null,null,null,null,null,null,null,null,null,null,null,null,null,null,null,null,null,"COL0016999","Modelación Matemática",{"$f":"COUNTIF(BA$4:BA142,BA142)","v":4},{"$f":"ROW()","v":142},1]
[null,null,null,null,null,null,null,null,null,null,null,null,null,null,null,null,null,null,null,null,null,null,null,null,null,null,50,"NBC",721,"Procesamiento de alimentos",721,null,null,null,null,null,null,null,null,null,null,null,null,null,null,null,null,null,null,null,null,null,"COL0016999","Vulnerabilidad Sísmica",{"$f":"COUNTIF(BA$4:BA143,BA143)","v":5},{"$f":"ROW()","v":143},1]
[null,null,null,null,null,null,null,null,null,null,null,null,null,null,null,null,null,null,null,null,null,null,null,null,null,null,51,"NBC",722,"Materiales (vidrio, papel, plástico y madera)",722,null,null,null,null,null,null,null,null,null,null,null,null,null,null,null,null,null,null,null,null,null,"COL0047566","Educación en ingeniería",{"$f":"COUNTIF(BA$4:BA144,BA144)","v":1},{"$f":"ROW()","v":144},1]
[null,null,null,null,null,null,null,null,null,null,null,null,null,null,null,null,null,null,null,null,null,null,null,null,null,null,52,"NBC",723,"Producción textiles (ropa, calzado y artículos de cuero)",723,null,null,null,null,null,null,null,null,null,null,null,null,null,null,null,null,null,null,null,null,null,"COL0047566","Evaluación económica y administrativa en ingeniería",{"$f":"COUNTIF(BA$4:BA145,BA145)","v":2},{"$f":"ROW()","v":145},1]
[null,null,null,null,null,null,null,null,null,null,null,null,null,null,null,null,null,null,null,null,null,null,null,null,null,null,53,"NBC",724,"Minería y extracción",724,null,null,null,null,null,null,null,null,null,null,null,null,null,null,null,null,null,null,null,null,null,"COL0047566","Geomatica",{"$f":"COUNTIF(BA$4:BA146,BA146)","v":3},{"$f":"ROW()","v":146},1]
[null,null,null,null,null,null,null,null,null,null,null,null,null,null,null,null,null,null,null,null,null,null,null,null,null,null,54,"NBC",731,"Arquitectura y urbanismo",731,null,null,null,null,null,null,null,null,null,null,null,null,null,null,null,null,null,null,null,null,null,"COL0047566","Gerencia de proyectos",{"$f":"COUNTIF(BA$4:BA147,BA147)","v":4},{"$f":"ROW()","v":147},1]
[null,null,null,null,null,null,null,null,null,null,null,null,null,null,null,null,null,null,null,null,null,null,null,null,null,null,55,"NBC",732,"Construcción e ingeniería civil",732,null,null,null,null,null,null,null,null,null,null,null,null,null,null,null,null,null,null,null,null,null,"COL0047566","Procesos estocásticos",{"$f":"COUNTIF(BA$4:BA148,BA148)","v":5},{"$f":"ROW()","v":148},1]
[null,null,null,null,null,null,null,null,null,null,null,null,null,null,null,null,null,null,null,null,null,null,null,null,null,null,56,"NBC",811,"Producción agrícola y ganadera",811,null,null,null,null,null,null,null,null,null,null,null,null,null,null,null,null,null,null,null,null,null,"COL0047566","Productividad e impacto ambiental en proyectos de ingeniería civil (construcción sostenible)",{"$f":"COUNTIF(BA$4:BA149,BA149)","v":6},{"$f":"ROW()","v":149},1]
[null,null,null,null,null,null,null,null,null,null,null,null,null,null,null,null,null,null,null,null,null,null,null,null,null,null,57,"NBC",812,"Horticultura",812,null,null,null,null,null,null,null,null,null,null,null,null,null,null,null,null,null,null,null,null,null,"COL0050982","Expansión de Células Stem",{"$f":"COUNTIF(BA$4:BA150,BA150)","v":1},{"$f":"ROW()","v":150},1]
[null,null,null,null,null,null,null,null,null,null,null,null,null,null,null,null,null,null,null,null,null,null,null,null,null,null,58,"NBC",821,"Silvicultura",821,null,null,null,null,null,null,null,null,null,null,null,null,null,null,null,null,null,null,null,null,null,"COL0050982","Inmunoregulación",{"$f":"COUNTIF(BA$4:BA151,BA151)","v":2},{"$f":"ROW()","v":151},1]
[null,null,null,null,null,null,null,null,null,null,null,null,null,null,null,null,null,null,null,null,null,null,null,null,null,null,59,"NBC",831,"Pesca",831,null,null,null,null,null,null,null,null,null,null,null,null,null,null,null,null,null,null,null,null,null,"COL0050982","Investigación en Cáncer",{"$f":"COUNTIF(BA$4:BA152,BA152)","v":3},{"$f":"ROW()","v":152},1]
[null,null,null,null,null,null,null,null,null,null,null,null,null,null,null,null,null,null,null,null,null,null,null,null,null,null,60,"NBC",841,"Veterinaria",841,null,null,null,null,null,null,null,null,null,null,null,null,null,null,null,null,null,null,null,null,null,"COL0050982","Mesénquima",{"$f":"COUNTIF(BA$4:BA153,BA153)","v":4},{"$f":"ROW()","v":153},1]
[null,null,null,null,null,null,null,null,null,null,null,null,null,null,null,null,null,null,null,null,null,null,null,null,null,null,61,"NBC",911,"Odontología",911,null,null,null,null,null,null,null,null,null,null,null,null,null,null,null,null,null,null,null,null,null,"COL0129689","Cirugía Ortognática y Distracción Osteogénica",{"$f":"COUNTIF(BA$4:BA154,BA154)","v":1},{"$f":"ROW()","v":154},1]
[null,null,null,null,null,null,null,null,null,null,null,null,null,null,null,null,null,null,null,null,null,null,null,null,null,null,62,"NBC",912,"Medicina",912,null,null,null,null,null,null,null,null,null,null,null,null,null,null,null,null,null,null,null,null,null,"COL0129689","Implantología y Cirugía Reconstructiva",{"$f":"COUNTIF(BA$4:BA155,BA155)","v":2},{"$f":"ROW()","v":155},1]
[null,null,null,null,null,null,null,null,null,null,null,null,null,null,null,null,null,null,null,null,null,null,null,null,null,null,63,"NBC",913,"Enfermería y partería",913,null,null,null,null,null,null,null,null,null,null,null,null,null,null,null,null,null,null,null,null,null,"COL0129689","Infecciones, Patología y Cirugía Dentoalveolar",{"$f":"COUNTIF(BA$4:BA156,BA156)","v":3},{"$f":"ROW()","v":156},1]
[null,null,null,null,null,null,null,null,null,null,null,null,null,null,null,null,null,null,null,null,null,null,null,null,null,null,64,"NBC",914,"Tecnología de diagnóstico y tratamiento médico",914,null,null,null,null,null,null,null,null,null,null,null,null,null,null,null,null,null,null,null,null,null,"COL0036749","Accesibilidad",{"$f":"COUNTIF(BA$4:BA157,BA157)","v":1},{"$f":"ROW()","v":157},1]
[null,null,null,null,null,null,null,null,null,null,null,null,null,null,null,null,null,null,null,null,null,null,null,null,null,null,65,"NBC",915,"Terapia y rehabilitación",915,null,null,null,null,null,null,null,null,null,null,null,null,null,null,null,null,null,null,null,null,null,"COL0036749","Multimedia Analítica",{"$f":"COUNTIF(BA$4:BA158,BA158)","v":2},{"$f":"ROW()","v":158},1]
[null,null,null,null,null,null,null,null,null,null,null,null,null,null,null,null,null,null,null,null,null,null,null,null,null,null,66,"NBC",916,"Farmacia",916,null,null,null,null,null,null,null,null,null,null,null,null,null,null,null,null,null,null,null,null,null,"COL0002896","Bioética Educación y Cultura",{"$f":"COUNTIF(BA$4:BA159,BA159)","v":1},{"$f":"ROW()","v":159},1]
[null,null,null,null,null,null,null,null,null,null,null,null,null,null,null,null,null,null,null,null,null,null,null,null,null,null,67,"NBC",917,"Medicina y terapia tradicional y complementaria",917,null,null,null,null,null,null,null,null,null,null,null,null,null,null,null,null,null,null,null,null,null,"COL0002896","Educación y Sociedad",{"$f":"COUNTIF(BA$4:BA160,BA160)","v":2},{"$f":"ROW()","v":160},1]
[null,null,null,null,null,null,null,null,null,null,null,null,null,null,null,null,null,null,null,null,null,null,null,null,null,null,68,"NBC",921,"Asistencia a adultos mayores y discapacitados",921,null,null,null,null,null,null,null,null,null,null,null,null,null,null,null,null,null,null,null,null,null,"COL0002896","Educación y cultura",{"$f":"COUNTIF(BA$4:BA161,BA161)","v":3},{"$f":"ROW()","v":161},1]
[null,null,null,null,null,null,null,null,null,null,null,null,null,null,null,null,null,null,null,null,null,null,null,null,null,null,69,"NBC",922,"Asistencia a la infancia y servicios para jóvenes",922,null,null,null,null,null,null,null,null,null,null,null,null,null,null,null,null,null,null,null,null,null,"COL0066229","(EO) Estructuras Organizacionales",{"$f":"COUNTIF(BA$4:BA162,BA162)","v":1},{"$f":"ROW()","v":162},1]
[null,null,null,null,null,null,null,null,null,null,null,null,null,null,null,null,null,null,null,null,null,null,null,null,null,null,70,"NBC",923,"Trabajo social y orientación",923,null,null,null,null,null,null,null,null,null,null,null,null,null,null,null,null,null,null,null,null,null,"COL0066229","(PI) Procesos de Integración",{"$f":"COUNTIF(BA$4:BA163,BA163)","v":2},{"$f":"ROW()","v":163},1]
[null,null,null,null,null,null,null,null,null,null,null,null,null,null,null,null,null,null,null,null,null,null,null,null,null,null,71,"NBC",1011,"Servicios domésticos",1011,null,null,null,null,null,null,null,null,null,null,null,null,null,null,null,null,null,null,null,null,null,"COL0066229","(R) Regionalización",{"$f":"COUNTIF(BA$4:BA164,BA164)","v":3},{"$f":"ROW()","v":164},1]
[null,null,null,null,null,null,null,null,null,null,null,null,null,null,null,null,null,null,null,null,null,null,null,null,null,null,72,"NBC",1012,"Peluquería y tratamientos de belleza",1012,null,null,null,null,null,null,null,null,null,null,null,null,null,null,null,null,null,null,null,null,null,"COL0028767","Estudios Contemporáneos en Contabilidad y Finanzas",{"$f":"COUNTIF(BA$4:BA165,BA165)","v":1},{"$f":"ROW()","v":165},1]
[null,null,null,null,null,null,null,null,null,null,null,null,null,null,null,null,null,null,null,null,null,null,null,null,null,null,73,"NBC",1013,"Hotelería, restaurantes y servicios de banquetes",1013,null,null,null,null,null,null,null,null,null,null,null,null,null,null,null,null,null,null,null,null,null,"COL0028767","Estudios Contemporáneos en Gestión y Organizaciones",{"$f":"COUNTIF(BA$4:BA166,BA166)","v":2},{"$f":"ROW()","v":166},1]
[null,null,null,null,null,null,null,null,null,null,null,null,null,null,null,null,null,null,null,null,null,null,null,null,null,null,74,"NBC",1014,"Deportes",1014,null,null,null,null,null,null,null,null,null,null,null,null,null,null,null,null,null,null,null,null,null,"COL0048492","Biología Molecular de organismos acuáticos, con énfasis en especies de interés comercial y amenazadas.",{"$f":"COUNTIF(BA$4:BA167,BA167)","v":1},{"$f":"ROW()","v":167},1]
[null,null,null,null,null,null,null,null,null,null,null,null,null,null,null,null,null,null,null,null,null,null,null,null,null,null,75,"NBC",1015,"Viajes, turismo y actividades recreativas",1015,null,null,null,null,null,null,null,null,null,null,null,null,null,null,null,null,null,null,null,null,null,"COL0048492","Dinámica ecológica del zooplancton en el océano pacífico colombiano. Cruceros 2007-2010 de la serie ERFEN (Estudio Regional del Fenómeno el Niño)",{"$f":"COUNTIF(BA$4:BA168,BA168)","v":2},{"$f":"ROW()","v":168},1]
[null,null,null,null,null,null,null,null,null,null,null,null,null,null,null,null,null,null,null,null,null,null,null,null,null,null,76,"NBC",1021,"Saneamiento de la comunidad",1021,null,null,null,null,null,null,null,null,null,null,null,null,null,null,null,null,null,null,null,null,null,"COL0048492","Estudios Morfológicos, Tróficos, Ecológicos, Bióticos y Abióticos de Humedales Colombianos, con énfasis en la Sabana de Bogotá.",{"$f":"COUNTIF(BA$4:BA169,BA169)","v":3},{"$f":"ROW()","v":169},1]
[null,null,null,null,null,null,null,null,null,null,null,null,null,null,null,null,null,null,null,null,null,null,null,null,null,null,77,"NBC",1022,"Salud y protección laboral",1022,null,null,null,null,null,null,null,null,null,null,null,null,null,null,null,null,null,null,null,null,null,"COL0048492","Estudios morfológicos, nutricionales, ontogénicos y de cultivo de organismos acuáticos de interés comercial.",{"$f":"COUNTIF(BA$4:BA170,BA170)","v":4},{"$f":"ROW()","v":170},1]
[null,null,null,null,null,null,null,null,null,null,null,null,null,null,null,null,null,null,null,null,null,null,null,null,null,null,78,"NBC",1031,"Educación militar y de defensa",1031,null,null,null,null,null,null,null,null,null,null,null,null,null,null,null,null,null,null,null,null,null,"COL0077814","Producción Hortícola Limpia",{"$f":"COUNTIF(BA$4:BA171,BA171)","v":1},{"$f":"ROW()","v":171},1]
[null,null,null,null,null,null,null,null,null,null,null,null,null,null,null,null,null,null,null,null,null,null,null,null,null,null,79,"NBC",1032,"Protección de las personas y de la propiedad",1032,null,null,null,null,null,null,null,null,null,null,null,null,null,null,null,null,null,null,null,null,null,"COL0077707","Biodiversidad y Conservación",{"$f":"COUNTIF(BA$4:BA172,BA172)","v":1},{"$f":"ROW()","v":172},1]
[null,null,null,null,null,null,null,null,null,null,null,null,null,null,null,null,null,null,null,null,null,null,null,null,null,null,80,"NBC",1041,"Servicios de transporte",1041,null,null,null,null,null,null,null,null,null,null,null,null,null,null,null,null,null,null,null,null,null,"COL0077707","Bioprospección de Comunidades Vegetales",{"$f":"COUNTIF(BA$4:BA173,BA173)","v":2},{"$f":"ROW()","v":173},1]
[null,null,null,null,null,null,null,null,null,null,null,null,null,null,null,null,null,null,null,null,null,null,null,null,null,null,1,"Nivel",1,"Postdoctorado",{"$f":"AC174","v":1},null,null,null,null,null,null,null,null,null,null,null,null,null,null,null,null,null,null,null,null,null,"COL0077707","Búsqueda Biodirigida y Síntesis de Sustancias Bioactivas",{"$f":"COUNTIF(BA$4:BA174,BA174)","v":3},{"$f":"ROW()","v":174},1]
[null,null,null,null,null,null,null,null,null,null,null,null,null,null,null,null,null,null,null,null,null,null,null,null,null,null,2,"Nivel",2,"Doctorado",{"$f":"AC175","v":2},null,null,null,null,null,null,null,null,null,null,null,null,null,null,null,null,null,null,null,null,null,"COL0077707","Fitopatología y ecofisiología vegetal",{"$f":"COUNTIF(BA$4:BA175,BA175)","v":4},{"$f":"ROW()","v":175},1]
[null,null,null,null,null,null,null,null,null,null,null,null,null,null,null,null,null,null,null,null,null,null,null,null,null,null,3,"Nivel",3,"Maestría",3,null,null,null,null,null,null,null,null,null,null,null,null,null,null,null,null,null,null,null,null,null,"COL0077707","Metabolómica",{"$f":"COUNTIF(BA$4:BA176,BA176)","v":5},{"$f":"ROW()","v":176},1]
[null,null,null,null,null,null,null,null,null,null,null,null,null,null,null,null,null,null,null,null,null,null,null,null,null,null,4,"Nivel",4,"Esp. universitaria",4,null,null,null,null,null,null,null,null,null,null,null,null,null,null,null,null,null,null,null,null,null,"COL0077707","Modelado Molecular y Quimioinformática",{"$f":"COUNTIF(BA$4:BA177,BA177)","v":6},{"$f":"ROW()","v":177},1]
[null,null,null,null,null,null,null,null,null,null,null,null,null,null,null,null,null,null,null,null,null,null,null,null,null,null,5,"Nivel",5,"Esp. Técnica Profesional",5,null,null,null,null,null,null,null,null,null,null,null,null,null,null,null,null,null,null,null,null,null,"COL0077707","Química Ambiental",{"$f":"COUNTIF(BA$4:BA178,BA178)","v":7},{"$f":"ROW()","v":178},1]
[null,null,null,null,null,null,null,null,null,null,null,null,null,null,null,null,null,null,null,null,null,null,null,null,null,null,6,"Nivel",6,"Esp. Tecnológica",6,null,null,null,null,null,null,null,null,null,null,null,null,null,null,null,null,null,null,null,null,null,"COL0077707","Química Bioorgánica",{"$f":"COUNTIF(BA$4:BA179,BA179)","v":8},{"$f":"ROW()","v":179},1]
[null,null,null,null,null,null,null,null,null,null,null,null,null,null,null,null,null,null,null,null,null,null,null,null,null,null,7,"Nivel",7,"Universitario",7,null,null,null,null,null,null,null,null,null,null,null,null,null,null,null,null,null,null,null,null,null,"COL0077707","Redes Tróficas y Agroecología",{"$f":"COUNTIF(BA$4:BA180,BA180)","v":9},{"$f":"ROW()","v":180},1]
[null,null,null,null,null,null,null,null,null,null,null,null,null,null,null,null,null,null,null,null,null,null,null,null,null,null,8,"Nivel",8,"Tecnológico",8,null,null,null,null,null,null,null,null,null,null,null,null,null,null,null,null,null,null,null,null,null,"COL0110436","Bioquímica",{"$f":"COUNTIF(BA$4:BA181,BA181)","v":1},{"$f":"ROW()","v":181},1]
[null,null,null,null,null,null,null,null,null,null,null,null,null,null,null,null,null,null,null,null,null,null,null,null,null,null,9,"Nivel",9,"Técnico profesional",9,null,null,null,null,null,null,null,null,null,null,null,null,null,null,null,null,null,null,null,null,null,"COL0110436","Química Ambiental y Forense",{"$f":"COUNTIF(BA$4:BA182,BA182)","v":2},{"$f":"ROW()","v":182},1]
[null,null,null,null,null,null,null,null,null,null,null,null,null,null,null,null,null,null,null,null,null,null,null,null,null,null,10,"Nivel",10,"Estudiante pregrado",10,null,null,null,null,null,null,null,null,null,null,null,null,null,null,null,null,null,null,null,null,null,"COL0110436","Química Inorgánica",{"$f":"COUNTIF(BA$4:BA183,BA183)","v":3},{"$f":"ROW()","v":183},1]
[null,null,null,null,null,null,null,null,null,null,null,null,null,null,null,null,null,null,null,null,null,null,null,null,null,null,1,"A",100,"Puede aplicar al maximo de presupuesto dependiendo los puntos comprometidos",null,null,null,null,null,null,null,null,null,null,null,null,null,null,null,null,null,null,null,null,null,null,"COL0110436","Química Verde",{"$f":"COUNTIF(BA$4:BA184,BA184)","v":4},{"$f":"ROW()","v":184},1]
[null,null,null,null,null,null,null,null,null,null,null,null,null,null,null,null,null,null,null,null,null,null,null,null,null,null,8,"A1",100,"Puede aplicar al maximo de presupuesto dependiendo los puntos comprometidos",null,null,null,null,null,null,null,null,null,null,null,null,null,null,null,null,null,null,null,null,null,null,"COL0110436","Química de coordinación y catálisis ambiental",{"$f":"COUNTIF(BA$4:BA185,BA185)","v":5},{"$f":"ROW()","v":185},1]
[null,null,null,null,null,null,null,null,null,null,null,null,null,null,null,null,null,null,null,null,null,null,null,null,null,null,9,"B",100,"Puede aplicar al maximo de presupuesto dependiendo los puntos comprometidos",null,null,null,null,null,null,null,null,null,null,null,null,null,null,null,null,null,null,null,null,null,null,"COL0125134","Ayudas Auditivas Implantables",{"$f":"COUNTIF(BA$4:BA186,BA186)","v":1},{"$f":"ROW()","v":186},1]
[null,null,null,null,null,null,null,null,null,null,null,null,null,null,null,null,null,null,null,null,null,null,null,null,null,null,10,"C",100,"Puede aplicar al maximo de presupuesto dependiendo los puntos comprometidos",null,null,null,null,null,null,null,null,null,null,null,null,null,null,null,null,null,null,null,null,null,null,"COL0125134","Base de cráneo",{"$f":"COUNTIF(BA$4:BA187,BA187)","v":2},{"$f":"ROW()","v":187},1]
[null,null,null,null,null,null,null,null,null,null,null,null,null,null,null,null,null,null,null,null,null,null,null,null,null,null,11,"D",50,"Puede aplicar hasta 50 millones de presupuesto dependiendo los puntos comprometidos",null,null,null,null,null,null,null,null,null,null,null,null,null,null,null,null,null,null,null,null,null,null,"COL0125134","Cáncer Laríngeo",{"$f":"COUNTIF(BA$4:BA188,BA188)","v":3},{"$f":"ROW()","v":188},1]
[null,null,null,null,null,null,null,null,null,null,null,null,null,null,null,null,null,null,null,null,null,null,null,null,null,null,2,"R",50,"Puede aplicar hasta 50 millones de presupuesto dependiendo los puntos comprometidos",null,null,null,null,null,null,null,null,null,null,null,null,null,null,null,null,null,null,null,null,null,null,"COL0125134","Enfermedad de Meniere",{"$f":"COUNTIF(BA$4:BA189,BA189)","v":4},{"$f":"ROW()","v":189},1]
[null,null,null,null,null,null,null,null,null,null,null,null,null,null,null,null,null,null,null,null,null,null,null,null,null,null,2,"NR",25,"Puede aplicar hasta 25 millones de presupuesto dependiendo los puntos comprometidos",null,null,null,null,null,null,null,null,null,null,null,null,null,null,null,null,null,null,null,null,null,null,"COL0125134","Oído Crónico",{"$f":"COUNTIF(BA$4:BA190,BA190)","v":5},{"$f":"ROW()","v":190},1]
[null,null,null,null,null,null,null,null,null,null,null,null,null,null,null,null,null,null,null,null,null,null,null,null,null,null,1,"Tipo Entidad",1,"Centro Investigación",null,null,null,null,null,null,null,null,null,null,null,null,null,null,null,null,null,null,null,null,null,null,"COL0125134","Rinosinusitis Crónica",{"$f":"COUNTIF(BA$4:BA191,BA191)","v":6},{"$f":"ROW()","v":191},1]
[null,null,null,null,null,null,null,null,null,null,null,null,null,null,null,null,null,null,null,null,null,null,null,null,null,null,2,"Tipo Entidad",2,"Centro de Desarrollo Tecnológico",null,null,null,null,null,null,null,null,null,null,null,null,null,null,null,null,null,null,null,null,null,null,"COL0125134","Trauma de guerra en Otorrinolaringología",{"$f":"COUNTIF(BA$4:BA192,BA192)","v":7},{"$f":"ROW()","v":192},1]
[null,null,null,null,null,null,null,null,null,null,null,null,null,null,null,null,null,null,null,null,null,null,null,null,null,null,3,"Tipo Entidad",3,"Centro empresarial",null,null,null,null,null,null,null,null,null,null,null,null,null,null,null,null,null,null,null,null,null,null,"COL0120281","Medicina Electrodiagnostica",{"$f":"COUNTIF(BA$4:BA193,BA193)","v":1},{"$f":"ROW()","v":193},1]
[null,null,null,null,null,null,null,null,null,null,null,null,null,null,null,null,null,null,null,null,null,null,null,null,null,null,4,"Tipo Entidad",4,"Empresa",null,null,null,null,null,null,null,null,null,null,null,null,null,null,null,null,null,null,null,null,null,null,"COL0120281","Rehabilitacion Neurologica",{"$f":"COUNTIF(BA$4:BA194,BA194)","v":2},{"$f":"ROW()","v":194},1]
[null,null,null,null,null,null,null,null,null,null,null,null,null,null,null,null,null,null,null,null,null,null,null,null,null,null,5,"Tipo Entidad",5,"Instituto Público",null,null,null,null,null,null,null,null,null,null,null,null,null,null,null,null,null,null,null,null,null,null,"COL0120281","Rehabilitacion cardio-pulmonar",{"$f":"COUNTIF(BA$4:BA195,BA195)","v":3},{"$f":"ROW()","v":195},1]
[null,null,null,null,null,null,null,null,null,null,null,null,null,null,null,null,null,null,null,null,null,null,null,null,null,null,6,"Tipo Entidad",6,"Sector Defensa",null,null,null,null,null,null,null,null,null,null,null,null,null,null,null,null,null,null,null,null,null,null,"COL0120281","Rehabilitacion musculo esqueletica",{"$f":"COUNTIF(BA$4:BA196,BA196)","v":4},{"$f":"ROW()","v":196},{"$f":"COUNTIF($AQ$3:$AQ$83,BA196)","v":1}]
[null,null,null,null,null,null,null,null,null,null,null,null,null,null,null,null,null,null,null,null,null,null,null,null,null,null,7,"Tipo Entidad",7,"Salud Publica",null,null,null,null,null,null,null,null,null,null,null,null,null,null,null,null,null,null,null,null,null,null,"COL0120281","Rehabilitación Infantil",{"$f":"COUNTIF(BA$4:BA197,BA197)","v":5},{"$f":"ROW()","v":197},1]
[null,null,null,null,null,null,null,null,null,null,null,null,null,null,null,null,null,null,null,null,null,null,null,null,null,null,1,"Modalidad",{"$f":"LEFT(AB198,3)&\"-\"&AA198","v":"Mod-1"},"Mod-1. Oportunidades de Transferencia para productos patentados o en proceso de\npatente - TRL mayor o igual a 7",20,null,"Mod-1. Transferencia - TRL mayor o igual a 7",null,null,null,null,null,null,null,null,null,null,null,null,null,null,null,null,null,null,null,"COL0128047","Derecho de la responsabilidad y de seguros",{"$f":"COUNTIF(BA$4:BA198,BA198)","v":1},{"$f":"ROW()","v":198},1]
[null,null,null,null,null,null,null,null,null,null,null,null,null,null,null,null,null,null,null,null,null,null,null,null,null,null,2,"Modalidad",{"$f":"LEFT(AB199,3)&\"-\"&AA199","v":"Mod-2"},"Mod-2. Oportunidades de Transferencia para productos patentados o en proceso de\npatente - TRL menor a 3",50,null,"Mod-2. Transferencia - TRL menor a 3",null,null,null,null,null,null,null,null,null,null,null,null,null,null,null,null,null,null,null,"COL0128047","Derecho económico y de los negocios.",{"$f":"COUNTIF(BA$4:BA199,BA199)","v":2},{"$f":"ROW()","v":199},1]
[null,null,null,null,null,null,null,null,null,null,null,null,null,null,null,null,null,null,null,null,null,null,null,null,null,null,3,"Modalidad",{"$f":"LEFT(AB200,3)&\"-\"&AA200","v":"Mod-3"},"Mod-3. Oportunidades de Transferencia para productos susceptibles de ser patentados\no protegidos",20,null,"Mod-3. Productos susceptibles de ser patentados o protegidos",null,null,null,null,null,null,null,null,null,null,null,null,null,null,null,null,null,null,null,"COL0116538","Andrologia y Salud sexual",{"$f":"COUNTIF(BA$4:BA200,BA200)","v":1},{"$f":"ROW()","v":200},1]
[null,null,null,null,null,null,null,null,null,null,null,null,null,null,null,null,null,null,null,null,null,null,null,null,null,null,4,"Modalidad",{"$f":"LEFT(AB201,3)&\"-\"&AA201","v":"Mod-4"},"Mod-4. Oportunidades de Transferencia para productos o servicios no patentables",20,null,"Mod-4. para productos o servicios no patentables",null,null,null,null,null,null,null,null,null,null,null,null,null,null,null,null,null,null,null,"COL0116538","Hiperplasia Prostatica",{"$f":"COUNTIF(BA$4:BA201,BA201)","v":2},{"$f":"ROW()","v":201},1]
[null,null,null,null,null,null,null,null,null,null,null,null,null,null,null,null,null,null,null,null,null,null,null,null,null,null,null,null,null,null,null,null,null,null,null,null,null,null,null,null,null,null,null,null,null,null,null,null,null,null,null,null,"COL0116538","Incontinencia Urinaria",{"$f":"COUNTIF(BA$4:BA202,BA202)","v":3},{"$f":"ROW()","v":202},1]
[null,null,null,null,null,null,null,null,null,null,null,null,null,null,null,null,null,null,null,null,null,null,null,null,null,null,null,null,null,null,null,null,null,null,null,null,null,null,null,null,null,null,null,null,null,null,null,null,null,null,null,null,"COL0116538","Litiasis y endourologia",{"$f":"COUNTIF(BA$4:BA203,BA203)","v":4},{"$f":"ROW()","v":203},1]
[null,null,null,null,null,null,null,null,null,null,null,null,null,null,null,null,null,null,null,null,null,null,null,null,null,null,null,null,null,null,null,null,null,null,null,null,null,null,null,null,null,null,null,null,null,null,null,null,null,null,null,null,"COL0116538","Oncologia Urologica",{"$f":"COUNTIF(BA$4:BA204,BA204)","v":5},{"$f":"ROW()","v":204},1]
[null,null,null,null,null,null,null,null,null,null,null,null,null,null,null,null,null,null,null,null,null,null,null,null,null,null,null,null,null,null,null,null,null,null,null,null,null,null,null,null,null,null,null,null,null,null,null,null,null,null,null,null,"COL0116538","Urologia Pediatrica",{"$f":"COUNTIF(BA$4:BA205,BA205)","v":6},{"$f":"ROW()","v":205},1]
[null,null,null,null,null,null,null,null,null,null,null,null,null,null,null,null,null,null,null,null,null,null,null,null,null,null,null,null,null,null,null,null,null,null,null,null,null,null,null,null,null,null,null,null,null,null,null,null,null,null,null,null,"COL0026486","Procesos biológicos",{"$f":"COUNTIF(BA$4:BA206,BA206)","v":1},{"$f":"ROW()","v":206},1]
[null,null,null,null,null,null,null,null,null,null,null,null,null,null,null,null,null,null,null,null,null,null,null,null,null,null,null,null,null,null,null,null,null,null,null,null,null,null,null,null,null,null,null,null,null,null,null,null,null,null,null,null,"COL0026486","Procesos de oxidación avanzada",{"$f":"COUNTIF(BA$4:BA207,BA207)","v":2},{"$f":"ROW()","v":207},1]
[null,null,null,null,null,null,null,null,null,null,null,null,null,null,null,null,null,null,null,null,null,null,null,null,null,null,null,null,null,null,null,null,null,null,null,null,null,null,null,null,null,null,null,null,null,null,null,null,null,null,null,null,"COL0026486","Procesos enzimaticos",{"$f":"COUNTIF(BA$4:BA208,BA208)","v":3},{"$f":"ROW()","v":208},1]
[null,null,null,null,null,null,null,null,null,null,null,null,null,null,null,null,null,null,null,null,null,null,null,null,null,null,null,null,null,null,null,null,null,null,null,null,null,null,null,null,null,null,null,null,null,null,null,null,null,null,null,null,"COL0031824","Bioética Global y Complejidad",{"$f":"COUNTIF(BA$4:BA209,BA209)","v":1},{"$f":"ROW()","v":209},1]
[null,null,null,null,null,null,null,null,null,null,null,null,null,null,null,null,null,null,null,null,null,null,null,null,null,null,null,null,null,null,null,null,null,null,null,null,null,null,null,null,null,null,null,null,null,null,null,null,null,null,null,null,"COL0031824","Bioética Médica y salud pública",{"$f":"COUNTIF(BA$4:BA210,BA210)","v":2},{"$f":"ROW()","v":210},1]
[null,null,null,null,null,null,null,null,null,null,null,null,null,null,null,null,null,null,null,null,null,null,null,null,null,null,null,null,null,null,null,null,null,null,null,null,null,null,null,null,null,null,null,null,null,null,null,null,null,null,null,null,"COL0031824","Bioética, Biopolítica y Biojurídica",{"$f":"COUNTIF(BA$4:BA211,BA211)","v":3},{"$f":"ROW()","v":211},1]
[null,null,null,null,null,null,null,null,null,null,null,null,null,null,null,null,null,null,null,null,null,null,null,null,null,null,null,null,null,null,null,null,null,null,null,null,null,null,null,null,null,null,null,null,null,null,null,null,null,null,null,null,"COL0031824","Bioética, educación y cultura",{"$f":"COUNTIF(BA$4:BA212,BA212)","v":4},{"$f":"ROW()","v":212},1]
[null,null,null,null,null,null,null,null,null,null,null,null,null,null,null,null,null,null,null,null,null,null,null,null,null,null,null,null,null,null,null,null,null,null,null,null,null,null,null,null,null,null,null,null,null,null,null,null,null,null,null,null,"COL0045848","Epidemiología Clínica de Diabetes e Insulino resistencia",{"$f":"COUNTIF(BA$4:BA213,BA213)","v":1},{"$f":"ROW()","v":213},1]
[null,null,null,null,null,null,null,null,null,null,null,null,null,null,null,null,null,null,null,null,null,null,null,null,null,null,null,null,null,null,null,null,null,null,null,null,null,null,null,null,null,null,null,null,null,null,null,null,null,null,null,null,"COL0045848","Genética de diabetes mellitus e insulino resistencia",{"$f":"COUNTIF(BA$4:BA214,BA214)","v":2},{"$f":"ROW()","v":214},1]
[null,null,null,null,null,null,null,null,null,null,null,null,null,null,null,null,null,null,null,null,null,null,null,null,null,null,null,null,null,null,null,null,null,null,null,null,null,null,null,null,null,null,null,null,null,null,null,null,null,null,null,null,"COL0045848","Prevención Cardiovascular",{"$f":"COUNTIF(BA$4:BA215,BA215)","v":3},{"$f":"ROW()","v":215},1]
[null,null,null,null,null,null,null,null,null,null,null,null,null,null,null,null,null,null,null,null,null,null,null,null,null,null,null,null,null,null,null,null,null,null,null,null,null,null,null,null,null,null,null,null,null,null,null,null,null,null,null,null,"COL0052163","Internet de las Cosas",{"$f":"COUNTIF(BA$4:BA216,BA216)","v":1},{"$f":"ROW()","v":216},1]
[null,null,null,null,null,null,null,null,null,null,null,null,null,null,null,null,null,null,null,null,null,null,null,null,null,null,null,null,null,null,null,null,null,null,null,null,null,null,null,null,null,null,null,null,null,null,null,null,null,null,null,null,"COL0052163","Procesamiento de Seńales",{"$f":"COUNTIF(BA$4:BA217,BA217)","v":2},{"$f":"ROW()","v":217},1]
[null,null,null,null,null,null,null,null,null,null,null,null,null,null,null,null,null,null,null,null,null,null,null,null,null,null,null,null,null,null,null,null,null,null,null,null,null,null,null,null,null,null,null,null,null,null,null,null,null,null,null,null,"COL0052163","Seguridad Informática",{"$f":"COUNTIF(BA$4:BA218,BA218)","v":3},{"$f":"ROW()","v":218},1]
[null,null,null,null,null,null,null,null,null,null,null,null,null,null,null,null,null,null,null,null,null,null,null,null,null,null,null,null,null,null,null,null,null,null,null,null,null,null,null,null,null,null,null,null,null,null,null,null,null,null,null,null,"COL0052163","Sistemas bioinspirados",{"$f":"COUNTIF(BA$4:BA219,BA219)","v":4},{"$f":"ROW()","v":219},1]
[null,null,null,null,null,null,null,null,null,null,null,null,null,null,null,null,null,null,null,null,null,null,null,null,null,null,null,null,null,null,null,null,null,null,null,null,null,null,null,null,null,null,null,null,null,null,null,null,null,null,null,null,"COL0052163","Sistemas de comunicaciones",{"$f":"COUNTIF(BA$4:BA220,BA220)","v":5},{"$f":"ROW()","v":220},1]
[null,null,null,null,null,null,null,null,null,null,null,null,null,null,null,null,null,null,null,null,null,null,null,null,null,null,null,null,null,null,null,null,null,null,null,null,null,null,null,null,null,null,null,null,null,null,null,null,null,null,null,null,"COL0066669","Estrategia y Seguridad",{"$f":"COUNTIF(BA$4:BA221,BA221)","v":1},{"$f":"ROW()","v":221},1]
[null,null,null,null,null,null,null,null,null,null,null,null,null,null,null,null,null,null,null,null,null,null,null,null,null,null,null,null,null,null,null,null,null,null,null,null,null,null,null,null,null,null,null,null,null,null,null,null,null,null,null,null,"COL0066669","Paz y Posconflicto",{"$f":"COUNTIF(BA$4:BA222,BA222)","v":2},{"$f":"ROW()","v":222},1]
[null,null,null,null,null,null,null,null,null,null,null,null,null,null,null,null,null,null,null,null,null,null,null,null,null,null,null,null,null,null,null,null,null,null,null,null,null,null,null,null,null,null,null,null,null,null,null,null,null,null,null,null,"COL0066669","Seguridad Física",{"$f":"COUNTIF(BA$4:BA223,BA223)","v":3},{"$f":"ROW()","v":223},1]
[null,null,null,null,null,null,null,null,null,null,null,null,null,null,null,null,null,null,null,null,null,null,null,null,null,null,null,null,null,null,null,null,null,null,null,null,null,null,null,null,null,null,null,null,null,null,null,null,null,null,null,null,"COL0066669","Seguridad de Personas",{"$f":"COUNTIF(BA$4:BA224,BA224)","v":4},{"$f":"ROW()","v":224},1]
[null,null,null,null,null,null,null,null,null,null,null,null,null,null,null,null,null,null,null,null,null,null,null,null,null,null,null,null,null,null,null,null,null,null,null,null,null,null,null,null,null,null,null,null,null,null,null,null,null,null,null,null,"COL0068762","Ingeniería Sostenible",{"$f":"COUNTIF(BA$4:BA225,BA225)","v":1},{"$f":"ROW()","v":225},1]
[null,null,null,null,null,null,null,null,null,null,null,null,null,null,null,null,null,null,null,null,null,null,null,null,null,null,null,null,null,null,null,null,null,null,null,null,null,null,null,null,null,null,null,null,null,null,null,null,null,null,null,null,"COL0068762","Inteligencia artificial y procesamiento de seńales",{"$f":"COUNTIF(BA$4:BA226,BA226)","v":2},{"$f":"ROW()","v":226},1]
[null,null,null,null,null,null,null,null,null,null,null,null,null,null,null,null,null,null,null,null,null,null,null,null,null,null,null,null,null,null,null,null,null,null,null,null,null,null,null,null,null,null,null,null,null,null,null,null,null,null,null,null,"COL0068762","Laboratorios virtuales e instrumentación virtual",{"$f":"COUNTIF(BA$4:BA227,BA227)","v":3},{"$f":"ROW()","v":227},1]
[null,null,null,null,null,null,null,null,null,null,null,null,null,null,null,null,null,null,null,null,null,null,null,null,null,null,null,null,null,null,null,null,null,null,null,null,null,null,null,null,null,null,null,null,null,null,null,null,null,null,null,null,"COL0068762","Sistemas Bioinspirados",{"$f":"COUNTIF(BA$4:BA228,BA228)","v":4},{"$f":"ROW()","v":228},1]
[null,null,null,null,null,null,null,null,null,null,null,null,null,null,null,null,null,null,null,null,null,null,null,null,null,null,null,null,null,null,null,null,null,null,null,null,null,null,null,null,null,null,null,null,null,null,null,null,null,null,null,null,"COL0068762","Tecnologías de la información y las comunicaciones (TIC)",{"$f":"COUNTIF(BA$4:BA229,BA229)","v":5},{"$f":"ROW()","v":229},1]
[null,null,null,null,null,null,null,null,null,null,null,null,null,null,null,null,null,null,null,null,null,null,null,null,null,null,null,null,null,null,null,null,null,null,null,null,null,null,null,null,null,null,null,null,null,null,null,null,null,null,null,null,"COL0068762","Visión de Máquina",{"$f":"COUNTIF(BA$4:BA230,BA230)","v":6},{"$f":"ROW()","v":230},1]
[null,null,null,null,null,null,null,null,null,null,null,null,null,null,null,null,null,null,null,null,null,null,null,null,null,null,null,null,null,null,null,null,null,null,null,null,null,null,null,null,null,null,null,null,null,null,null,null,null,null,null,null,"COL0067371","Desarrollo de diagnósticos físico matemáticos de la morfofisiología celular e histológica con base en geometría fractal y euclidiana.",{"$f":"COUNTIF(BA$4:BA231,BA231)","v":1},{"$f":"ROW()","v":231},1]
[null,null,null,null,null,null,null,null,null,null,null,null,null,null,null,null,null,null,null,null,null,null,null,null,null,null,null,null,null,null,null,null,null,null,null,null,null,null,null,null,null,null,null,null,null,null,null,null,null,null,null,null,"COL0067371","Desarrollo de diagnósticos físico matemáticos de la morfofisiología y la dinámica cardiaca fetal y de adultos",{"$f":"COUNTIF(BA$4:BA232,BA232)","v":2},{"$f":"ROW()","v":232},1]
[null,null,null,null,null,null,null,null,null,null,null,null,null,null,null,null,null,null,null,null,null,null,null,null,null,null,null,null,null,null,null,null,null,null,null,null,null,null,null,null,null,null,null,null,null,null,null,null,null,null,null,null,"COL0067371","Física y matemáticas aplicadas",{"$f":"COUNTIF(BA$4:BA233,BA233)","v":3},{"$f":"ROW()","v":233},1]
[null,null,null,null,null,null,null,null,null,null,null,null,null,null,null,null,null,null,null,null,null,null,null,null,null,null,null,null,null,null,null,null,null,null,null,null,null,null,null,null,null,null,null,null,null,null,null,null,null,null,null,null,"COL0067371","Predicciones en infectología",{"$f":"COUNTIF(BA$4:BA234,BA234)","v":4},{"$f":"ROW()","v":234},1]
[null,null,null,null,null,null,null,null,null,null,null,null,null,null,null,null,null,null,null,null,null,null,null,null,null,null,null,null,null,null,null,null,null,null,null,null,null,null,null,null,null,null,null,null,null,null,null,null,null,null,null,null,"COL0067371","Predicciones físicas y matemáticas en economía",{"$f":"COUNTIF(BA$4:BA235,BA235)","v":5},{"$f":"ROW()","v":235},1]
[null,null,null,null,null,null,null,null,null,null,null,null,null,null,null,null,null,null,null,null,null,null,null,null,null,null,null,null,null,null,null,null,null,null,null,null,null,null,null,null,null,null,null,null,null,null,null,null,null,null,null,null,"COL0067371","Teorías físicas y Matemáticas aplicadas al desarrollo de diagnósticos de la dinámica y morfología cardíaca",{"$f":"COUNTIF(BA$4:BA236,BA236)","v":6},{"$f":"ROW()","v":236},1]
[null,null,null,null,null,null,null,null,null,null,null,null,null,null,null,null,null,null,null,null,null,null,null,null,null,null,null,null,null,null,null,null,null,null,null,null,null,null,null,null,null,null,null,null,null,null,null,null,null,null,null,null,"COL0067371","teorías físicas y Matemáticas aplicadas a la prediccion de epidemias",{"$f":"COUNTIF(BA$4:BA237,BA237)","v":7},{"$f":"ROW()","v":237},1]
[null,null,null,null,null,null,null,null,null,null,null,null,null,null,null,null,null,null,null,null,null,null,null,null,null,null,null,null,null,null,null,null,null,null,null,null,null,null,null,null,null,null,null,null,null,null,null,null,null,null,null,null,"COL0067371","teorías físicas y Matemáticas aplicadas al de diagnósticos de Morfología y fisiología celular",{"$f":"COUNTIF(BA$4:BA238,BA238)","v":8},{"$f":"ROW()","v":238},1]
[null,null,null,null,null,null,null,null,null,null,null,null,null,null,null,null,null,null,null,null,null,null,null,null,null,null,null,null,null,null,null,null,null,null,null,null,null,null,null,null,null,null,null,null,null,null,null,null,null,null,null,null,"COL0067371","teorías físicas y Matemáticas aplicadas al desarrollo de predicciones en inmunología y biología molecular para el desarrollo de vacunas",{"$f":"COUNTIF(BA$4:BA239,BA239)","v":9},{"$f":"ROW()","v":239},1]
[null,null,null,null,null,null,null,null,null,null,null,null,null,null,null,null,null,null,null,null,null,null,null,null,null,null,null,null,null,null,null,null,null,null,null,null,null,null,null,null,null,null,null,null,null,null,null,null,null,null,null,null,"COL0110329","Didáctica de las matemáticas universitarias",{"$f":"COUNTIF(BA$4:BA240,BA240)","v":1},{"$f":"ROW()","v":240},1]
[null,null,null,null,null,null,null,null,null,null,null,null,null,null,null,null,null,null,null,null,null,null,null,null,null,null,null,null,null,null,null,null,null,null,null,null,null,null,null,null,null,null,null,null,null,null,null,null,null,null,null,null,"COL0110329","Diseńo curricular y evaluación en matemáticas universitarias",{"$f":"COUNTIF(BA$4:BA241,BA241)","v":2},{"$f":"ROW()","v":241},1]
[null,null,null,null,null,null,null,null,null,null,null,null,null,null,null,null,null,null,null,null,null,null,null,null,null,null,null,null,null,null,null,null,null,null,null,null,null,null,null,null,null,null,null,null,null,null,null,null,null,null,null,null,"COL0110329","Herramientas virtuales y enseńanza de las matemáticas universitarias",{"$f":"COUNTIF(BA$4:BA242,BA242)","v":3},{"$f":"ROW()","v":242},1]
[null,null,null,null,null,null,null,null,null,null,null,null,null,null,null,null,null,null,null,null,null,null,null,null,null,null,null,null,null,null,null,null,null,null,null,null,null,null,null,null,null,null,null,null,null,null,null,null,null,null,null,null,"COL0117052","Ambiental",{"$f":"COUNTIF(BA$4:BA243,BA243)","v":1},{"$f":"ROW()","v":243},1]
[null,null,null,null,null,null,null,null,null,null,null,null,null,null,null,null,null,null,null,null,null,null,null,null,null,null,null,null,null,null,null,null,null,null,null,null,null,null,null,null,null,null,null,null,null,null,null,null,null,null,null,null,"COL0117052","Arte y Tecnología",{"$f":"COUNTIF(BA$4:BA244,BA244)","v":2},{"$f":"ROW()","v":244},1]
[null,null,null,null,null,null,null,null,null,null,null,null,null,null,null,null,null,null,null,null,null,null,null,null,null,null,null,null,null,null,null,null,null,null,null,null,null,null,null,null,null,null,null,null,null,null,null,null,null,null,null,null,"COL0117052","Energía",{"$f":"COUNTIF(BA$4:BA245,BA245)","v":3},{"$f":"ROW()","v":245},1]
[null,null,null,null,null,null,null,null,null,null,null,null,null,null,null,null,null,null,null,null,null,null,null,null,null,null,null,null,null,null,null,null,null,null,null,null,null,null,null,null,null,null,null,null,null,null,null,null,null,null,null,null,"COL0117052","Gestión e Innovación",{"$f":"COUNTIF(BA$4:BA246,BA246)","v":4},{"$f":"ROW()","v":246},1]
[null,null,null,null,null,null,null,null,null,null,null,null,null,null,null,null,null,null,null,null,null,null,null,null,null,null,null,null,null,null,null,null,null,null,null,null,null,null,null,null,null,null,null,null,null,null,null,null,null,null,null,null,"COL0117052","Materiales",{"$f":"COUNTIF(BA$4:BA247,BA247)","v":5},{"$f":"ROW()","v":247},1]
[null,null,null,null,null,null,null,null,null,null,null,null,null,null,null,null,null,null,null,null,null,null,null,null,null,null,null,null,null,null,null,null,null,null,null,null,null,null,null,null,null,null,null,null,null,null,null,null,null,null,null,null,"COL0138796","Docencia y Didactica de la Física Universitaria",{"$f":"COUNTIF(BA$4:BA248,BA248)","v":1},{"$f":"ROW()","v":248},1]
[null,null,null,null,null,null,null,null,null,null,null,null,null,null,null,null,null,null,null,null,null,null,null,null,null,null,null,null,null,null,null,null,null,null,null,null,null,null,null,null,null,null,null,null,null,null,null,null,null,null,null,null,"COL0138796","Física Atómica, Molecular y de Agregados",{"$f":"COUNTIF(BA$4:BA249,BA249)","v":2},{"$f":"ROW()","v":249},1]
[null,null,null,null,null,null,null,null,null,null,null,null,null,null,null,null,null,null,null,null,null,null,null,null,null,null,null,null,null,null,null,null,null,null,null,null,null,null,null,null,null,null,null,null,null,null,null,null,null,null,null,null,"COL0138796","Magnetismo y Aplicaciones",{"$f":"COUNTIF(BA$4:BA250,BA250)","v":3},{"$f":"ROW()","v":250},1]
[null,null,null,null,null,null,null,null,null,null,null,null,null,null,null,null,null,null,null,null,null,null,null,null,null,null,null,null,null,null,null,null,null,null,null,null,null,null,null,null,null,null,null,null,null,null,null,null,null,null,null,null,"COL0138796","Nanotecnología y Sensórica",{"$f":"COUNTIF(BA$4:BA251,BA251)","v":4},{"$f":"ROW()","v":251},1]
[null,null,null,null,null,null,null,null,null,null,null,null,null,null,null,null,null,null,null,null,null,null,null,null,null,null,null,null,null,null,null,null,null,null,null,null,null,null,null,null,null,null,null,null,null,null,null,null,null,null,null,null,"COL0138796","Uso de radiación ionizante para la producción de imágenes médicas",{"$f":"COUNTIF(BA$4:BA252,BA252)","v":5},{"$f":"ROW()","v":252},1]
[null,null,null,null,null,null,null,null,null,null,null,null,null,null,null,null,null,null,null,null,null,null,null,null,null,null,null,null,null,null,null,null,null,null,null,null,null,null,null,null,null,null,null,null,null,null,null,null,null,null,null,null,"COL0152463","Currículo y evaluación",{"$f":"COUNTIF(BA$4:BA253,BA253)","v":1},{"$f":"ROW()","v":253},1]
[null,null,null,null,null,null,null,null,null,null,null,null,null,null,null,null,null,null,null,null,null,null,null,null,null,null,null,null,null,null,null,null,null,null,null,null,null,null,null,null,null,null,null,null,null,null,null,null,null,null,null,null,"COL0152463","Docencia y pedagogía",{"$f":"COUNTIF(BA$4:BA254,BA254)","v":2},{"$f":"ROW()","v":254},1]
[null,null,null,null,null,null,null,null,null,null,null,null,null,null,null,null,null,null,null,null,null,null,null,null,null,null,null,null,null,null,null,null,null,null,null,null,null,null,null,null,null,null,null,null,null,null,null,null,null,null,null,null,"COL0152463","Investigación clínica",{"$f":"COUNTIF(BA$4:BA255,BA255)","v":3},{"$f":"ROW()","v":255},1]
[null,null,null,null,null,null,null,null,null,null,null,null,null,null,null,null,null,null,null,null,null,null,null,null,null,null,null,null,null,null,null,null,null,null,null,null,null,null,null,null,null,null,null,null,null,null,null,null,null,null,null,null,"COL0143731","Electrónica y Telecomunicaciones en Salud",{"$f":"COUNTIF(BA$4:BA256,BA256)","v":1},{"$f":"ROW()","v":256},1]
[null,null,null,null,null,null,null,null,null,null,null,null,null,null,null,null,null,null,null,null,null,null,null,null,null,null,null,null,null,null,null,null,null,null,null,null,null,null,null,null,null,null,null,null,null,null,null,null,null,null,null,null,"COL0143731","Espectro Radioeléctrico",{"$f":"COUNTIF(BA$4:BA257,BA257)","v":2},{"$f":"ROW()","v":257},1]
[null,null,null,null,null,null,null,null,null,null,null,null,null,null,null,null,null,null,null,null,null,null,null,null,null,null,null,null,null,null,null,null,null,null,null,null,null,null,null,null,null,null,null,null,null,null,null,null,null,null,null,null,"COL0143731","Sistemas virtuales de comunicación",{"$f":"COUNTIF(BA$4:BA258,BA258)","v":3},{"$f":"ROW()","v":258},1]
[null,null,null,null,null,null,null,null,null,null,null,null,null,null,null,null,null,null,null,null,null,null,null,null,null,null,null,null,null,null,null,null,null,null,null,null,null,null,null,null,null,null,null,null,null,null,null,null,null,null,null,null,"COL0069296","Modelos de simulación en Ingeniería Civil",{"$f":"COUNTIF(BA$4:BA259,BA259)","v":1},{"$f":"ROW()","v":259},1]
[null,null,null,null,null,null,null,null,null,null,null,null,null,null,null,null,null,null,null,null,null,null,null,null,null,null,null,null,null,null,null,null,null,null,null,null,null,null,null,null,null,null,null,null,null,null,null,null,null,null,null,null,"COL0096032","Bioetica, Bioderecho, Biomedicina y Biotecnologia",{"$f":"COUNTIF(BA$4:BA260,BA260)","v":1},{"$f":"ROW()","v":260},{"$f":"COUNTIF($AQ$3:$AQ$83,BA260)","v":1}]
[null,null,null,null,null,null,null,null,null,null,null,null,null,null,null,null,null,null,null,null,null,null,null,null,null,null,null,null,null,null,null,null,null,null,null,null,null,null,null,null,null,null,null,null,null,null,null,null,null,null,null,null,"COL0096032","Células Madre & Medicina Regenerativa",{"$f":"COUNTIF(BA$4:BA261,BA261)","v":2},{"$f":"ROW()","v":261},1]
[null,null,null,null,null,null,null,null,null,null,null,null,null,null,null,null,null,null,null,null,null,null,null,null,null,null,null,null,null,null,null,null,null,null,null,null,null,null,null,null,null,null,null,null,null,null,null,null,null,null,null,null,"COL0096032","Genética Humana",{"$f":"COUNTIF(BA$4:BA262,BA262)","v":3},{"$f":"ROW()","v":262},1]
[null,null,null,null,null,null,null,null,null,null,null,null,null,null,null,null,null,null,null,null,null,null,null,null,null,null,null,null,null,null,null,null,null,null,null,null,null,null,null,null,null,null,null,null,null,null,null,null,null,null,null,null,"COL0096032","Medicina Transfusional y Cuidado Crítico",{"$f":"COUNTIF(BA$4:BA263,BA263)","v":4},{"$f":"ROW()","v":263},1]
[null,null,null,null,null,null,null,null,null,null,null,null,null,null,null,null,null,null,null,null,null,null,null,null,null,null,null,null,null,null,null,null,null,null,null,null,null,null,null,null,null,null,null,null,null,null,null,null,null,null,null,null,"COL0117722","Educación y sociedad",{"$f":"COUNTIF(BA$4:BA264,BA264)","v":1},{"$f":"ROW()","v":264},1]
[null,null,null,null,null,null,null,null,null,null,null,null,null,null,null,null,null,null,null,null,null,null,null,null,null,null,null,null,null,null,null,null,null,null,null,null,null,null,null,null,null,null,null,null,null,null,null,null,null,null,null,null,"COL0117722","Estudios Disciplinares en Contabilidad",{"$f":"COUNTIF(BA$4:BA265,BA265)","v":2},{"$f":"ROW()","v":265},1]
[null,null,null,null,null,null,null,null,null,null,null,null,null,null,null,null,null,null,null,null,null,null,null,null,null,null,null,null,null,null,null,null,null,null,null,null,null,null,null,null,null,null,null,null,null,null,null,null,null,null,null,null,"COL0126777","Animación experimental",{"$f":"COUNTIF(BA$4:BA266,BA266)","v":1},{"$f":"ROW()","v":266},1]
[null,null,null,null,null,null,null,null,null,null,null,null,null,null,null,null,null,null,null,null,null,null,null,null,null,null,null,null,null,null,null,null,null,null,null,null,null,null,null,null,null,null,null,null,null,null,null,null,null,null,null,null,"COL0126777","Audio y video",{"$f":"COUNTIF(BA$4:BA267,BA267)","v":2},{"$f":"ROW()","v":267},1]
[null,null,null,null,null,null,null,null,null,null,null,null,null,null,null,null,null,null,null,null,null,null,null,null,null,null,null,null,null,null,null,null,null,null,null,null,null,null,null,null,null,null,null,null,null,null,null,null,null,null,null,null,"COL0126777","Desarrollo Multimedia",{"$f":"COUNTIF(BA$4:BA268,BA268)","v":3},{"$f":"ROW()","v":268},1]
[null,null,null,null,null,null,null,null,null,null,null,null,null,null,null,null,null,null,null,null,null,null,null,null,null,null,null,null,null,null,null,null,null,null,null,null,null,null,null,null,null,null,null,null,null,null,null,null,null,null,null,null,"COL0126777","Narrativas digitales",{"$f":"COUNTIF(BA$4:BA269,BA269)","v":4},{"$f":"ROW()","v":269},1]
[null,null,null,null,null,null,null,null,null,null,null,null,null,null,null,null,null,null,null,null,null,null,null,null,null,null,null,null,null,null,null,null,null,null,null,null,null,null,null,null,null,null,null,null,null,null,null,null,null,null,null,null,"COL0142331","Competitividad industrial",{"$f":"COUNTIF(BA$4:BA270,BA270)","v":1},{"$f":"ROW()","v":270},1]
[null,null,null,null,null,null,null,null,null,null,null,null,null,null,null,null,null,null,null,null,null,null,null,null,null,null,null,null,null,null,null,null,null,null,null,null,null,null,null,null,null,null,null,null,null,null,null,null,null,null,null,null,"COL0142331","Innovación y educación en Ingenierěa",{"$f":"COUNTIF(BA$4:BA271,BA271)","v":2},{"$f":"ROW()","v":271},1]
[null,null,null,null,null,null,null,null,null,null,null,null,null,null,null,null,null,null,null,null,null,null,null,null,null,null,null,null,null,null,null,null,null,null,null,null,null,null,null,null,null,null,null,null,null,null,null,null,null,null,null,null,"COL0142331","Productividad industrial",{"$f":"COUNTIF(BA$4:BA272,BA272)","v":3},{"$f":"ROW()","v":272},1]
[null,null,null,null,null,null,null,null,null,null,null,null,null,null,null,null,null,null,null,null,null,null,null,null,null,null,null,null,null,null,null,null,null,null,null,null,null,null,null,null,null,null,null,null,null,null,null,null,null,null,null,null,"COL0142449","Bioética, derechos humanos y educación",{"$f":"COUNTIF(BA$4:BA273,BA273)","v":1},{"$f":"ROW()","v":273},1]
[null,null,null,null,null,null,null,null,null,null,null,null,null,null,null,null,null,null,null,null,null,null,null,null,null,null,null,null,null,null,null,null,null,null,null,null,null,null,null,null,null,null,null,null,null,null,null,null,null,null,null,null,"COL0142449","Cultura constitucional, paz y justicia transicional",{"$f":"COUNTIF(BA$4:BA274,BA274)","v":2},{"$f":"ROW()","v":274},1]
[null,null,null,null,null,null,null,null,null,null,null,null,null,null,null,null,null,null,null,null,null,null,null,null,null,null,null,null,null,null,null,null,null,null,null,null,null,null,null,null,null,null,null,null,null,null,null,null,null,null,null,null,"COL0142449","Política criminal, derecho penal y criminología",{"$f":"COUNTIF(BA$4:BA275,BA275)","v":3},{"$f":"ROW()","v":275},1]
[null,null,null,null,null,null,null,null,null,null,null,null,null,null,null,null,null,null,null,null,null,null,null,null,null,null,null,null,null,null,null,null,null,null,null,null,null,null,null,null,null,null,null,null,null,null,null,null,null,null,null,null,"COL0142449","Políticas públicas, derecho administrativo y desarrollo",{"$f":"COUNTIF(BA$4:BA276,BA276)","v":4},{"$f":"ROW()","v":276},1]
[null,null,null,null,null,null,null,null,null,null,null,null,null,null,null,null,null,null,null,null,null,null,null,null,null,null,null,null,null,null,null,null,null,null,null,null,null,null,null,null,null,null,null,null,null,null,null,null,null,null,null,null,"COL0142449","Propiedad intelectual y derechos de autor",{"$f":"COUNTIF(BA$4:BA277,BA277)","v":5},{"$f":"ROW()","v":277},1]
[null,null,null,null,null,null,null,null,null,null,null,null,null,null,null,null,null,null,null,null,null,null,null,null,null,null,null,null,null,null,null,null,null,null,null,null,null,null,null,null,null,null,null,null,null,null,null,null,null,null,null,null,"COL0142449","Sociología jurídica, derecho público y teoría jurídica",{"$f":"COUNTIF(BA$4:BA278,BA278)","v":6},{"$f":"ROW()","v":278},1]
[null,null,null,null,null,null,null,null,null,null,null,null,null,null,null,null,null,null,null,null,null,null,null,null,null,null,null,null,null,null,null,null,null,null,null,null,null,null,null,null,null,null,null,null,null,null,null,null,null,null,null,null,"COL0149359","Gestión de la educación y la academia",{"$f":"COUNTIF(BA$4:BA279,BA279)","v":1},{"$f":"ROW()","v":279},1]
[null,null,null,null,null,null,null,null,null,null,null,null,null,null,null,null,null,null,null,null,null,null,null,null,null,null,null,null,null,null,null,null,null,null,null,null,null,null,null,null,null,null,null,null,null,null,null,null,null,null,null,null,"COL0149359","Gestión de la salud publica",{"$f":"COUNTIF(BA$4:BA280,BA280)","v":2},{"$f":"ROW()","v":280},1]
[null,null,null,null,null,null,null,null,null,null,null,null,null,null,null,null,null,null,null,null,null,null,null,null,null,null,null,null,null,null,null,null,null,null,null,null,null,null,null,null,null,null,null,null,null,null,null,null,null,null,null,null,"COL0149359","Gestión de la ética y el conocimiento",{"$f":"COUNTIF(BA$4:BA281,BA281)","v":3},{"$f":"ROW()","v":281},1]
[null,null,null,null,null,null,null,null,null,null,null,null,null,null,null,null,null,null,null,null,null,null,null,null,null,null,null,null,null,null,null,null,null,null,null,null,null,null,null,null,null,null,null,null,null,null,null,null,null,null,null,null,"COL0151789","Aprovechamiento de residuos orgánicos",{"$f":"COUNTIF(BA$4:BA282,BA282)","v":1},{"$f":"ROW()","v":282},1]
[null,null,null,null,null,null,null,null,null,null,null,null,null,null,null,null,null,null,null,null,null,null,null,null,null,null,null,null,null,null,null,null,null,null,null,null,null,null,null,null,null,null,null,null,null,null,null,null,null,null,null,null,"COL0151789","Ecosostenibilidad en procesos de producción",{"$f":"COUNTIF(BA$4:BA283,BA283)","v":2},{"$f":"ROW()","v":283},1]
[null,null,null,null,null,null,null,null,null,null,null,null,null,null,null,null,null,null,null,null,null,null,null,null,null,null,null,null,null,null,null,null,null,null,null,null,null,null,null,null,null,null,null,null,null,null,null,null,null,null,null,null,"COL0151789","Estética del videojuego",{"$f":"COUNTIF(BA$4:BA284,BA284)","v":3},{"$f":"ROW()","v":284},1]
[null,null,null,null,null,null,null,null,null,null,null,null,null,null,null,null,null,null,null,null,null,null,null,null,null,null,null,null,null,null,null,null,null,null,null,null,null,null,null,null,null,null,null,null,null,null,null,null,null,null,null,null,"COL0151789","Ingeniería del terreno, geodesia y geofísica",{"$f":"COUNTIF(BA$4:BA285,BA285)","v":4},{"$f":"ROW()","v":285},1]
[null,null,null,null,null,null,null,null,null,null,null,null,null,null,null,null,null,null,null,null,null,null,null,null,null,null,null,null,null,null,null,null,null,null,null,null,null,null,null,null,null,null,null,null,null,null,null,null,null,null,null,null,"COL0151789","Museología",{"$f":"COUNTIF(BA$4:BA286,BA286)","v":5},{"$f":"ROW()","v":286},1]
[null,null,null,null,null,null,null,null,null,null,null,null,null,null,null,null,null,null,null,null,null,null,null,null,null,null,null,null,null,null,null,null,null,null,null,null,null,null,null,null,null,null,null,null,null,null,null,null,null,null,null,null,"COL0151789","Prevención y control de la contaminación",{"$f":"COUNTIF(BA$4:BA287,BA287)","v":6},{"$f":"ROW()","v":287},1]
[null,null,null,null,null,null,null,null,null,null,null,null,null,null,null,null,null,null,null,null,null,null,null,null,null,null,null,null,null,null,null,null,null,null,null,null,null,null,null,null,null,null,null,null,null,null,null,null,null,null,null,null,"COL0151789","Sensórica y sistemas inteligentes",{"$f":"COUNTIF(BA$4:BA288,BA288)","v":7},{"$f":"ROW()","v":288},1]
[null,null,null,null,null,null,null,null,null,null,null,null,null,null,null,null,null,null,null,null,null,null,null,null,null,null,null,null,null,null,null,null,null,null,null,null,null,null,null,null,null,null,null,null,null,null,null,null,null,null,null,null,"COL0152472","Autoinmunidad y Artritis Reumatoide",{"$f":"COUNTIF(BA$4:BA289,BA289)","v":1},{"$f":"ROW()","v":289},1]
[null,null,null,null,null,null,null,null,null,null,null,null,null,null,null,null,null,null,null,null,null,null,null,null,null,null,null,null,null,null,null,null,null,null,null,null,null,null,null,null,null,null,null,null,null,null,null,null,null,null,null,null,"COL0152472","Espondiloartritis",{"$f":"COUNTIF(BA$4:BA290,BA290)","v":2},{"$f":"ROW()","v":290},1]
[null,null,null,null,null,null,null,null,null,null,null,null,null,null,null,null,null,null,null,null,null,null,null,null,null,null,null,null,null,null,null,null,null,null,null,null,null,null,null,null,null,null,null,null,null,null,null,null,null,null,null,null,"COL0152319","Epidemiología Clínica",{"$f":"COUNTIF(BA$4:BA291,BA291)","v":1},{"$f":"ROW()","v":291},1]
[null,null,null,null,null,null,null,null,null,null,null,null,null,null,null,null,null,null,null,null,null,null,null,null,null,null,null,null,null,null,null,null,null,null,null,null,null,null,null,null,null,null,null,null,null,null,null,null,null,null,null,null,"COL0152319","Epidemiología General.",{"$f":"COUNTIF(BA$4:BA292,BA292)","v":2},{"$f":"ROW()","v":292},1]
[null,null,null,null,null,null,null,null,null,null,null,null,null,null,null,null,null,null,null,null,null,null,null,null,null,null,null,null,null,null,null,null,null,null,null,null,null,null,null,null,null,null,null,null,null,null,null,null,null,null,null,null,"COL0152319","Formación del Recurso Humano en Salud en Epidemiología y Salud Colectiva",{"$f":"COUNTIF(BA$4:BA293,BA293)","v":3},{"$f":"ROW()","v":293},1]
[null,null,null,null,null,null,null,null,null,null,null,null,null,null,null,null,null,null,null,null,null,null,null,null,null,null,null,null,null,null,null,null,null,null,null,null,null,null,null,null,null,null,null,null,null,null,null,null,null,null,null,null,"COL0152319","Las Tecnologías de la Información y de la comunicación en Epidemiología y Salud Colectiva",{"$f":"COUNTIF(BA$4:BA294,BA294)","v":4},{"$f":"ROW()","v":294},1]
[null,null,null,null,null,null,null,null,null,null,null,null,null,null,null,null,null,null,null,null,null,null,null,null,null,null,null,null,null,null,null,null,null,null,null,null,null,null,null,null,null,null,null,null,null,null,null,null,null,null,null,null,"COL0152319","Medicina tradicional complementaria.",{"$f":"COUNTIF(BA$4:BA295,BA295)","v":5},{"$f":"ROW()","v":295},1]
[null,null,null,null,null,null,null,null,null,null,null,null,null,null,null,null,null,null,null,null,null,null,null,null,null,null,null,null,null,null,null,null,null,null,null,null,null,null,null,null,null,null,null,null,null,null,null,null,null,null,null,null,"COL0178619","Administración, conservación, y manejo de Recursos Naturales Renovables",{"$f":"COUNTIF(BA$4:BA296,BA296)","v":1},{"$f":"ROW()","v":296},1]
[null,null,null,null,null,null,null,null,null,null,null,null,null,null,null,null,null,null,null,null,null,null,null,null,null,null,null,null,null,null,null,null,null,null,null,null,null,null,null,null,null,null,null,null,null,null,null,null,null,null,null,null,"COL0178619","Bioinnovación y educación",{"$f":"COUNTIF(BA$4:BA297,BA297)","v":2},{"$f":"ROW()","v":297},1]
[null,null,null,null,null,null,null,null,null,null,null,null,null,null,null,null,null,null,null,null,null,null,null,null,null,null,null,null,null,null,null,null,null,null,null,null,null,null,null,null,null,null,null,null,null,null,null,null,null,null,null,null,"COL0178619","Biología de poblaciones y evolutiva de plantas, animales y microorganismos",{"$f":"COUNTIF(BA$4:BA298,BA298)","v":3},{"$f":"ROW()","v":298},1]
[null,null,null,null,null,null,null,null,null,null,null,null,null,null,null,null,null,null,null,null,null,null,null,null,null,null,null,null,null,null,null,null,null,null,null,null,null,null,null,null,null,null,null,null,null,null,null,null,null,null,null,null,"COL0178619","Cambio climático",{"$f":"COUNTIF(BA$4:BA299,BA299)","v":4},{"$f":"ROW()","v":299},1]
[null,null,null,null,null,null,null,null,null,null,null,null,null,null,null,null,null,null,null,null,null,null,null,null,null,null,null,null,null,null,null,null,null,null,null,null,null,null,null,null,null,null,null,null,null,null,null,null,null,null,null,null,"COL0178619","Ecofisiología vegetal, animal y microbiana",{"$f":"COUNTIF(BA$4:BA300,BA300)","v":5},{"$f":"ROW()","v":300},1]
[null,null,null,null,null,null,null,null,null,null,null,null,null,null,null,null,null,null,null,null,null,null,null,null,null,null,null,null,null,null,null,null,null,null,null,null,null,null,null,null,null,null,null,null,null,null,null,null,null,null,null,null,"COL0178619","Servicios ecosistèmicos",{"$f":"COUNTIF(BA$4:BA301,BA301)","v":6},{"$f":"ROW()","v":301},1]
[null,null,null,null,null,null,null,null,null,null,null,null,null,null,null,null,null,null,null,null,null,null,null,null,null,null,null,null,null,null,null,null,null,null,null,null,null,null,null,null,null,null,null,null,null,null,null,null,null,null,null,null,"COL0179618","Biochips",{"$f":"COUNTIF(BA$4:BA302,BA302)","v":1},{"$f":"ROW()","v":302},1]
[null,null,null,null,null,null,null,null,null,null,null,null,null,null,null,null,null,null,null,null,null,null,null,null,null,null,null,null,null,null,null,null,null,null,null,null,null,null,null,null,null,null,null,null,null,null,null,null,null,null,null,null,"COL0179618","Diseño y fabricación de sistemas para producción de nanomateriales",{"$f":"COUNTIF(BA$4:BA303,BA303)","v":2},{"$f":"ROW()","v":303},1]
[null,null,null,null,null,null,null,null,null,null,null,null,null,null,null,null,null,null,null,null,null,null,null,null,null,null,null,null,null,null,null,null,null,null,null,null,null,null,null,null,null,null,null,null,null,null,null,null,null,null,null,null,"COL0179618","Nanofotónica, sensórica y nanotecnología",{"$f":"COUNTIF(BA$4:BA304,BA304)","v":3},{"$f":"ROW()","v":304},1]
[null,null,null,null,null,null,null,null,null,null,null,null,null,null,null,null,null,null,null,null,null,null,null,null,null,null,null,null,null,null,null,null,null,null,null,null,null,null,null,null,null,null,null,null,null,null,null,null,null,null,null,null,"COL0179618","Termo-electrónica",{"$f":"COUNTIF(BA$4:BA305,BA305)","v":4},{"$f":"ROW()","v":305},1]
[null,null,null,null,null,null,null,null,null,null,null,null,null,null,null,null,null,null,null,null,null,null,null,null,null,null,null,null,null,null,null,null,null,null,null,null,null,null,null,null,null,null,null,null,null,null,null,null,null,null,null,null,"COL0191078","Tomografia óptica coherente",{"$f":"COUNTIF(BA$4:BA306,BA306)","v":1},{"$f":"ROW()","v":306},1]
[null,null,null,null,null,null,null,null,null,null,null,null,null,null,null,null,null,null,null,null,null,null,null,null,null,null,null,null,null,null,null,null,null,null,null,null,null,null,null,null,null,null,null,null,null,null,null,null,null,null,null,null,"COL0191078","Enfermedades agudas y cronicas por exposición a agentes químicos y radiológicos",{"$f":"COUNTIF(BA$4:BA307,BA307)","v":2},{"$f":"ROW()","v":307},1]
[null,null,null,null,null,null,null,null,null,null,null,null,null,null,null,null,null,null,null,null,null,null,null,null,null,null,null,null,null,null,null,null,null,null,null,null,null,null,null,null,null,null,null,null,null,null,null,null,null,null,null,null,"COL0191078","Toxinología",{"$f":"COUNTIF(BA$4:BA308,BA308)","v":3},{"$f":"ROW()","v":308},1]
[]
[]
[]
[]
[]
[]
[]
[]
[]
[]
[]
[]
[]
[]
[]
[]
[]
[]
[]
[]
[]
[]
[]
[]
[]
[]
[]
[]
[]
[]
[]
[]
[]
[]
[]
[]
[]
[]
[]
[]
[]
[]
[]
[]
[]
[]
[]
[]
[]
[]
[]
[]
[]
[]
[]
[]
[]
[]
[]
[]
[]
[]
[]
[]
[]
[]
[]
[]
[]
[]
[]
[]
[]
[]
[]
[]
[]
[]
[]
[]
[]
[]
[]
[]
[]
[]
[]
[]
[]
[]
[]
[]
[]
[]
[]
[]
[]
[]
[]
[]
[]
[]
[]
[]
[]
[]
[]
[]
[]
[]
[]
[]
[]
[]
[]
[]
[]
[]
[]
[]
[]
[]
[]
[]
[]
[]
[]
[]
[]
[]
[]
[]
[]
[]
[]
[]
[]
[]
[]
[]
[]
[]
[]
[]
[]
[]
[]
[]
[]
[]
[]
[]
[]
[]
[]
[]
[]
[]
[]
[]
[]
[]
[]
[]
[]
[]
[]
[]
[]
[]
[]
[]
[]
[]
[]
[]
[]
[]
[]
[]
[]
[]
[]
[]
[]
[]
[]
[]
[]
[]
[]
[]
[]
[]
[]
[]
[]
[]
[]
[]
[]
[]
[]
[]
[]
[]
[]
[]
[]
[]
[]
[]
[]
[]
[]
[]
[]
[]
[]
[]
[]
[]
[]
[]
[]
[]
[]
[]
[]
[]
[]
[]
[]
[]
[]
[]
[]
[]
[]
[]
[]
[]
[]
[]
[]
[]
[]
[]
[]
[]
[]
[]
[]
[]
[]
[]
[]
[]
[]
[]
[]
[]
[]
[]
[]
[]
[]
[]
[]
[]
[]
[]
[]
[]
[]
[]
[]
[]
[]
[]
[]
[]
[]
[]
[]
[]
[]
[]
[]
[]
[]
[]
[]
[]
[]
[]
[]
[]
[]
[]
[]
[]
[]
[]
[]
[]
[]
[]
[]
[]
[]
[]
[]
[]
[]
[]
[]
[]
[]
[]
[]
[]
[]
[]
[]
[]
[]
[]
[]
[]
[]
[]
[]
[]
[]
[]
[]
[]
[]
[]
[]
[]
[]
[]
[]
[]
[]
[]
[]
[]
[]
[]
[]
[]
[]
[]
[]
[]
[]
[]
[]
[]
[]
[]
[]
[]
[]
[]
[]
[]
[]
[]
[]
[]
[]
[]
[]
[]
[]
[]
[]
[]
[]
[]
[]
[]
[]
[]
[]
[]
[]
[]
[]
[]
[]
[]
[]
[]
[]
[]
[]
[]
[]
[]
[]
[]
[]
[]
[]
[]
[]
[]
[]
[]
[]
[]
[]
[]
[]
[]
[]
[]
[]
[]
[]
[]
[]
[]
[]
[]
[]
[]
[]
[]
[]
[]
[]
[]
[]
[]
[]
[]
[]
[]
[]
[]
[]
[]
[]
[]
[]
[]
[]
[]
[]
[]
[]
[]
[]
[]
[]
[]
[]
[]
[]
[]
[]
[]
[]
[]
[]
[]
[]
[]
[]
[]
[]
[]
[]
[]
[]
[]
[]
[]
[]
[]
[]
[]
[]
[]
[]
[]
[]
[]
[]
[]
[]
[]
[]
[]
[]
[]
[]
[]
[]
[]
[]
[]
[]
[]
[]
[]
[]
[]
[]
[]
[]
[]
[]
[]
[]
[]
[]
[]
[]
[]
[]
[]
[]
[]
[]
[]
[]
[]
[]
[]
[]
[]
[]
[]
[]
[]
[]
[]
[]
[]
[]
[]
[]
[]
[]
[]
[]
[]
[]
[]
[]
[]
[]
[]
[]
[]
[]
[]
[]
[]
[]
[]
[]
[]
[]
[]
[]
[]
[]
[]
[]
[]
[]
[]
[]
[]
[]
[]
[]
[]
[]
[]
[]
[]
[]
[]
[]
[]
[]
[]
[]
[]
[]
[]
[]
[]
[]
[]
[]
[]
[]
[]
[]
[]
[]
[]
[]
[]
[]
[]
[]
[]
[]
[]
[]
[]
[]
[]
[]
[]
[]
[]
[]
[]
[]
[]
[]
[]
[]
[]
[]
[]
[]
[]
[]
[]
[]
[]
[]
[]
[]
[]
[]
[]
[]
[]
[]
[]
[]
[]
[]
[]
[]
[]
[]
[]
[]
[]
[]
[]
[]
[]
[]
[]
[]
[]
[]
[]
[]
[]
[]
[]
[]
[]
[]
[]
[]
[]
[]
[]
[]
[]
[]
[]
[]
[]
[]
[]
[]
[]
[]
[]
[]
[]
[]
[]
[]
[]
[]
[]
[]
[]
[]
[]
[]
[]
[]
[]
[]
[]
[]
[]
[]
[]
[]
[]
[]
[]
[]
[]
[]
[]
[]
[]
[]
[]
[]
[]
[]
[]
[]
[]
[]
[]
[]
[]
[]
[]
[]
[]
[]
[]
[]
[]
[]
[]
[]
[]
[]
[]
[]
[]
[]
[]
[]
[]
[]
[]
[]
[]
[]
[]
[]
[]
[]
[]
[]
[]
[]
[]
[]
[]
[]
[]
[]
[]
[]
[]
[]
[]
[]
[]
[]
[]
[]
[]
[]
[]
[]
[]
[]
[]
[]
[]
[]
[]
[]
[]
[]
[]
[]
[]
[]
[]
[]
[]
[]
[]
[]
[]
[]
[]
[]
[]
[]
[]
[]
[]
[]
[]
[]
[]
[]
[]
[]
[]
[]
[]
[]
[]
[]
[]
[]
[]
[]
[]
[]
[]
[]
[]
[]
[]
[]
[]
[]
[]
[]
[]
[]
[]
[]
[]
[]
[]
[]
[]
[]
[]
[]
[]
[]
[]
[]
[]
[]
[]
[]
[]
[]
[]
[]
[]
[]
[]
[]
[]
[]
[]
[]
[]
[]
[]
[]
[]
[]
[]
[]
[]
[]
[]
[]
[]
[]
[]
[]
[]
[]
[]
[]
[]
[]
[]
[]
[]
[]
[]
[]
[]
[]
[]
[]
[]
[]
[]
[]
[]
[]
[]
[]
[]
[]
[]
[]
[]
[]
[]
[]
[]
[]
[]
[]
[]
[]
[]
[]
[]
[]
[]
[]
[]
[]
[]
[]
[]
[]
[]
[]
[]
[]
[]
[]
[]
[]
[]
[]
[]
[]
[]
[]
[]
[]
[]
[]
[]
[]
[]
[]
[]
[]
[]
[]
[]
[]
[]
[]
[]
[]
[]
[]
[]
[]
[]
[]
[]
[]
[]
[]
[]
[]
[]
[]
[]
[]
[]
[]
[]
[]
[]
[]
[]
[]
[]
[]
[]
[]
[]
[]
[]
[]
[]
[]
[]
[]
[]
[]
[]
[]
[]
[]
[]
[]
[]
[]
[]
[]
[]
[]
[]
[]
[]
[]
[]
[]
[]
[]
[]
[]
[]
[]
[]
[]
[]
[]
[]
[]
[]
[]
[]
[]
[]
[]
[]
[]
[]
[]
[]
[]
[]
[]
[]
[]
[]
[]
[]
[]
[]
[]
[]
[]
[]
[]
[]
[]
[]
[]
[]
[]
[]
[]
[]
[]
[]
[]
[]
[]
[]
[]
[]
[]
[]
[]
[]
[]
[]
[]
[]
[]
[]
[]
[]
[]
[]
[]
[]
[]
[]
[]
[]
[]
[]
[]
[]
[]
[]
[]
[]
[]
[]
[]
[]
[]
[]
[]
[]
[]
[]
[]
[]
[]
[]
[]
[]
[]
[]
[]
[]
[]
[]
[]
[]
[]
[]
[]
[]
[]
[]
[]
[]
[]
[]
[]
[]
[]
[]
[]
[]
[]
[]
[]
[]
[]
[]
[]
[]
[]
[]
[]
[]
[]
[]
[]
[]
[]
[]
[]
[]
[]
[]
[]
[]
[]
[]
[]
[]
[]
[]
[]
[]
[]
[]
[]
[]
[]
[]
[]
[]
[]
[]
[]
[]
[]
[]
[]
[]
[]
[]
[]
[]
[]
[]
[]
[]
[]
[]
[]
[]
[]
[]
[]
[]
[]
[]
[]
[]
[]
[]
[]
[]
[]
[]
[]
[]
[]
[]
[]
[]
[]
[]
[]
[]
[]
[]
[]
[]
[]
[]
[]
[]
[]
[]
[]
[]
[]
[]
[]
[]
[]
[]
[]
[]
[]
[]
[]
[]
[]
[]
[]
[]
[]
[]
[]
[]
[]
[]
[]
[]
[]
[]
[]
[]
[]
[]
[]
[]
[]
[]
[]
[]
[]
[]
[]
[]
[]
[]
[]
[]
[]
[]
[]
[]
[]
[]
[]
[]
[]
[]
[]
[]
[]
[]
[]
[]
[]
[]
[]
[]
[]
[]
[]
[]
[]
[]
[]
[]
[]
[]
[]
[]
[]
[]
[]
[]
[]
[]
[]
[]
[]
[]
[]
[]
[]
[]
[]
[]
[]
[]
[]
[]
[]
[]
[]
[]
[]
[]
[]
[]
[]
[]
[]
[]
[]
[]
[]
[]
[]
[]
[]
[]
[]
[]
[]
[]
[]
[]
[]
[]
[]
[]
[]
[]
[]
[]
[]
[]
[]
[]
[]
[]
[]
[]
[]
[]
[]
[]
[]
[]
[]
[]
[]
[]
[]
[]
[]
[]
[]
[]
[]
[]
[]
[]
[]
[]
[]
[]
[]
[]
[]
[]
[]
[]
[]
[]
[]
[]
[]
[]
[]
[]
[]
[]
[]
[]
[]
[]
[]
[]
[]
[]
[]
[]
[]
[]
[]
[]
[]
[]
[]
[]
[]
[]
[]
[]
[]
[]
[]
[]
[]
[]
[]
[]
[]
[]
[]
[]
[]
[]
[]
[]
[]
[]
[]
[]
[]
[]
[]
[]
[]
[]
[]
[]
[]
[]
[]
[]
[]
[]
[]
[]
[]
[]
[]
[]
[]
[]
[]
[]
[]
[]
[]
[]
[]
[]
[]
[]
[]
[]
[]
[]
[]
[]
[]
[]
[]
[]
[]
[]
[]
[]
[]
[]
[]
[]
[]
[]
[]
[]
[]
[]
[]
[]
[]
[]
[]
[]
[]
[]
[]
[]
[]
[]
[]
[]
[]
[]
[]
[]
[]
[]
[]
[]
[]
[]
[]
[]
[]
[]
[]
[]
[]
[]
[]
[]
[]
[]
[]
[]
[]
[]
[]
[]
[]
[]
[]
[]
[]
[]
[]
[]
[]
[]
[]
[]
[]
[]
[]
[]
[]
[]
[]
[]
[]
[]
[]
[]
[]
[]
[]
[]
[]
[]
[]
[]
[]
[]
[]
[]
[]
[]
[]
[]
[]
[]
[]
[]
[]
[]
[]
[]
[]
[]
[]
[]
[]
[]
[]
[]
[]
[]
[]
[]
[]
[]
[]
[]
[]
[]
[]
[]
[]
[]
[]
[]
[]
[]
[]
[]
[]
[]
[]
[]
[]
[]
[]
[]
[]
[]
[]
[]
[]
[]
[]
[]
[]
[]
[]
[]
[]
[]
[]
[]
[]
[]
[]
[]
[]
[]
[]
[]
[]
[]
[]
[]
[]
[]
[]
[]
[]
[]
[null,null,null,null,null,null,null,null,null,null,null,null,null,null,null,null,null,null,null,null,null,null,null,null,null,null,null,null,null,null,null,null,null,null,null,null,null,null,null,null,null,null,null,null,null,null,null,null,null,null,null,null,null,null,null,null,null,null,null,null,null,null,null,null,null,null,null,null,null,null,null,null,null,null,null,null,null,null,null,null,null,null,null,null,null,null,null,null,null,null,null,null,null,null,null,null,null,null,null,null,null,null,null,null,null,null,null,null,null,null,null,null,null,null,null,null,null,null,null,null,null,null,null,null,null,null,null,null,null,null,null,null,null,null,null,null,null,null,null,null,null,null,null,null,null,null,null,null,null,null,null,null,null,null,null,null,null,null,null,null,null,null,null,null,null,null,null,null,null,null,null,null,null,null,null,null,null,null,null,null,null,null,null,null,null,null,null,null,null,null,null,null,null,null,null,null,null,null,null,null,null,null,null,null,null,null,null,null,null,null,null,null,null,null,null,null,null,null,null,null,null,null,null,null,null,null,null,null,null,null,null,null,null,null,null,null,null,null,null,null,null,null,null,null,null,null,null,null,null,null,null,null,null,null,null,null,null,null,null,null,null,null,null,null,null,null,null,null,null,null,null,null,null,null,null,null,null,null,null,null,null,null,null,null,null,null,null,null,null,null,null,null,null,null,null,null,null,null,null,null,null,null,null,null,null,null,null,null,null,null,null,null,null,null,null,null,null,null,null,null,null,null,null,null,null,null,null,null,null,null,null,null,null,null,null,null,null,null,null,null,null,null,null,null,null,null,null,null,null,null,null,null,null,null,null,null,null,null,null,null,null,null,null,null,null,null,null,null,null,null,null,null,null,null,null,null,null,null,null,null,null,null,null,null,null,null,null,null,null,null,null,null,null,null,null,null,null,null,null,null,null,null,null,null,null,null,null,null,null,null,null,null,null,null,null,null,null,null,null,null,null,null,null,null,null,null,null,null,null,null,null,null,null,null,null,null,null,null,null,null,null,null,null,null,null,null,null,null,null,null,null,null,null,null,null,null,null,null,null,null,null,null,null,null,null,null,null,null,null,null,null,null,null,null,null,null,null,null,null,null,null,null,null,null,null,null,null,null,null,null,null,null,null,null,null,null,null,null,null,null,null,null,null,null,null,null,null,null,null,null,null,null,null,null,null,null,null,null,null,null,null,null,null,null,null,null,null,null,null,null,null,null,null,null,null,null,null,null,null,null,null,null,null,null,null,null,null,null,null,null,null,null,null,null,null,null,null,null,null,null,null,null,null,null,null,null,null,null,null,null,null,null,null,null,null,null,null,null,null,null,null,null,null,null,null,null,null,null,null,null,null,null,null,null,null,null,null,null,null,null,null,null,null,null,null,null,null,null,null,null,null,null,null,null,null,null,null,null,null,null,null,null,null,null,null,null,null,null,null,null,null,null,null,null,null,null,null,null,null,null,null,null,null,null,null,null,null,"Luis.chirivi"]
[null,null,null,null,null,null,null,null,null,null,null,null,null,null,null,null,null,null,null,null,null,null,null,null,null,null,null,null,null,null,null,null,null,null,null,null,null,null,null,null,null,null,null,null,null,null,null,null,null,null,null,null,null,null,null,null,null,null,null,null,null,null,null,null,null,null,null,null,null,null,null,null,null,null,null,null,null,null,null,null,null,null,null,null,null,null,null,null,null,null,null,null,null,null,null,null,null,null,null,null,null,null,null,null,null,null,null,null,null,null,null,null,null,null,null,null,null,null,null,null,null,null,null,null,null,null,null,null,null,null,null,null,null,null,null,null,null,null,null,null,null,null,null,null,null,null,null,null,null,null,null,null,null,null,null,null,null,null,null,null,null,null,null,null,null,null,null,null,null,null,null,null,null,null,null,null,null,null,null,null,null,null,null,null,null,null,null,null,null,null,null,null,null,null,null,null,null,null,null,null,null,null,null,null,null,null,null,null,null,null,null,null,null,null,null,null,null,null,null,null,null,null,null,null,null,null,null,null,null,null,null,null,null,null,null,null,null,null,null,null,null,null,null,null,null,null,null,null,null,null,null,null,null,null,null,null,null,null,null,null,null,null,null,null,null,null,null,null,null,null,null,null,null,null,null,null,null,null,null,null,null,null,null,null,null,null,null,null,null,null,null,null,null,null,null,null,null,null,null,null,null,null,null,null,null,null,null,null,null,null,null,null,null,null,null,null,null,null,null,null,null,null,null,null,null,null,null,null,null,null,null,null,null,null,null,null,null,null,null,null,null,null,null,null,null,null,null,null,null,null,null,null,null,null,null,null,null,null,null,null,null,null,null,null,null,null,null,null,null,null,null,null,null,null,null,null,null,null,null,null,null,null,null,null,null,null,null,null,null,null,null,null,null,null,null,null,null,null,null,null,null,null,null,null,null,null,null,null,null,null,null,null,null,null,null,null,null,null,null,null,null,null,null,null,null,null,null,null,null,null,null,null,null,null,null,null,null,null,null,null,null,null,null,null,null,null,null,null,null,null,null,null,null,null,null,null,null,null,null,null,null,null,null,null,null,null,null,null,null,null,null,null,null,null,null,null,null,null,null,null,null,null,null,null,null,null,null,null,null,null,null,null,null,null,null,null,null,null,null,null,null,null,null,null,null,null,null,null,null,null,null,null,null,null,null,null,null,null,null,null,null,null,null,null,null,null,null,null,null,null,null,null,null,null,null,null,null,null,null,null,null,null,null,null,null,null,null,null,null,null,null,null,null,null,null,null,null,null,null,null,null,null,null,null,null,null,null,null,null,null,null,null,null,null,null,null,null,null,null,null,null,null,null,null,null,null,null,null,null,null,null,null,null,null,null,null,null,null,null,null,null,null,null,null,null,null,null,null,null,null,null,null,null,null,null,null,null,null,null,null,null,null,null,null,null,null,null,null,null,null,null,null,null,null,null,null,null,null,null,null,null,null,null,null,null,null,null,"Luis.chirivi"]

{"sheet":"General","index":1,"n_rows":48,"n_cols":24,"rows_kept":48,"cut":false,"hidden":false,"merged":[[45,1,45,8],[32,2,32,8],[36,2,36,8],[20,2,20,8],[22,3,22,8],[24,2,24,8],[26,3,26,8],[28,2,28,8],[33,2,33,6],[34,2,34,6],[35,2,35,6],[18,3,18,8],[14,2,14,5],[14,7,14,8],[1,1,2,6],[8,1,8,8],[9,2,9,5],[9,7,9,8],[10,7,10,8],[10,2,10,5],[6,2,6,5],[6,7,6,8],[11,2,11,5],[11,7,11,8],[12,2,12,8],[13,2,13,7]]}
[1,null,null,null,null,null,null,{"$f":"IFERROR(VLOOKUP($C$7,Dt!AD79:AE82,2,0),\"INV\")","v":"INO"},{"$f":"IFERROR(VLOOKUP($C$15,Dt!$AC$6:$AD$13,2,0),\"NT\")","v":"NT"},null,null,null,null,7,"A",{"$f":"COUNTIF($I$20:$I$28,O1)","v":1},{"$f":"IF(P1>0,$N1,0)","v":7},null,null,null,null,null,null,"Número de Paginas del documento final , se puede ajustar."]
[null,"PRESENTACIÓN DE PROPUESTAS DE IDEAS \nINNOVADORAS",null,null,null,null,null,"Fecha de Emisión: 2018/03/06","IN-IE-F-7",null,null,null,null,6,"A1",{"$f":"COUNTIF($I$20:$I$28,O2)","v":0},0,null,null,null,null,null,null,11]
[null,null,null,null,null,null,null,"Revision N°:\n4",{"$f":"\"Página \"&A1&\" de \"&Dt_TPG","v":"Página 1 de 11"},null,null,null,null,5,"B",0,0,null,"Innovación"]
[null,null,null,null,null,null,null,null,null,null,null,null,null,null,null,0,0]
["1.-","Información general del proyecto.",null,null,null,null,null,null,"Vrs. 09-2018",null,null,null,null,4,"C",0,0,null,null,null,null,null,null,"Hoy es "]
[null,null,null,null,null,null,null,null,null,null,null,null,null,null,null,0,0]
[null,"Convocatoria:","Innovación",null,null,null,"Codigo / Radicado",null,null,null,null,null,null,3,"D",0,0,null,null,null,null,null,null,{"$f":"NOW()","v":"2018-09-18T11:56:30.810"}]
[null,null,null,null,null,null,null,null,null,null,null,null,null,2,"R",0,0]
[null,null,null,null,null,null,null,null,null,null,null,null,null,1,"NR",0,0]
[null,"Líder: ",null,null,null,null,"Teléfonos :",null,null,null,null,null,null,null,null,null,null,null,null,null,null,null,null,"2017-03-02"]
[null,"Correo:",null,null,null,null," Sede:"]
[null,"Dirección",null,null,null,null,"Ciudad:"]
[null,"Modalidad 1","Mod-1. Oportunidades de Transferencia para productos patentados o en proceso de\npatente - TRL mayor o igual a 7"]
[null,"Mapeo Tecnologico","¿Cuenta con un descriptivo que permita identifcar el potencial de mercado?",null,null,null,null,null,"Sí"]
[null,"Facultad ",null,null,null,null,"Programa",null,null,null,null,"Clasificación Grupo Máximo",{"$f":"IFERROR(VLOOKUP($N$15,$N$1:$O$9,2,0),\"NR\")","v":"A"},{"$f":"MAX(Q1:Q9)","v":7}]
[]
["2.-","Información de Grupos de Investigación UMNG asociados al proyecto"]
[]
[null,"Grupo Principal","ING","GAV",null,null,null,null,null,null,{"$f":"IF(AND(Cel_TP=\"IMP\",L20>0),D19,1)","v":1},{"$f":"IFERROR(VLOOKUP($D19,Dt!$AP$3:$AQ$75,2,0),0)","v":"COL0068762"}]
[null,"Link Colciencias:",{"$f":"IFERROR(VLOOKUP(L19,Dt!$AQ$3:$AS$75,3,0),\"\")","v":"http://scienti.colciencias.gov.co:8085/gruplac/jsp/visualiza/visualizagr.jsp?nro=00000000004391"},null,null,null,null,null,{"$f":"IFERROR(VLOOKUP(L19,Dt!$AQ$3:$AS$75,2,0),\"\")","v":"A"},null,{"$f":"I20","v":"A"},{"$f":"COUNTIF($O$7:$O$9,I20)","v":0}]
[null,"Lineas",null,null,null,null,null,null,null,null,{"$f":"\"Puntos:\"&Productos!#REF!","v":{"$error":"#REF!"}},{"$f":"IFERROR(\"DT!\"&VLOOKUP($D19,Dt!$AP$3:$AT$75,5,0),0)","v":"DT!BB225:BB230"}]
[]
[{"$f":"IFERROR(VLOOKUP(D23,Dt!$AP$3:$AU$75,5,0),\"\")","v":""},"Grupo Aliado 1",null,null,null,null,null,null,null,null,null,{"$f":"IFERROR(VLOOKUP($D23,Dt!$AP$3:$AQ$75,2,0),0)","v":0}]
[null,"Link Colciencias:",{"$f":"IFERROR(VLOOKUP(L23,Dt!$AQ$3:$AS$75,3,0),\"\")","v":""},null,null,null,null,null,{"$f":"IFERROR(VLOOKUP(L23,Dt!$AQ$3:$AS$75,2,0),\"\")","v":""}]
[{"$f":"IFERROR(VLOOKUP($C25,Dt!$BB$3:$BD$297,3,0),\"\")","v":""},"Lineas",null,null,null,null,null,null,null,null,null,{"$f":"IFERROR(\"DT!\"&VLOOKUP($D23,Dt!$AP$3:$AT$75,5,0),0)","v":0}]
[]
[null,"Grupo Aliado 2",null,null,null,null,null,null,null,null,null,{"$f":"IFERROR(VLOOKUP($D27,Dt!$AP$3:$AQ$75,2,0),0)","v":0}]
[null,"Link Colciencias:",{"$f":"IFERROR(VLOOKUP(L27,Dt!$AQ$3:$AS$75,3,0),\"\")","v":""},null,null,null,null,null,{"$f":"\"Clasif.:\"&IFERROR(VLOOKUP(L27,Dt!$AQ$3:$AS$75,2,0),\"\")","v":"Clasif.:"}]
[null,"Lineas",null,null,null,null,null,null,null,null,null,{"$f":"IFERROR(\"DT!\"&VLOOKUP($D27,Dt!$AP$3:$AT$75,5,0),0)","v":0}]
[]
["3.-","Instituciones Externas participantes."]
[]
[null,"Nombre"]
[null,"Grupo",null,null,null,null,null,"Clasificación"]
[null,"Investigadores",null,null,null,null,null,"Presupuesto en plan de compras:",{"$f":"Presupuesto!H95","v":0}]
[null,"Tipo de Entidad",null,null,null,null,null,"Universidad ","No."]
[null,"Link Colciencias:",null,null,null,null,null,null,null,null,{"$f":"IF(L37=0,C37,0)","v":0},{"$f":"IFERROR(SEARCH(M37,C37,1),0)","v":0},"http://scienti.colciencias.gov"]
[]
[null,"Datos comprometidos."]
[]
[null,null,null,"$ Vicein:",{"$f":"IF(G41>0,Presupuesto!F95,0)","v":0},null,{"$f":"S41","v":1},null,{"$f":"\"Limite en millones \"&Integrantes!T4","v":"Limite en millones "},null,{"$f":"IF(Productos!O16>0,1,0)","v":0},null,null,null,null,null,null,null,{"$f":"ABS(RIGHT(LEFT(C13,5),1))","v":1}]
[null,"* Las areas sombreadas de color azul no son editables "]
[]
[null,"Observaciones o recomendaciones (no valida para calificación de Propuesta):"]
[]
[]
[]
[null,"Calificación del formato"]

{"sheet":"Resumen","index":2,"n_rows":127,"n_cols":9,"rows_kept":127,"cut":false,"hidden":false,"merged":[[119,2,119,4],[120,2,120,4],[121,2,121,4],[122,2,122,4],[123,2,123,4],[114,2,114,4],[115,2,115,4],[116,2,116,4],[117,2,117,4],[118,2,118,4],[93,2,93,4],[94,2,94,4],[95,2,95,4],[96,2,96,4],[97,2,97,4],[88,2,88,4],[89,2,89,4],[90,2,90,4],[91,2,91,4],[92,2,92,4],[80,2,80,4],[81,2,81,4],[82,2,82,4],[83,2,83,4],[75,2,75,4],[76,2,76,4],[77,2,77,4],[78,2,78,4],[79,2,79,4],[67,2,67,4],[68,2,68,4],[69,2,69,4],[70,2,70,4],[74,2,74,4],[62,2,62,4],[63,2,63,4],[64,2,64,4],[65,2,65,4],[66,2,66,4],[54,2,54,4],[55,2,55,4],[56,2,56,4],[57,2,57,4],[61,2,61,4],[49,2,49,4],[50,2,50,4],[51,2,51,4],[52,2,52,4],[53,2,53,4],[26,2,26,4],[27,2,27,4],[28,2,28,4],[29,2,29,4],[107,2,107,4],[40,2,40,4],[41,2,41,4],[42,2,42,4],[43,2,43,4],[34,2,34,4],[35,2,35,4],[36,2,36,4],[37,2,37,4],[38,2,38,4],[39,2,39,4],[48,2,48,4],[108,2,108,4],[109,2,109,4],[110,2,110,4],[102,2,102,4],[103,2,103,4],[104,2,104,4],[105,2,105,4],[106,2,106,4],[8,2,8,4],[7,2,7,4],[1,2,2,2],[6,2,6,4],[101,2,101,4],[13,2,13,4],[12,2,12,4],[11,2,11,4],[10,2,10,4],[9,2,9,4],[20,2,20,4],[21,2,21,4],[22,2,22,4],[23,2,23,4],[24,2,24,4],[25,2,25,4]]}
[2,null,null,null,null,null,"*Pueden  Ocultar las Filas que no se utilicen."]
[null,null,{"$f":"General!B2","v":"PRESENTACIÓN DE PROPUESTAS DE IDEAS \nINNOVADORAS"},{"$f":"General!$H$2","v":"Fecha de Emisión: 2018/03/06"},{"$f":"General!$I$2","v":"IN-IE-F-7"},null,{"$f":"SUM(G7:G14)","v":0},"<=== N° palabras en total"]
[null,null,null,{"$f":"General!$H$3","v":"Revision N°:\n4"},{"$f":"\"Página \"&A1&\" de \"&Dt_TPG","v":"Página 2 de 11"},null,"Palabras","Largo L","Limite"]
[]
["4.-","#","Resumen de la propuesta ",null,null,null,{"$f":"SUM(G6:G15)","v":0},{"$f":"SUM(H6:H15)","v":0},30000]
[null,null,null,null,null,null,null,null,{"$f":"I5","v":30000}]
[null,{"$f":"ROW()-6","v":1},null,null,null,null,{"$f":"IF(C7=\"\",0,LEN(TRIM(C7))-LEN(SUBSTITUTE(TRIM(C7),\" \",\"\"))+1)","v":0},{"$f":"LEN(C7)","v":0},{"$f":"I6","v":30000}]
[null,{"$f":"ROW()-6","v":2},null,null,null,null,{"$f":"IF(C8=\"\",0,LEN(TRIM(C8))-LEN(SUBSTITUTE(TRIM(C8),\" \",\"\"))+1)","v":0},{"$f":"LEN(C8)","v":0},30000]
[null,3,null,null,null,null,{"$f":"IF(C9=\"\",0,LEN(TRIM(C9))-LEN(SUBSTITUTE(TRIM(C9),\" \",\"\"))+1)","v":0},0,30000]
[null,4,null,null,null,null,0,0,30000]
[null,5,null,null,null,null,0,0,30000]
[null,6,null,null,null,null,0,0,30000]
[null,7,null,null,null,null,0,0,30000]
[null,8,null,null,null,null,0,0,30000]
[]
[]
[]
["5.-","#","Descripción de la propuesta .",null,null,null,{"$f":"SUM(G20:G381)","v":0},"<=== Palabras en total"]
["a.-","#","Planteamiento del problema u oportunidad identificada",null,null,null,{"$f":"SUM(G20:G367)","v":0},"<=== Palabras en total"]
[null,null,null,null,null,null,{"$f":"IF(C20=\"\",0,LEN(TRIM(C20))-LEN(SUBSTITUTE(TRIM(C20),\" \",\"\"))+1)","v":0}]
[null,{"$f":"ROW()-19","v":2},null,null,null,null,0]
[null,{"$f":"ROW()-19","v":3},null,null,null,null,0]
[null,4,null,null,null,null,0]
[null,5,null,null,null,null,0]
[null,6,null,null,null,null,0]
[null,7,null,null,null,null,0]
[null,8,null,null,null,null,0]
[null,9,null,null,null,null,0]
[null,10,null,null,null,null,0]
[null,11,null,null,null,null,0]
[null,null,null,null,null,null,null,null,{"$f":"\"Supera el número de palabra permitidas para el resumen por favor quitar \"&(G2-250)&\" palabras.\"","v":"Supera el número de palabra permitidas para el resumen por favor quitar -250 palabras."}]
[]
["b.-","#","Pertinencia",null,null,null,{"$f":"SUM(G34:G381)","v":0},"<=== Palabras en total"]
[null,null,null,null,null,null,{"$f":"IF(C34=\"\",0,LEN(TRIM(C34))-LEN(SUBSTITUTE(TRIM(C34),\" \",\"\"))+1)","v":0}]
[null,{"$f":"ROW()-19","v":16},null,null,null,null,0]
[null,{"$f":"ROW()-19","v":17},null,null,null,null,0]
[null,18,null,null,null,null,0]
[null,19,null,null,null,null,0]
[null,20,null,null,null,null,0]
[null,21,null,null,null,null,0]
[null,22,null,null,null,null,0]
[null,23,null,null,null,null,0]
[null,24,null,null,null,null,0]
[null,25,null,null,null,null,0]
[]
[]
["c.-","#","Metodología",null,null,null,{"$f":"SUM(G48:G382)","v":0},"<=== Palabras en total"]
[null,null,null,null,null,null,{"$f":"IF(C48=\"\",0,LEN(TRIM(C48))-LEN(SUBSTITUTE(TRIM(C48),\" \",\"\"))+1)","v":0}]
[null,{"$f":"ROW()-19","v":30},null,null,null,null,0]
[null,{"$f":"ROW()-19","v":31},null,null,null,null,0]
[null,32,null,null,null,null,0]
[null,33,null,null,null,null,0]
[null,34,null,null,null,null,0]
[null,35,null,null,null,null,0]
[null,36,null,null,null,null,0]
[null,37,null,null,null,null,0]
[null,38,null,null,null,null,0]
[null,39,null,null,null,null,0]
[]
["d.-","#","Estado de avance y aportes logrados",null,null,null,{"$f":"SUM(G61:G381)","v":0},"<=== Palabras en total"]
[null,null,null,null,null,null,{"$f":"IF(C61=\"\",0,LEN(TRIM(C61))-LEN(SUBSTITUTE(TRIM(C61),\" \",\"\"))+1)","v":0}]
[null,{"$f":"ROW()-19","v":43},null,null,null,null,0]
[null,{"$f":"ROW()-19","v":44},null,null,null,null,0]
[null,45,null,null,null,null,0]
[null,46,null,null,null,null,0]
[null,47,null,null,null,null,0]
[null,48,null,null,null,null,0]
[null,49,null,null,null,null,0]
[null,50,null,null,null,null,0]
[null,51,null,null,null,null,0]
[null,52,null,null,null,null,0]
[]
["e.-","#","Grado de Innovación",null,null,null,{"$f":"SUM(G74:G381)","v":0},"<=== Palabras en total"]
[null,null,null,null,null,null,{"$f":"IF(C74=\"\",0,LEN(TRIM(C74))-LEN(SUBSTITUTE(TRIM(C74),\" \",\"\"))+1)","v":0}]
[null,{"$f":"ROW()-19","v":56},null,null,null,null,0]
[null,{"$f":"ROW()-19","v":57},null,null,null,null,0]
[null,58,null,null,null,null,0]
[null,59,null,null,null,null,0]
[null,60,null,null,null,null,0]
[null,61,null,null,null,null,0]
[null,62,null,null,null,null,0]
[null,63,null,null,null,null,0]
[null,64,null,null,null,null,0]
[null,65,null,null,null,null,0]
[]
[]
["f.-","#","Contextualización de la Invención",null,null,null,{"$f":"SUM(G88:G382)","v":0},"<=== Palabras en total"]
[null,null,null,null,null,null,{"$f":"IF(C88=\"\",0,LEN(TRIM(C88))-LEN(SUBSTITUTE(TRIM(C88),\" \",\"\"))+1)","v":0}]
[null,{"$f":"ROW()-19","v":70},null,null,null,null,0]
[null,{"$f":"ROW()-19","v":71},null,null,null,null,0]
[null,72,null,null,null,null,0]
[null,73,null,null,null,null,0]
[null,74,null,null,null,null,0]
[null,75,null,null,null,null,0]
[null,76,null,null,null,null,0]
[null,77,null,null,null,null,0]
[null,78,null,null,null,null,0]
[null,79,null,null,null,null,0]
[]
["f.-","#","Valor agregado",null,null,null,{"$f":"SUM(G101:G395)","v":0},"<=== Palabras en total"]
[null,null,null,null,null,null,{"$f":"IF(C101=\"\",0,LEN(TRIM(C101))-LEN(SUBSTITUTE(TRIM(C101),\" \",\"\"))+1)","v":0}]
[null,{"$f":"ROW()-19","v":83},null,null,null,null,0]
[null,{"$f":"ROW()-19","v":84},null,null,null,null,0]
[null,85,null,null,null,null,0]
[null,86,null,null,null,null,0]
[null,87,null,null,null,null,0]
[null,88,null,null,null,null,0]
[null,89,null,null,null,null,0]
[null,90,null,null,null,null,0]
[null,91,null,null,null,null,0]
[null,92,null,null,null,null,0]
[]
["g.-","#","Antecedentes profesionales o académicos del equipo técnico de trabajo",null,null,null,{"$f":"SUM(G114:G408)","v":0},"<=== Palabras en total"]
[null,null,null,null,null,null,{"$f":"IF(C114=\"\",0,LEN(TRIM(C114))-LEN(SUBSTITUTE(TRIM(C114),\" \",\"\"))+1)","v":0}]
[null,{"$f":"ROW()-19","v":96},null,null,null,null,0]
[null,{"$f":"ROW()-19","v":97},null,null,null,null,0]
[null,98,null,null,null,null,0]
[null,99,null,null,null,null,0]
[null,100,null,null,null,null,0]
[null,101,null,null,null,null,0]
[null,102,null,null,null,null,0]
[null,103,null,null,null,null,0]
[null,104,null,null,null,null,0]
[null,105,null,null,null,null,0]
[]
[]
[null,"*Pueden  Ocultar las Filas que no se utilicen."]

{"sheet":"Estado_del_arte","index":3,"n_rows":41,"n_cols":8,"rows_kept":41,"cut":false,"hidden":false,"merged":[[36,2,36,4],[1,2,2,2],[31,2,31,4],[32,2,32,4],[33,2,33,4],[34,2,34,4],[19,2,19,4],[20,2,20,4],[21,2,21,4],[22,2,22,4],[23,2,23,4],[24,2,24,4],[13,2,13,4],[14,2,14,4],[15,2,15,4],[16,2,16,4],[17,2,17,4],[35,2,35,4],[25,2,25,4],[26,2,26,4],[27,2,27,4],[28,2,28,4],[29,2,29,4],[30,2,30,4],[18,2,18,4],[12,2,12,4],[7,2,7,4],[8,2,8,4],[9,2,9,4],[10,2,10,4],[11,2,11,4]]}
[3,null,null,null,null,null,"*Pueden  Ocultar las Filas que no se utilicen."]
[null,null,{"$f":"General!B2","v":"PRESENTACIÓN DE PROPUESTAS DE IDEAS \nINNOVADORAS"},{"$f":"General!$H$2","v":"Fecha de Emisión: 2018/03/06"},{"$f":"General!$I$2","v":"IN-IE-F-7"}]
[null,null,null,{"$f":"General!$H$3","v":"Revision N°:\n4"},{"$f":"\"Página \"&A1&\" de \"&Dt_TPG","v":"Página 3 de 11"},null,{"$f":"SUM(G8:G3501)","v":0},"<== Total de palabras"]
[]
["6.-","#","Estado del arte de la propuesta.",null,null,null,"Largo"]
["c.-","#","Antecedentes cientificos y tecnologicos.",null,null,null,{"$f":"SUM(G7:G328)","v":0},"<=== Palabras en total"]
[]
[null,{"$f":"ROW()-6","v":2},null,null,null,null,{"$f":"IF(C8=\"\",0,LEN(TRIM(C8))-LEN(SUBSTITUTE(TRIM(C8),\" \",\"\"))+1)","v":0}]
[null,{"$f":"ROW()-6","v":3},null,null,null,null,{"$f":"IF(C9=\"\",0,LEN(TRIM(C9))-LEN(SUBSTITUTE(TRIM(C9),\" \",\"\"))+1)","v":0}]
[null,4,null,null,null,null,0]
[null,5,null,null,null,null,0]
[null,6,null,null,null,null,0]
[null,7,null,null,null,null,0]
[null,8,null,null,null,null,0]
[null,9,null,null,null,null,0]
[null,10,null,null,null,null,0]
[null,11,null,null,null,null,0]
[null,12,null,null,null,null,0]
[null,13,null,null,null,null,0]
[null,14,null,null,null,null,0]
[null,15,null,null,null,null,0]
[null,16,null,null,null,null,0]
[null,17,null,null,null,null,0]
[null,18,null,null,null,null,0]
[null,19,null,null,null,null,0]
[null,20,null,null,null,null,0]
[null,21,null,null,null,null,0]
[null,22,null,null,null,null,0]
[null,23,null,null,null,null,0]
[null,24,null,null,null,null,0]
[null,25,null,null,null,null,0]
[null,26,null,null,null,null,0]
[null,27,null,null,null,null,0]
[null,28,null,null,null,null,0]
[null,29,null,null,null,null,0]
[null,30,null,null,null,null,0]
[null,31,null,null,null,null,0]
[]
[]
[]
[null,"*Pueden  Ocultar las Filas que no se utilicen."]

{"sheet":"Objetivos","index":4,"n_rows":23,"n_cols":8,"rows_kept":23,"cut":false,"hidden":false,"merged":[[18,2,18,4],[17,2,17,4],[22,2,22,4],[21,2,21,4],[20,2,20,4],[19,2,19,4],[1,1,2,2],[7,2,7,4],[8,2,8,4],[9,2,9,4],[10,2,10,4],[6,1,6,4],[11,2,11,4],[13,2,13,4],[14,2,14,4],[15,2,15,4],[16,2,16,4],[12,2,12,4]]}
[4]
[null,{"$f":"General!B2","v":"PRESENTACIÓN DE PROPUESTAS DE IDEAS \nINNOVADORAS"},null,{"$f":"General!$H$2","v":"Fecha de Emisión: 2018/03/06"},{"$f":"General!$I$2","v":"IN-IE-F-7"}]
[null,null,null,{"$f":"General!$H$3","v":"Revision N°:\n4"},{"$f":"\"Página \"&A1&\" de \"&Dt_TPG","v":"Página 4 de 11"},null,{"$f":"SUM(G7:G3500)","v":0},"<== Total de palabras"]
[]
["7.-","Objetivos de la propuesta.",null,null,null,null,"Largo"]
[]
[null,"*El especio del Item (0) Cero es para definir el objetivo general los demás corresponden a objetivos especificos "]
[null,{"$f":"ROW()-8","v":0},null,null,null,null,{"$f":"IF(C8=\"\",0,LEN(TRIM(C8))-LEN(SUBSTITUTE(TRIM(C8),\" \",\"\"))+1)","v":0}]
[null,{"$f":"ROW()-8","v":1},null,null,null,null,0]
[null,2,null,null,null,null,0]
[null,3,null,null,null,null,0]
[null,4,null,null,null,null,0]
[null,5,null,null,null,null,0]
[null,6,null,null,null,null,0]
[null,7,null,null,null,null,0]
[null,8,null,null,null,null,0]
[null,9,null,null,null,null,0]
[null,10,null,null,null,null,0]
[null,11,null,null,null,null,0]
[null,12,null,null,null,null,0]
[null,13,null,null,null,null,0]
[null,14,null,null,null,null,0]
[null,15,null,null,null,null,0]

{"sheet":"Cronograma","index":5,"n_rows":33,"n_cols":12,"rows_kept":33,"cut":false,"hidden":false,"merged":[[1,1,2,2]]}
[6,null,null,null,null,null,null,null,"*Pueden  Ocultar las Filas que no se utilicen.",null,null,{"$f":"(\"* Actualmente tiene \"&G7&\" meses de ejecución no superar los \"& G5&\" meses.\")","v":"* Actualmente tiene 0 meses de ejecución no superar los 12 meses."}]
[null,{"$f":"General!B2","v":"PRESENTACIÓN DE PROPUESTAS DE IDEAS \nINNOVADORAS"},null,{"$f":"General!$H$2","v":"Fecha de Emisión: 2018/03/06"},{"$f":"General!$I$2","v":"IN-IE-F-7"}]
[null,null,null,{"$f":"General!$H$3","v":"Revision N°:\n4"},{"$f":"\"Página \"&A1&\" de \"&Dt_TPG","v":"Página 6 de 11"}]
[]
["9.-","Cronograma de actividades a desarrollar",null,null,{"$f":"Integrantes!J6","v":12},null,{"$f":"E5","v":12},"Meses Maximo","Palabras"]
[]
[null,"No","Descripción básica de la actividad","Mes de Inicio","Duración en mes",null,{"$f":"MAX(G8:G27)","v":0},"Meses de ejecición actuales",{"$f":"SUM(I8:I27)","v":0},"<== Total de palabras"]
[null,{"$f":"ROW()-7","v":1},null,null,null,null,{"$f":"SUM(D8:E8)","v":0},null,{"$f":"IF(C8=\"\",0,LEN(TRIM(C8))-LEN(SUBSTITUTE(TRIM(C8),\" \",\"\"))+1)","v":0}]
[null,{"$f":"ROW()-7","v":2},null,null,null,null,{"$f":"SUM(D9:E9)","v":0},null,{"$f":"IF(C9=\"\",0,LEN(TRIM(C9))-LEN(SUBSTITUTE(TRIM(C9),\" \",\"\"))+1)","v":0}]
[null,3,null,null,null,null,0,null,0]
[null,4,null,null,null,null,0,null,0]
[null,5,null,null,null,null,0,null,0]
[null,6,null,null,null,null,0,null,0]
[null,7,null,null,null,null,0,null,0]
[null,8,null,null,null,null,0,null,0]
[null,9,null,null,null,null,0,null,0]
[null,10,null,null,null,null,0,null,0]
[null,11,null,null,null,null,0,null,0]
[null,12,null,null,null,null,0,null,0]
[null,13,null,null,null,null,0,null,0]
[null,14,null,null,null,null,0,null,0]
[null,15,null,null,null,null,0,null,0]
[null,16,null,null,null,null,0,null,0]
[null,17,null,null,null,null,0,null,0]
[null,18,null,null,null,null,0,null,0]
[null,19,null,null,null,null,0,null,0]
[null,20,null,null,null,null,0,null,0]
[]
[null,null,{"$f":"IF(G7>G5,L1,\".\")","v":"."}]
[]
[]
[]
[null,"*Pueden  Ocultar las Filas que no se utilicen."]

{"sheet":"Productos","index":6,"n_rows":29,"n_cols":17,"rows_kept":29,"cut":false,"hidden":false,"merged":[[14,3,14,4],[12,3,12,4],[13,3,13,4],[5,3,5,4],[6,3,6,4],[7,3,7,4],[8,3,8,4],[1,1,2,3],[25,2,25,4],[26,2,26,4],[27,2,27,4],[28,2,28,4],[19,2,19,4],[20,2,20,4],[21,2,21,4],[22,2,22,4],[23,2,23,4],[24,2,24,4],[15,3,15,4],[16,3,16,4],[9,3,9,4],[10,3,10,4],[11,3,11,4]]}
[7]
[null,{"$f":"General!B2","v":"PRESENTACIÓN DE PROPUESTAS DE IDEAS \nINNOVADORAS"},null,null,{"$f":"General!$H$2","v":"Fecha de Emisión: 2018/03/06"},{"$f":"General!$I$2","v":"IN-IE-F-7"}]
[null,null,null,null,{"$f":"General!$H$3","v":"Revision N°:\n4"},{"$f":"\"Página \"&A1&\" de \"&Dt_TPG","v":"Página 7 de 11"},null,null,"N","Abreviatura","IdClase","M1","M2","M3","M4","Indicadores","Ok"]
[null,null,null,null,{"$f":"IF(F5=\"INV\",3,4)","v":4},null,null,null,{"$f":"ROW()-3","v":1},"Estudio de mercado","NA",0,0,0,0,"Documento",{"$f":"SUMIFS(#REF!,$C$7:$C$26,$J4)","v":{"$error":"#REF!"}}]
["10.-","Productividad comprometida",null,null,null,{"$f":"General!$H$1","v":"INO"},null,null,{"$f":"ROW()-3","v":2},"Hoja de Ruta (Transferencia)","NA",0,0,0,0,"Documento",{"$f":"SUMIFS(#REF!,$C$7:$C$26,$J5)","v":{"$error":"#REF!"}}]
[null,"N°","Resultado/Producto esperado","Descripción o detalles del producto esperado",null,"Indicador",null,null,3,"Modelo de Negocio","NA",0,0,0,0,"Documento",{"$f":"SUMIFS(#REF!,$C$7:$C$26,$J6)","v":{"$error":"#REF!"}}]
[null,{"$f":"ROW()-6","v":1},null,null,null,{"$f":"IFERROR(VLOOKUP($C7,J3:$Q$14,7,0),\" \")","v":" "},null,null,4,"Portafolio -Producto o Servicio","NA",0,0,0,0,"Brochure ",{"$f":"SUMIFS(#REF!,$C$7:$C$26,$J7)","v":{"$error":"#REF!"}}]
[null,{"$f":"ROW()-6","v":2},null,null,null,{"$f":"IFERROR(VLOOKUP($C8,J4:$Q$14,7,0),\" \")","v":" "},null,null,5,"Capacitación en Marketing","NA",0,0,0,0,"Certificación ",{"$f":"SUMIFS(#REF!,$C$7:$C$26,$J8)","v":{"$error":"#REF!"}}]
[null,3,null,null,null,{"$f":"IFERROR(VLOOKUP($C9,J4:$Q$14,7,0),\" \")","v":" "},null,null,6,"Prototipo Escalado y Validado","NA",0,0,0,0,"Pruebas, Fotos o videos que evidencien la funcionalidad y validación del mismo",{"$f":"SUMIFS(#REF!,$C$7:$C$26,$J9)","v":{"$error":"#REF!"}}]
[null,4,null,null,null,{"$f":"IFERROR(VLOOKUP($C10,J4:$Q$14,7,0),\" \")","v":" "},null,null,7,"Caracterización","NA",0,0,0,0,"Ficha Técnica",{"$f":"SUMIFS(#REF!,$C$7:$C$26,$J10)","v":{"$error":"#REF!"}}]
[null,5,null,null,null,{"$f":"IFERROR(VLOOKUP($C11,J4:$Q$14,7,0),\" \")","v":" "},null,null,8,"Potencial de mercado","NA",0,0,0,0,"Documento",{"$f":"SUMIFS(#REF!,$C$7:$C$26,$J11)","v":{"$error":"#REF!"}}]
[null,6,null,null,null,{"$f":"IFERROR(VLOOKUP($C12,J4:$Q$14,7,0),\" \")","v":" "},null,null,9,"Análisis estratagias de protección","NA",0,0,0,0,"Documento",{"$f":"SUMIFS(#REF!,$C$7:$C$26,$J12)","v":{"$error":"#REF!"}}]
[null,7,null,null,null,{"$f":"IFERROR(VLOOKUP($C13,J4:$Q$14,7,0),\" \")","v":" "},null,null,10,"Busqueda de anterioridades","NA",0,0,0,0,"Documento",{"$f":"SUMIFS(#REF!,$C$7:$C$26,$J13)","v":{"$error":"#REF!"}}]
[null,8,null,null,null,{"$f":"IFERROR(VLOOKUP($C14,J4:$Q$14,7,0),\" \")","v":" "}]
[null,9,null,null,null,{"$f":"IFERROR(VLOOKUP($C15,J4:$Q$14,7,0),\" \")","v":" "}]
[null,10,null,null,null,{"$f":"IFERROR(VLOOKUP($C16,J4:$Q$14,7,0),\" \")","v":" "}]
[]
[]
[11,null,"Estado de madurez del desarrollo (TRL):",null,null,"Cumple "]
[null,0,"Idea / propuesta no probada. El concepto aún se encuentra en el papel. No se han realizado análisis o pruebas.",null,null,"No Aplica"]
[null,1,"Funcionalidad básica / principios demostrados por análisis. Mostrará que la idea es tecnológicamente concebible.",null,null,"No Aplica"]
[null,2,"Estudios analíticos, pruebas a pequeña escala en ambiente de laboratorio. Demostrarán que la tecnología puede cumplir con objetivos específicos con un desarrollo adicional. Las aplicaciones prácticas pueden ser inventadas. Las aplicaciones son especulativas y es posible que no haya pruebas o análisis detallados para respaldar las suposiciones.",null,null,"No Aplica"]
[null,3,"Los estudios analíticos y / o los estudios de laboratorio ofrecen resultados que validan las predicciones / objetivo.  Si es relevante, validación de elementos separados de la tecnología. (Los ejemplos pueden incluir componentes que pueden no estar integrados o ser representativos). Prueba de concepto.",null,null,"No Aplica"]
[null,4,"Construcción de prototipos, se demuestra la funcionalidad mediante pruebas en un rango limitado de condiciones de operación. Si es escalable, estas pruebas se realizan en versiones escaladas. Primer prototipo de laboratorio",null,null,"No Aplica"]
[null,5,"Primer uso del prototipo a escala real: tecnología  calificada mediante pruebas en el entorno deseado, simulado o real. El nuevo hardware ahora está listo para el primer uso. Prototipo de laboratorio mejorado.",null,null,"No Aplica"]
[null,6,"Modelo / prototipo representativo probado y validado en un entorno relevante. Representa un avance importante en la disponibilidad demostrada de una tecnología (los ejemplos pueden incluir probar un prototipo en un entorno de laboratorio de alta fidelidad do en un entorno operativo simulado).",null,null,"No Aplica"]
[null,7,"La integración de tecnología se prueba en un entorno operativo. La tecnología a escala completa está integrada para la prueba en el sistema operativo previsto con una interfaz y funcionalidad completas. Prototipo validado en entorno real.",null,null,"No Aplica"]
[null,8,"El programa de prueba se realiza en el entorno previsto: la tecnología muestra un rendimiento y fiabilidad aceptables durante un período de tiempo. Prototipo comercial.",null,null,"No Aplica"]
[null,9,"La aplicación real de la tecnología está en su forma final: tecnología probada a través de operaciones exitosas.",null,null,"No Aplica"]

{"sheet":"Integrantes","index":7,"n_rows":38,"n_cols":29,"rows_kept":38,"cut":false,"hidden":false,"merged":[[37,6,37,7],[10,6,10,7],[24,25,24,26],[35,1,37,1],[20,1,22,1],[23,1,25,1],[26,1,28,1],[29,1,31,1],[32,1,34,1],[21,5,21,7],[24,5,24,7],[33,5,33,7],[36,5,36,7],[27,5,27,7],[11,1,13,1],[14,1,16,1],[17,1,19,1],[13,6,13,7],[16,6,16,7],[19,6,19,7],[2,1,3,4],[2,6,2,7],[3,6,3,7],[8,1,10,1],[9,5,9,7],[31,6,31,7],[34,6,34,7],[30,5,30,7],[18,5,18,7],[12,5,12,7],[15,5,15,7],[22,6,22,7],[25,6,25,7],[28,6,28,7]]}
[8]
[]
[null,{"$f":"General!B2","v":"PRESENTACIÓN DE PROPUESTAS DE IDEAS \nINNOVADORAS"},null,null,null,{"$f":"General!$H$2","v":"Fecha de Emisión: 2018/03/06"},"IN-IV-F-14"]
[null,null,null,null,null,{"$f":"General!$H$3","v":"Revision N°:\n4"},{"$f":"\"Página \"&A1&\" de \"&Dt_TPG","v":"Página 8 de 11"},{"$f":"\"Página \"&A2&\" de \"&Dt_TPG","v":"Página  de 11"},null,20]
[]
["11.-","Investigadores Integrantes del proyecto.",null,null,null,{"$f":"Cel_TP","v":"INO"},{"$f":"Cel_Fac","v":"NT"},{"$f":"V_Max","v":0},null,{"$f":"IF(F6=\"INO\",12,6)","v":12},null,null,null,null,null,null,null,null,null,null,null,null,"* Cuadro para tener relación entre Fincion y Tipo de Vinculo"]
[]
[null,"No","Identificacion","Nombres","Apellidos","Nivel Academico","Mes","Horas",null,"Max","Min",null,null,null,null,null,null,null,null,null,null,null,"Funcion ","y","Vinculo","Mes","Fila","Max","Min"]
[null,1,null,null,null,null,{"$f":"J6","v":12},1,null,6,1,null,null,null,null,null,null,null,null,null,null,null,"Innovador Principal",{"$f":"$X$8&\"9:\"&$X$8&\"10\"","v":"y9:y10"},"Doc. Carrera TC",{"$f":"G9","v":12},{"$f":"ROW()","v":9},8,4]
[null,null,"Funcion :","Innovador Principal",null,null,null,null,null,{"$f":"IFERROR(VLOOKUP($F10,V_IdNBC,2,0),0)","v":0},null,null,null,null,null,null,null,null,null,null,null,null,"Innovador Principal",{"$f":"$X$8&\"9:\"&$X$8&\"10\"","v":"y9:y10"},"Doc. Carrera MT",{"$f":"Z9","v":12},{"$f":"ROW()","v":10},8,4]
[null,null,"Correo:",null,null,"Teléfono / Celular",null,null,null,{"$f":"IFERROR(VLOOKUP($E10,$Y$8:$Z$19,2,0),12)","v":12},null,null,null,null,null,null,null,null,null,null,null,null,"Coinnovador",{"$f":"$X$8&\"11:\"&$X$8&\"15\"","v":"y11:y15"},"Doc. Carrera TC",{"$f":"Z10","v":12},{"$f":"ROW()","v":11},8,4]
[null,2,null,null,null,null,null,null,null,{"$f":"J9","v":6},{"$f":"K9","v":1},null,null,null,null,null,null,null,null,null,null,null,"Coinnovador",{"$f":"$X$8&\"11:\"&$X$8&\"15\"","v":"y11:y15"},"Doc. Carrera MT",{"$f":"Z11","v":12},{"$f":"ROW()","v":12},8,4]
[null,{"$f":"+B12","v":2},"Funcion :","Coinnovador",null,null,null,null,null,{"$f":"IFERROR(VLOOKUP($F13,V_IdNBC,2,0),0)","v":0},null,null,null,null,null,null,null,null,null,null,null,null,"Coinnovador","y11:y15","Doc. Ocasional",10,{"$f":"ROW()","v":13},8,4]
[null,{"$f":"+B13","v":2},{"$f":"C11","v":"Correo:"},null,null,{"$f":"F11","v":"Teléfono / Celular"},null,null,null,{"$f":"IFERROR(VLOOKUP($E13,$Y$8:$Z$19,2,0),12)","v":12},null,null,null,null,null,null,null,null,null,null,null,null,"Coinnovador","y11:y15","Estudiante",12,{"$f":"ROW()","v":14},8,4]
[null,{"$f":"B12+1","v":3},null,null,null,null,null,null,null,{"$f":"J12","v":6},{"$f":"K12","v":1},null,null,null,null,null,null,null,null,null,null,null,"Coinnovador","y11:y15","Egresado de la UMNG",{"$f":"Z12","v":12},{"$f":"ROW()","v":15},8,4]
[null,{"$f":"+B15","v":3},"Funcion :",null,null,null,null,null,null,{"$f":"IFERROR(VLOOKUP($F16,V_IdNBC,2,0),0)","v":0},null,null,null,null,null,null,null,null,null,null,null,null,"Egresado",{"$f":"$X$8&AA16&\":\"&$X$8&AA16","v":"y16:y16"},"Egresado de la UMNG",{"$f":"Z15","v":12},{"$f":"ROW()","v":16},8,4]
[null,{"$f":"+B16","v":3},{"$f":"C14","v":"Correo:"},null,null,{"$f":"F14","v":"Teléfono / Celular"},null,null,null,{"$f":"IFERROR(VLOOKUP($E16,$Y$8:$Z$19,2,0),12)","v":12},null,null,null,null,null,null,null,null,null,null,null,null,"Asistente OPS",{"$f":"$X$8&AA17&\":\"&$X$8&AA17","v":"y17:y17"},"OPS - Prestación Servicios",10,{"$f":"ROW()","v":17}]
[null,{"$f":"B15+1","v":4},null,null,null,null,null,null,null,{"$f":"J15","v":6},{"$f":"K15","v":1},null,null,null,null,null,null,null,null,null,null,null,"Joven Investigador",{"$f":"$X$8&AA18&\":\"&$X$8&AA18","v":"y18:y18"},"OPS - Prestación Servicios",10,{"$f":"ROW()","v":18}]
[null,{"$f":"+B18","v":4},"Funcion :",null,null,null,null,null,null,{"$f":"IFERROR(VLOOKUP($F19,V_IdNBC,2,0),0)","v":0},null,null,null,null,null,null,null,null,null,null,null,null,"Estudiante",{"$f":"$X$8&AA19&\":\"&$X$8&AA19","v":"y19:y19"},"Auxiliar  de Investigación",12,{"$f":"ROW()","v":19}]
[null,{"$f":"+B19","v":4},{"$f":"C17","v":"Correo:"},null,null,{"$f":"F17","v":"Teléfono / Celular"},null,null,null,{"$f":"IFERROR(VLOOKUP($E19,$Y$8:$Z$19,2,0),12)","v":12}]
[null,{"$f":"B18+1","v":5},null,null,null,null,null,null,null,{"$f":"J18","v":6},1]
[null,{"$f":"+B21","v":5},"Funcion :",null,null,null,null,null,null,{"$f":"IFERROR(VLOOKUP($F22,V_IdNBC,2,0),0)","v":0}]
[null,{"$f":"+B22","v":5},{"$f":"C20","v":"Correo:"},null,null,{"$f":"F20","v":"Teléfono / Celular"},null,null,null,{"$f":"IFERROR(VLOOKUP($E22,$Y$8:$Z$19,2,0),12)","v":12}]
[null,{"$f":"B21+1","v":6},null,null,null,null,null,null,null,{"$f":"J21","v":6},1]
[null,{"$f":"+B24","v":6},"Funcion :",null,null,null,null,null,null,{"$f":"IFERROR(VLOOKUP($F25,V_IdNBC,2,0),0)","v":0},null,null,null,null,null,null,null,null,null,null,null,null,"Clasificación de grupo máximo asociado a la propuesta ",null,null,{"$f":"Gp_Max","v":"A"}]
[null,{"$f":"+B25","v":6},{"$f":"C23","v":"Correo:"},null,null,{"$f":"F23","v":"Teléfono / Celular"},null,null,null,{"$f":"IFERROR(VLOOKUP($E25,$Y$8:$Z$19,2,0),12)","v":12},null,null,null,null,null,null,null,null,null,null,null,null,null,null,null,"Inv IP"]
[null,{"$f":"B24+1","v":7},null,null,null,null,null,null,null,{"$f":"J24","v":6},1,null,null,null,null,null,null,null,null,null,null,null,"Grupos","Millon","Entre","Max","Min"]
[null,{"$f":"+B27","v":7},"Funcion :",null,null,null,null,null,null,{"$f":"IFERROR(VLOOKUP($F28,V_IdNBC,2,0),0)","v":0},null,null,null,null,null,null,null,null,null,null,null,null,"Avalados ",25,"20- 39",8,4]
[null,{"$f":"+B28","v":7},{"$f":"C26","v":"Correo:"},null,null,{"$f":"F26","v":"Teléfono / Celular"},null,null,null,{"$f":"IFERROR(VLOOKUP($E28,$Y$8:$Z$19,2,0),12)","v":12},null,null,null,null,null,null,null,null,null,null,null,null,"Reconocidos",50,"40-59",12,8]
[null,{"$f":"B27+1","v":8},null,null,null,null,null,null,null,{"$f":"J27","v":6},1,null,null,null,null,null,null,null,null,null,null,null,"Mayores de Cat. C",75,"60-79",16,12]
[null,{"$f":"+B30","v":8},"Funcion :",null,null,null,null,null,null,{"$f":"IFERROR(VLOOKUP($F31,V_IdNBC,2,0),0)","v":0},null,null,null,null,null,null,null,null,null,null,null,null,"Mayores de Cat. C",100,"80-199",20,16]
[null,{"$f":"+B31","v":8},{"$f":"C29","v":"Correo:"},null,null,{"$f":"F29","v":"Teléfono / Celular"},null,null,null,{"$f":"IFERROR(VLOOKUP($E31,$Y$8:$Z$19,2,0),12)","v":12},null,null,null,null,null,null,null,null,null,null,null,null,"IMP",250,"200-300",24,10]
[null,{"$f":"B30+1","v":9},null,null,null,null,null,null,null,{"$f":"J30","v":6},1]
[null,{"$f":"+B33","v":9},"Funcion :",null,null,null,null,null,null,{"$f":"IFERROR(VLOOKUP($F34,V_IdNBC,2,0),0)","v":0}]
[null,{"$f":"+B34","v":9},{"$f":"C32","v":"Correo:"},null,null,{"$f":"F32","v":"Teléfono / Celular"},null,null,null,{"$f":"IFERROR(VLOOKUP($E34,$Y$8:$Z$19,2,0),12)","v":12}]
[null,{"$f":"B33+1","v":10},null,null,null,null,null,null,null,{"$f":"J33","v":6},1]
[null,{"$f":"+B36","v":10},"Funcion :",null,null,null,null,null,null,{"$f":"IFERROR(VLOOKUP($F37,V_IdNBC,2,0),0)","v":0}]
[null,{"$f":"+B37","v":10},{"$f":"C35","v":"Correo:"},null,null,{"$f":"F35","v":"Teléfono / Celular"},null,null,null,{"$f":"IFERROR(VLOOKUP($E37,$Y$8:$Z$19,2,0),12)","v":12}]

{"sheet":"Presupuesto","index":8,"n_rows":101,"n_cols":17,"rows_kept":101,"cut":false,"hidden":false,"merged":[[66,4,66,5],[61,4,61,5],[62,4,62,5],[63,4,63,5],[64,4,64,5],[65,4,65,5],[56,4,56,5],[57,4,57,5],[58,4,58,5],[59,4,59,5],[60,4,60,5],[98,4,99,8],[96,4,96,8],[2,1,3,6],[48,4,48,5],[49,4,49,5],[68,4,68,5],[67,4,67,5],[6,3,6,8],[7,3,7,5],[7,7,7,8],[50,4,50,5],[51,4,51,5],[52,4,52,5],[53,4,53,5],[54,4,54,5],[55,4,55,5]]}
[9]
[null,null,null,null,null,null,null,null,null,null,null,null,"Monto Financiable ",{"$f":"IFERROR(VLOOKUP(N4,$P$15:$Q$18,2,0),Q15)","v":20000000}]
[null,{"$f":"General!B2","v":"PRESENTACIÓN DE PROPUESTAS DE IDEAS \nINNOVADORAS"},null,null,null,null,null,{"$f":"General!$H$2","v":"Fecha de Emisión: 2018/03/06"},{"$f":"General!$I$2","v":"IN-IE-F-7"}]
[null,null,null,null,null,null,null,{"$f":"General!$H$3","v":"Revision N°:\n4"},{"$f":"\"Página \"&$A$1&\" de \"&Dt_TPG","v":"Página 9 de 11"},null,null,null,null,{"$f":"LEFT(General!C13,5)","v":"Mod-1"}]
[]
[]
[null,"T","Título de la Propuesta :",{"$f":"General!B9","v":0}]
[null,"L","Lider responsable",{"$f":"General!C10","v":0},null,null,"Codigo VICEIN:",{"$f":"General!H7","v":0}]
[]
["12.-","Presupuesto rubro personal asocidado a la propuesta",null,null,null,null,{"$f":"V_Max","v":0},{"$f":"Cel_TP","v":"INO"},{"$f":"Gp_Max","v":"A"}]
[null,null,null,null,null,null,null,null,1.66]
[null,"a.","Personal de planta o ocasional que integra al proyecto de investigación.",null,null,null,null,"Valores de Contrapartida."]
[{"$f":"ROW()","v":13},"N°","Sueldo Neto","Factor ","Tipo de Vinculo UMNG","Numero de meses ","Número Horas / Semanal","Valor Final","Identificación",null,null,"*tabla de consolidacion por año para proyectos IMP"]
[null,{"$f":"ROW()-$A$13","v":1},null,{"$f":"I11","v":1.66},{"$f":"INDIRECT($I$24&\"E\"&$J14+1,1)","v":0},{"$f":"INDIRECT($I$24&\"G\"&$J14,1)","v":12},{"$f":"INDIRECT($I$24&\"H\"&$J14,1)","v":1},{"$f":"INT((C14*F14)/40)*G14*$I$11","v":0},{"$f":"INDIRECT($I$24&\"C\"&$J14,1)","v":0},9,null,0,"Tipo Vinculo UMNG","Año1","Año2"]
[null,{"$f":"ROW()-$A$13","v":2},null,{"$f":"D14","v":1.66},0,0,0,{"$f":"INT((C15*F15)/40)*G15*$I$11","v":0},0,{"$f":"J14+3","v":12},null,1,"Doc. Carrera TC",{"$f":"(SUMIF($E$14:$E$23,$M15,$H$14:$H$23)/2)","v":0},{"$f":"N15","v":0},"Mod-1",20000000]
[null,3,null,{"$f":"D15","v":1.66},0,0,0,0,0,{"$f":"J15+3","v":15},null,2,"Doc. Carrera MT",{"$f":"(SUMIF($E$14:$E$23,$M16,$H$14:$H$23)/2)","v":0},{"$f":"N16","v":0},"Mod-2",50000000]
[null,4,null,1.66,0,0,0,0,0,18,null,3,"Doc. Ocasional",{"$f":"SUMIF($E$14:$E$23,$M17,$H$14:$H$23)","v":0},0,"Mod-3",20000000]
[null,5,null,1.66,0,0,0,0,0,21,null,null,null,null,null,"Mod-4",20000000]
[null,6,null,1.66,0,0,0,0,0,24]
[null,7,null,1.66,0,0,0,0,0,27]
[null,8,null,1.66,0,0,0,0,0,30,null,null,"Validación IMP OK Grupo","A"]
[null,9,null,1.66,0,0,0,0,0,33,null,null,null,"A1"]
[null,10,null,1.66,0,0,0,0,0,36,null,null,null,"B"]
[null,null,"Sumatoria del calculo de personal de planta \"Valor contrapartida Facultades\":",null,null,null,null,{"$f":"SUBTOTAL(109,H14:H23)","v":0},"Integrantes!",null,null,null,"Incremento al salario","C"]
[null,null,null,null,null,null,null,null,null,null,null,null,0]
[null,"b. ","Asistentes externos o temporales contratados por (OPS) y/o hora cadedra.",null,null,null,null,null,null,null,null,null,"Valor SMLV","Max Mes"]
[null,">","Salario  Minimo Legal Vigente (SMIV) : ",null,null,781242,null,36885850,null,null,null,null,{"$f":"F27*(1+M25)","v":781242},{"$f":"INT(Integrantes!J6/10)*10","v":10}]
[]
[{"$f":"ROW()","v":29},"No","Valor mensual del contrato","Factor ","Tipo de vinculación","Numero de meses ","Número Horas / Semanal","Valor total de contrato","Valores  de entidades externas",null,null,"No","Tipo","Valor total del contrato (10 mes)","SMMLV","Valor mes contrato","Cuantos"]
[null,{"$f":"ROW()-$A$29","v":1},{"$f":"IFERROR(VLOOKUP($E30,$M$29:$P$38,4,0),0)","v":0},{"$f":"IFERROR(VLOOKUP($E30,$M$29:$O$37,3,0)/10,0)","v":0},null,null,null,{"$f":"IF($E30=$M$38,$N$38,(F30*C30)/40*G30)","v":0},null,{"$f":"IFERROR(VLOOKUP($E30,$M$29:$O$38,2,0),0)*IF($H$10=\"IMP\",2,1)","v":0},null,1,"(A.I.) -Técnico",{"$f":"$M$27*O30","v":15624840},20,{"$f":"N30/10","v":1562484},{"$f":"COUNTIF($E$30:$E$42,M30)","v":0}]
[null,{"$f":"ROW()-$A$29","v":2},{"$f":"IFERROR(VLOOKUP($E31,$M$29:$P$38,4,0),0)","v":0},0,null,1,1,{"$f":"IF($E31=$M$38,$N$38,(F31*C31)/40*G31)","v":0},null,{"$f":"IFERROR(VLOOKUP($E31,$M$29:$O$38,2,0),0)*IF($H$10=\"IMP\",2,1)","v":0},null,2,"(A.I.) -Profesional",27343470,35,2734347,{"$f":"COUNTIF($E$30:$E$42,M31)","v":0}]
[null,3,0,0,null,1,1,0,null,0,null,3,"(A.I.) -Profesional especializado",31249680,40,3124968,0]
[null,4,0,0,null,1,1,0,null,0,null,4,"(A.I.) -Profesional magister",35155890,45,3515589,0]
[null,5,0,0,null,1,1,0,null,0,null,5,"(A.I.) -Profesional doctorado",42968310,55,4296831,0]
[null,6,0,0,null,1,1,0,null,0,null,6,"(J.I)  -Joven investigador",27343470,35,2734347,0]
[null,7,0,0,null,1,1,0,null,0,null,7]
[null,8,0,0,null,1,1,0,null,0,null,8]
[null,9,0,0,null,1,1,0,null,0,null,9]
[null,10,0,0,null,1,1,0,null,0]
[null,11,0,0,null,1,1,0,null,0]
[null,12,0,0,null,1,1,0,null,0,null,null,null,"Salario 12 meses"]
[null,13,0,0,null,1,1,0,null,0,null,null,"Joven investigador Colciencias",{"$f":"M27*3*12","v":28124712}]
[null,null,"Sumatoria del calculo de OPS  \"Valor financiado Vicein\" en rubro de (Personal):",null,null,null,{"$f":"IF(H43>M78,\"Esta superando el total de presupuesto\",\"\")","v":""},{"$f":"SUM(H30:H42)","v":0},0]
[]
["13.-","Presupuesto detalle de Plan de compras general ",null,null,null,null,null,null,{"$f":"General!I56","v":0}]
[]
[null,{"$f":"IFERROR(\"Nota : \"&VLOOKUP(I10,Dt_Limite,3,0),\" \")","v":"Nota : Puede aplicar al maximo de presupuesto dependiendo los puntos comprometidos"}]
[null,null,"* En proyectos IMP se debe discriminar por año el presupuesto a utilizar sin superar el la mitad del total.",null,null,null,null,null,null,null,null,"Consulte sobre los items"]
[{"$f":"ROW()","v":49},"No","Rubro ","Año ejecu-ción","Descripción",null,"Finaciación Vicein $","Contrapartida Facultad $","Contrapartida Otros $",null,null,"No","Nombre Rubro","Rubro","Limite%",{"$f":"N2","v":20000000},"Solicitado $Vicein"]
[null,{"$f":"ROW()-$A$49","v":1},"Personal",1,"Descarga de horas dedicación académica",null,0,{"$f":"H24","v":0},null,null,null,1,"Personal",611401,1,{"$f":"SUMIF($C$49:$C$70,$M50,$G$49:$G$70)","v":0},{"$f":"P50/$P$49","v":0}]
[null,{"$f":"ROW()-$A$49","v":2},"Personal",1,null,null,null,null,null,null,null,2,"Equipos",632,0,{"$f":"SUMIF($C$49:$C$70,$M51,$G$49:$G$70)","v":0},{"$f":"P51/$P$49","v":0}]
[null,3,null,1,null,null,null,null,null,null,null,3,"Equipos transformables",632,0,0,0]
[null,4,null,1,null,null,null,null,null,null,null,4,"Software",612102,0,0,0]
[null,5,null,1,null,null,null,null,null,null,null,5,"Materiales",612101,1,0,0]
[null,6,null,1,null,null,null,null,null,null,null,6,"Materiales (Papelería)",612101,0.01,0,0]
[null,7,null,1,null,null,null,null,null,null,null,7,"Salidas de Campo",612104,0,0,0]
[null,8,null,1,null,null,null,null,null,null,null,8,"Servicios Técnicos",612103,1,0,0]
[null,9,null,1,null,null,null,null,null,null,null,9,"Recursos Biblograficos",633,1,0,0]
[null,10,null,1,null,null,null,null,null,null,null,10,"Impresos y Publicaciones",612106,1,0,0]
[null,11,null,1,null,null,null,null,null,null,null,11,"Movilidad",635020,0,0,0]
[null,12,null,1,null,null,null,null,null,null,null,12,"Viajes",null,null,null,0]
[null,13,null,1,null,null,null,null,null,null,null,13,"Mantenimiento",null,null,null,0]
[null,14,null,1,null,null,null,null,null,null,null,14,"Administración",null,null,null,0]
[null,15,null,1,null,null,null,null,null,null,null,15,"Construcciones",null,null,null,0]
[null,16,null,1,null,null,null,null,null,null,null,16,"Otros Gastos",null,null,null,0]
[null,17,null,1,null,null,null,null,null,null,null,null,"Si cambio"]
[null,18,null,1]
[null,19,null,1,null,null,null,null,null,null,null,"Validación $ Vicein Maximo 2018"]
[null,20,null,1,null,null,null,null,null,null,null,1,"Puntos  Comprometidos : ",{"$f":"V_Max","v":0}]
[]
[null,null,"Sumatoria general de plan de compras :",null,null,{"$f":"SUM(G71:I71)","v":0},{"$f":"INT(SUM(G72:G73))","v":0},{"$f":"INT(SUM(H72:H73))","v":0},0,null,null,2,"Franja  de Presupuesto en puntos :",{"$f":"Integrantes!S4","v":0}]
[null,null,null,1,"Total Presupuesto  :",null,{"$f":"IF(Cel_TP=\"IMP\",SUMIF($D$50:$D$70,$D72,G$50:G$70),SUM(G$50:G$70))","v":0},{"$f":"SUMIF($D$50:$D$70,$D72,H$50:H$70)","v":0},{"$f":"SUMIF($D$50:$D$70,$D72,I$50:I$70)","v":0},null,null,3,"Maximo $Vicein por Puntos en Millones",{"$f":"Integrantes!T4","v":0}]
[null,null,null,null,null,null,null,null,null,null,null,4,"Maximo $Vicein por Puntos en Millones Grupo",{"$f":" IFERROR(VLOOKUP(I10,Dt_Limite,2,0),0)","v":100}]
[null,null,null,null,{"$f":"IF(G74>0,\"Presupuesto por definir.\",\" Error  - Supero el presupuesto en : \")","v":"Presupuesto por definir."},null,{"$f":"E95-G71","v":20000000},null,null,null,null,4,"Tipo Convocatoria es :",{"$f":"General!C7","v":"Innovación"}]
[null,null,null,null,"Limite de presupuesto VICEIN por año :",null,{"$f":"IFERROR(IF($H$10=\"IMP\",$M$78/2,$M$78),\"0\")","v":20000000}]
[]
[null,null,null,null,null,null,null,null,null,null,null,{"$f":"General!I20","v":"A"},"Valor maximo INV por clasificacion de Grupo"]
[null,"No","Rubro","%","Porcentaje","$ Financiación solicitada a VICEIN","$ Contrapartida Facultad","$ Contrapartida Externa","$ Total Rubro",0,null,null,{"$f":"E95","v":20000000},{"$f":"MIN(N72:N73)","v":0}]
[null,1,{"$f":"M50","v":"Personal"},{"$f":"IFERROR(VLOOKUP(B79,$L$49:$Q$65,6,0),0)","v":0},{"$f":"D79","v":0},{"$f":"IF(O50=1,SUMIF($C$50:$C$70,$C79,G$50:G$70),0)","v":0},{"$f":"SUMIF($C$50:$C$70,$C79,H$50:H$70)","v":0},0,{"$f":"SUM(F79:H79)","v":0},3,{"$f":"VLOOKUP($B79,$L$49:$Q$65,4,0)","v":1}]
[null,2,"Equipos",{"$f":"IFERROR(VLOOKUP(B80,$L$49:$Q$65,6,0),0)","v":0},0,"No Aplica","No Aplica","No Aplica","No Aplica",{"$f":"J79","v":3},{"$f":"VLOOKUP($B80,$L$49:$Q$65,4,0)","v":0}]
[null,3,"Equipos transformables",0,0,"No Aplica","No Aplica","No Aplica","No Aplica",3,0]
[null,4,"Software",0,0,"No Aplica","No Aplica","No Aplica","No Aplica",3,0]
[null,5,"Materiales",0,0,{"$f":"SUMIF($C$50:$C$70,$C83,G$50:G$70)","v":0},0,0,{"$f":"SUM(F83:H83)","v":0},3,1]
[null,6,"Materiales (Papelería)",0,0,{"$f":"SUMIF($C$50:$C$70,$C84,G$50:G$70)","v":0},0,0,0,3,0.01]
[null,7,"Salidas de Campo",0,0,"No Aplica","No Aplica","No Aplica","No Aplica",3,0]
[null,8,"Servicios Técnicos",0,0,{"$f":"SUMIF($C$50:$C$70,$C86,G$50:G$70)","v":0},0,0,0,3,1]
[null,9,"Recursos Biblograficos",0,0,"No Aplica","No Aplica","No Aplica","No Aplica",3,1]
[null,10,"Impresos y Publicaciones",0,0,{"$f":"SUMIF($C$50:$C$70,$C88,G$50:G$70)","v":0},0,0,0,3,1]
[null,11,"Movilidad",0,0,"No Aplica","No Aplica","No Aplica","No Aplica",3,0]
[null,12,"Viajes",null,null,{"$f":"SUMIFS(G$49:G$70,$C$49:$C$70,$C90,$D$49:$D$70,$J90)","v":0},{"$f":"SUMIF($C$50:$C$70,$C90,H$50:H$70)","v":0},0,0,3]
[null,13,"Mantenimiento",null,null,0,{"$f":"SUMIF($C$50:$C$70,$C91,H$50:H$70)","v":0},0,0,3]
[null,14,"Administración",null,null,0,{"$f":"SUMIF($C$50:$C$70,$C92,H$50:H$70)","v":0},0,0,3]
[null,15,"Construcciones",null,null,0,{"$f":"SUMIF($C$50:$C$70,$C93,H$50:H$70)","v":0},0,0,3]
[null,16,"Otros Gastos",null,null,0,{"$f":"SUMIF($C$50:$C$70,$C94,H$50:H$70)","v":0},0,0,3]
[null,"T3",{"$f":"\"TotalesPlan compras  -  (máximo):\"","v":"TotalesPlan compras  -  (máximo):"},null,{"$f":"N2","v":20000000},{"$f":"SUMIFS(F$79:F$94,$J$79:$J$94,$J95)","v":0},{"$f":"SUMIFS(G$79:G$94,$J$79:$J$94,$J95)","v":0},{"$f":"SUMIFS(H$79:H$94,$J$79:$J$94,$J95)","v":0},{"$f":"SUM(F95:H95)","v":0},{"$f":"J88","v":3}]
[]
[null,"Nombre Institución Externa :",null,null,{"$f":"IF(General!C33=0,\"\",General!C33)","v":""}]
[]
[null,null,null,"Propuesta:",{"$f":"D7","v":0}]
[]
[null,null,"Firma de responsable"]

{"sheet":"Impactos","index":9,"n_rows":39,"n_cols":12,"rows_kept":39,"cut":false,"hidden":false,"merged":[[1,2,2,2]]}
[10,null,null,null,null,null,"*Pueden  Ocultar las Filas que no se utilicen."]
[null,null,{"$f":"General!B2","v":"PRESENTACIÓN DE PROPUESTAS DE IDEAS \nINNOVADORAS"},{"$f":"General!$H$2","v":"Fecha de Emisión: 2018/03/06"},{"$f":"General!$I$2","v":"IN-IE-F-7"}]
[null,null,null,{"$f":"General!$H$3","v":"Revision N°:\n4"},{"$f":"\"Página \"&$A$1&\" de \"&Dt_TPG","v":"Página 10 de 11"},null,{"$f":"SUM(G7:G3500)","v":1},"<== Total de palabras"]
[]
["14.-","#","Impactos asociados a la propuesta.",null,null,null,"Largo"]
[]
[null,"N°","Impacto","Categoria","Plazo",null,{"$f":"IF(C7=\"\",0,LEN(TRIM(C7))-LEN(SUBSTITUTE(TRIM(C7),\" \",\"\"))+1)","v":1},null,null,"No","Tipo","Duración"]
[null,{"$f":"ROW()-7","v":1},null,null,null,null,{"$f":"IF(C8=\"\",0,LEN(TRIM(C8))-LEN(SUBSTITUTE(TRIM(C8),\" \",\"\"))+1)","v":0},null,null,1,"Fin de la pobreza","Corto (1 año)"]
[null,{"$f":"ROW()-7","v":2},null,null,null,null,0,null,null,{"$f":"J8+1","v":2},"Hambre Cero (0)","Medio (2 años)"]
[null,3,null,null,null,null,0,null,null,{"$f":"J9+1","v":3},"Salud y bienestar","Largo (3 años)"]
[null,4,null,null,null,null,0,null,null,4,"Educación de calidad"]
[null,5,null,null,null,null,0,null,null,5,"Igualdad de genero"]
[null,6,null,null,null,null,0,null,null,6,"Agua limpia y saneamiento"]
[null,7,null,null,null,null,0,null,null,7,"Energía asequible y no contaminante"]
[null,8,null,null,null,null,0,null,null,8,"Trabajo decente y crecimiento económico"]
[null,9,null,null,null,null,0,null,null,9,"Industria, innovación e infraestructura"]
[null,10,null,null,null,null,0,null,null,10,"Reducción de las desigualdades"]
[null,11,null,null,null,null,0,null,null,11,"Ciudades y comunidades sostenibles"]
[null,12,null,null,null,null,0,null,null,12,"Producción y consumo responsables"]
[null,13,null,null,null,null,{"$f":"IF(C20=\"\",0,LEN(TRIM(C20))-LEN(SUBSTITUTE(TRIM(C20),\" \",\"\"))+1)","v":0},null,null,13,"Acción por el clima"]
[null,14,null,null,null,null,0,null,null,14,"Vida submarina"]
[null,15,null,null,null,null,0,null,null,15,"Vida de ecosistemas terrestres"]
[null,16,null,null,null,null,0,null,null,16,"Paz, justicia e instituciones sólidas"]
[null,null,null,null,null,null,null,null,null,17,"Alianzas para lograr los objetivos"]
[null,null,null,null,null,null,null,null,null,18,"Ciencias básicas "]
[null,null,null,null,null,null,null,null,null,{"$f":"J25+1","v":19},"Otros"]
[]
[]
[]
[]
[]
[]
[]
[]
[]
[]
[]
[]
[null,"*Pueden  Ocultar las Filas que no se utilicen."]

{"sheet":"Bibliografía","index":10,"n_rows":39,"n_cols":8,"rows_kept":39,"cut":false,"hidden":false,"merged":[[34,2,34,4],[23,2,23,4],[24,2,24,4],[25,2,25,4],[26,2,26,4],[27,2,27,4],[28,2,28,4],[29,2,29,4],[30,2,30,4],[31,2,31,4],[32,2,32,4],[33,2,33,4],[22,2,22,4],[11,2,11,4],[12,2,12,4],[13,2,13,4],[14,2,14,4],[15,2,15,4],[16,2,16,4],[17,2,17,4],[18,2,18,4],[19,2,19,4],[20,2,20,4],[21,2,21,4],[10,2,10,4],[1,2,2,2],[6,2,6,4],[7,2,7,4],[8,2,8,4],[9,2,9,4]]}
[11,null,null,null,null,null,"*Pueden  Ocultar las Filas que no se utilicen."]
[null,null,{"$f":"General!B2","v":"PRESENTACIÓN DE PROPUESTAS DE IDEAS \nINNOVADORAS"},{"$f":"General!$H$2","v":"Fecha de Emisión: 2018/03/06"},{"$f":"General!$I$2","v":"IN-IE-F-7"}]
[null,null,null,{"$f":"General!$H$3","v":"Revision N°:\n4"},{"$f":"\"Página \"&$A$1&\" de \"&Dt_TPG","v":"Página 11 de 11"},null,{"$f":"SUM(G7:G3500)","v":0},"<== Total de palabras"]
[]
["15.-","#","Bibliografía de la propuesta.",null,null,null,"Largo"]
[]
[null,{"$f":"ROW()-6","v":1},null,null,null,null,{"$f":"IF(C7=\"\",0,LEN(TRIM(C7))-LEN(SUBSTITUTE(TRIM(C7),\" \",\"\"))+1)","v":0}]
[null,{"$f":"ROW()-6","v":2},null,null,null,null,{"$f":"IF(C8=\"\",0,LEN(TRIM(C8))-LEN(SUBSTITUTE(TRIM(C8),\" \",\"\"))+1)","v":0}]
[null,3,null,null,null,null,0]
[null,4,null,null,null,null,0]
[null,5,null,null,null,null,0]
[null,6,null,null,null,null,0]
[null,7,null,null,null,null,0]
[null,8,null,null,null,null,0]
[null,9,null,null,null,null,0]
[null,10,null,null,null,null,0]
[null,11,null,null,null,null,0]
[null,12,null,null,null,null,0]
[null,13,null,null,null,null,0]
[null,14,null,null,null,null,0]
[null,15,null,null,null,null,0]
[null,16,null,null,null,null,0]
[null,17,null,null,null,null,0]
[null,18,null,null,null,null,0]
[null,19,null,null,null,null,0]
[null,20,null,null,null,null,0]
[null,21,null,null,null,null,0]
[null,22,null,null,null,null,0]
[null,23,null,null,null,null,0]
[null,24,null,null,null,null,0]
[null,25,null,null,null,null,0]
[null,26,null,null,null,null,0]
[null,27,null,null,null,null,0]
[null,28,null,null,null,null,0]
[null,29,null,null,null,null,0]
[]
[]
[]
[null,"*Pueden  Ocultar las Filas que no se utilicen."]